Body name,Directorate,Service Area Categorisation,Supplier Name,Payment Date,Card Transaction,Net Amount,Purpose of Spend,Procurement Classification: ProClass Label
Solihull MBC,Governance  ,Central Services to the Public,11KBW,20/02/2015,,1056.00,Other Fees,Not Yet Classified
Solihull MBC,Children's Services - DSG Schools - Non DMT,Children & Education Services,2 Simple Software Ltd,24/02/2015,,300.00,Professional Fees,171100 - Education - Supplies
Solihull MBC,Children's Services - DSG Schools - Non DMT,Children & Education Services,3 Sixty Property Services Ltd,17/02/2015,,472.75,Repair & Maintn Of Buildings,171011 - Education - School Services
Solihull MBC,Children's Services - DSG Schools - Non DMT,Children & Education Services,3P Learning Limited,05/02/2015,,1386.00,Capitation,171011 - Education - School Services
Solihull MBC,Children's Services - DSG Schools - Non DMT,Children & Education Services,3P Learning Limited,26/02/2015,,300.00,Capitation,171011 - Education - School Services
Solihull MBC,Children's Services - DSG Schools - Non DMT,Children & Education Services,3P Learning Limited,26/02/2015,,66.00,Capitation,171011 - Education - School Services
Solihull MBC,Children's Services - DSG Schools - Non DMT,Children & Education Services,3P Learning Limited,03/02/2015,,2058.00,IT Equipment & Software,171011 - Education - School Services
Solihull MBC,Children's Services - DSG Schools - Non DMT,Children & Education Services,3P Learning Limited,13/02/2015,,766.50,Capitation,171011 - Education - School Services
Solihull MBC,Children's Services,Children & Education Services,4Children,16/02/2015,,45625.00,Other Contracted Services,171011 - Education - School Services
Solihull MBC,Places,Highways & Transport Services,4Imprint,27/02/2015,,269.45,Materials,Not Yet Classified
Solihull MBC,Governance  ,Central Services to the Public,A J Fraley Ltd,20/02/2015,,992.75,Professional Fees,Not Yet Classified
Solihull MBC,Children's Services,Children & Education Services,A S C Birch,25/02/2015,,1335.70,Transport-Contract Hire,360000 - Public Transport
Solihull MBC,Children's Services,Children & Education Services,A S C Birch,02/02/2015,,450.00,Clients Transport Costs,360000 - Public Transport
Solihull MBC,Adult Social Care,Adult Social Care,A S C Birch,02/02/2015,,136.00,Clients Transport Costs,360000 - Public Transport
Solihull MBC,Adult Social Care,Adult Social Care,A S C Birch,02/02/2015,,360.00,Clients Transport Costs,360000 - Public Transport
Solihull MBC,Children's Services,Children & Education Services,A S C Birch,25/02/2015,,1216.00,Transport-Contract Hire,360000 - Public Transport
Solihull MBC,Children's Services,Children & Education Services,A S C Birch,25/02/2015,,1400.00,Transport-Contract Hire,360000 - Public Transport
Solihull MBC,Resources,Children & Education Services,A T Flooring,16/02/2015,,3533.03,Repair & Maintn Of Buildings,"391111 - Works - Construction, Repair & Maintenance - Buildings - Repair & Maintenance"
Solihull MBC,Children's Services,Children & Education Services,A2B Radio Cars,10/02/2015,,1425.00,Transport-Contract Hire,360000 - Public Transport
Solihull MBC,Children's Services,Children & Education Services,A2B Radio Cars,10/02/2015,,1575.00,Transport-Contract Hire,360000 - Public Transport
Solihull MBC,Children's Services,Children & Education Services,A2B Radio Cars,10/02/2015,,700.00,Transport-Contract Hire,360000 - Public Transport
Solihull MBC,Children's Services,Children & Education Services,A2B Radio Cars,10/02/2015,,1520.00,Transport-Contract Hire,360000 - Public Transport
Solihull MBC,Children's Services,Children & Education Services,A2B Radio Cars,10/02/2015,,31.80,Transport-Contract Hire,360000 - Public Transport
Solihull MBC,Adult Social Care,Adult Social Care,Abbey Healthcare Homes Ltd,09/02/2015,,3544.23,ASC - Nursing Care Permanent,321000 - Social Community Care Supplies & Services - Adult
Solihull MBC,Adult Social Care,Adult Social Care,Abbey Healthcare Homes Ltd,09/02/2015,,4228.09,ASC - Nursing Care Permanent,321000 - Social Community Care Supplies & Services - Adult
Solihull MBC,Children's Services - DSG Schools - Non DMT,Children & Education Services,ABC Teachers,24/02/2015,,1444.92,Agency Staff: Teachers,171011 - Education - School Services
Solihull MBC,Children's Services - DSG Schools - Non DMT,Children & Education Services,ABC Teachers,24/02/2015,,609.64,Agency Staff: Teachers,171011 - Education - School Services
Solihull MBC,Children's Services - DSG Schools - Non DMT,Children & Education Services,ABC Teachers,24/02/2015,,440.00,Agency Staff: Classroom Support,171011 - Education - School Services
Solihull MBC,Children's Services - DSG Schools - Non DMT,Children & Education Services,ABC Teachers,24/02/2015,,609.64,Agency Staff: Teachers,171011 - Education - School Services
Solihull MBC,Children's Services - DSG Schools - Non DMT,Children & Education Services,ABC Teachers,24/02/2015,,550.00,Agency Staff: Classroom Support,171011 - Education - School Services
Solihull MBC,Children's Services - DSG Schools - Non DMT,Children & Education Services,ABC Teachers,24/02/2015,,609.64,Agency Staff: Teachers,171011 - Education - School Services
Solihull MBC,Children's Services - DSG Schools - Non DMT,Children & Education Services,ABC Teachers,24/02/2015,,299.99,Agency Staff: Teachers,171011 - Education - School Services
Solihull MBC,Children's Services - DSG Schools - Non DMT,Children & Education Services,ABC Teachers,24/02/2015,,330.00,Agency Staff: Classroom Support,171011 - Education - School Services
Solihull MBC,Children's Services - DSG Schools - Non DMT,Children & Education Services,ABC Teachers,25/02/2015,,924.95,Agency Staff: Teachers,171011 - Education - School Services
Solihull MBC,Children's Services - DSG Schools - Non DMT,Children & Education Services,ABC Teachers,25/02/2015,,309.99,Agency Staff: Teachers,171011 - Education - School Services
Solihull MBC,Children's Services - DSG Schools - Non DMT,Children & Education Services,ABC Teachers,26/02/2015,,974.95,Agency Staff: Teachers,171011 - Education - School Services
Solihull MBC,Children's Services - DSG Schools - Non DMT,Children & Education Services,ABC Teachers,26/02/2015,,679.97,Agency Staff: Teachers,171011 - Education - School Services
Solihull MBC,Children's Services - DSG Schools - Non DMT,Children & Education Services,ABC Teachers,26/02/2015,,1894.93,Agency Staff: Teachers,171011 - Education - School Services
Solihull MBC,Children's Services - DSG Schools - Non DMT,Children & Education Services,ABC Teachers,26/02/2015,,1254.94,Agency Staff: Teachers,171011 - Education - School Services
Solihull MBC,Children's Services - DSG Schools - Non DMT,Children & Education Services,ABC Teachers,12/02/2015,,1639.92,Agency Staff: Teachers,171011 - Education - School Services
Solihull MBC,Children's Services - DSG Schools - Non DMT,Children & Education Services,ABC Teachers,12/02/2015,,1429.94,Agency Staff: Teachers,171011 - Education - School Services
Solihull MBC,Children's Services - DSG Schools - Non DMT,Children & Education Services,ABC Teachers,12/02/2015,,299.99,Agency Staff: Teachers,171011 - Education - School Services
Solihull MBC,Children's Services - DSG Schools - Non DMT,Children & Education Services,ABC Teachers,12/02/2015,,389.98,Agency Staff: Teachers,171011 - Education - School Services
Solihull MBC,Children's Services - DSG Schools - Non DMT,Children & Education Services,ABC Teachers,13/02/2015,,1911.34,Agency Staff: Teachers,171011 - Education - School Services
Solihull MBC,Children's Services - DSG Schools - Non DMT,Children & Education Services,ABC Teachers,13/02/2015,,1884.20,Agency Staff: Teachers,171011 - Education - School Services
Solihull MBC,Children's Services - DSG Schools - Non DMT,Children & Education Services,ABC Teachers,13/02/2015,,1329.23,Agency Staff: Teachers,171011 - Education - School Services
Solihull MBC,Children's Services - DSG Schools - Non DMT,Children & Education Services,ABC Teachers,24/02/2015,,1844.90,Agency Staff: Teachers,171011 - Education - School Services
Solihull MBC,Children's Services - DSG Schools - Non DMT,Children & Education Services,ABC Teachers,24/02/2015,,719.96,Agency Staff: Teachers,171011 - Education - School Services
Solihull MBC,Children's Services - DSG Schools - Non DMT,Children & Education Services,ABC Teachers,24/02/2015,,929.95,Agency Staff: Teachers,171011 - Education - School Services
Solihull MBC,Children's Services - DSG Schools - Non DMT,Children & Education Services,ABC Teachers,04/02/2015,,349.98,Agency Staff: Teachers,171011 - Education - School Services
Solihull MBC,Children's Services - DSG Schools - Non DMT,Children & Education Services,ABC Teachers,03/02/2015,,2074.19,Agency Staff: Teachers,171011 - Education - School Services
Solihull MBC,Children's Services - DSG Schools - Non DMT,Children & Education Services,ABC Teachers,02/02/2015,,349.98,Agency Staff: Teachers,171011 - Education - School Services
Solihull MBC,Children's Services - DSG Schools - Non DMT,Children & Education Services,ABC Teachers,11/02/2015,,924.95,Agency Staff: Teachers,171011 - Education - School Services
Solihull MBC,Children's Services - DSG Schools - Non DMT,Children & Education Services,ABC Teachers,11/02/2015,,924.95,Agency Staff: Teachers,171011 - Education - School Services
Solihull MBC,Children's Services - DSG Schools - Non DMT,Children & Education Services,ABC Teachers,09/02/2015,,1139.94,Agency Staff: Teachers,171011 - Education - School Services
Solihull MBC,Children's Services - DSG Schools - Non DMT,Children & Education Services,ABC Teachers,02/02/2015,,1099.96,Agency Staff: Teachers,171011 - Education - School Services
Solihull MBC,Children's Services - DSG Schools - Non DMT,Children & Education Services,ABC Teachers,02/02/2015,,384.98,Agency Staff: Teachers,171011 - Education - School Services
Solihull MBC,Children's Services,Children & Education Services,Abdullah & Sons Co Limited,16/02/2015,,266.67,Client Leaving Care Grant,321000 - Social Community Care Supplies & Services - Adult
Solihull MBC,Children's Services,Children & Education Services,Absolutely Fabulous Flooring,06/02/2015,,250.00,Client Leaving Care Grant,Not Yet Classified
Solihull MBC,Children's Services - DSG Schools - Non DMT,Children & Education Services,Academic Solutions (UK) Ltd,24/02/2015,,875.00,Agency Staff: Teachers,171100 - Education - Supplies
Solihull MBC,Children's Services - DSG Schools - Non DMT,Children & Education Services,Academic Solutions (UK) Ltd,24/02/2015,,875.00,Agency Staff: Teachers,171100 - Education - Supplies
Solihull MBC,Children's Services - DSG Schools - Non DMT,Children & Education Services,Academic Solutions (UK) Ltd,03/02/2015,,904.16,Agency Staff: Teachers,171100 - Education - Supplies
Solihull MBC,Children's Services - DSG Schools - Non DMT,Children & Education Services,Academic Solutions (UK) Ltd,24/02/2015,,700.00,Agency Staff: Teachers,171100 - Education - Supplies
Solihull MBC,Business Transformation,Central Services to the Public,Access Intelligence Media,17/02/2015,,6400.00,General Office Expenses,270000 - Information Communication Technology
Solihull MBC,Children's Services,Children & Education Services,Access With Choice,06/02/2015,,209.40,Clients Expenses,Not Yet Classified
Solihull MBC,Children's Services,Children & Education Services,Access With Choice,06/02/2015,,3051.28,Supported Lodgings,Not Yet Classified
Solihull MBC,Children's Services,Children & Education Services,Access With Choice,06/02/2015,,3051.28,Supported Lodgings,Not Yet Classified
Solihull MBC,Children's Services,Children & Education Services,Access With Choice,12/02/2015,,3260.68,Supported Lodgings,Not Yet Classified
Solihull MBC,Children's Services,Children & Education Services,Access With Choice,06/02/2015,,209.40,Clients Expenses,Not Yet Classified
Solihull MBC,Children's Services,Children & Education Services,Access With Choice,06/02/2015,,280.73,Rents - Accommodation,Not Yet Classified
Solihull MBC,Children's Services,Children & Education Services,Access With Choice,06/02/2015,,280.73,Supported Lodgings,Not Yet Classified
Solihull MBC,Adult Social Care,Adult Social Care,Accord Housing Association,24/02/2015,,7095.40,Block Contracts,321000 - Social Community Care Supplies & Services - Adult
Solihull MBC,Adult Social Care,Adult Social Care,Accord Housing Association,24/02/2015,,2002.00,Other Contracted Services,321000 - Social Community Care Supplies & Services - Adult
Solihull MBC,Adult Social Care,Adult Social Care,Accord Housing Association,24/02/2015,,396.93,Block Contracts,321000 - Social Community Care Supplies & Services - Adult
Solihull MBC,Adult Social Care,Adult Social Care,Accord Housing Association,11/02/2015,,23629.86,ASC - Extra Care,321000 - Social Community Care Supplies & Services - Adult
Solihull MBC,Adult Social Care,Adult Social Care,Accord Housing Association,16/02/2015,,539.80,General Creditors,321000 - Social Community Care Supplies & Services - Adult
Solihull MBC,Adult Social Care,Adult Social Care,Accord Housing Asssociation,09/02/2015,,1065.43,ASC - Residential Care Permanent,321000 - Social Community Care Supplies & Services - Adult
Solihull MBC,Adult Social Care,Adult Social Care,Accord Housing Asssociation,09/02/2015,,1675.77,ASC - Residential Care Permanent,321000 - Social Community Care Supplies & Services - Adult
Solihull MBC,Adult Social Care,Adult Social Care,Accord Housing Asssociation,09/02/2015,,1515.77,ASC - Residential Care Permanent,321000 - Social Community Care Supplies & Services - Adult
Solihull MBC,Adult Social Care,Adult Social Care,Accord Housing Asssociation,09/02/2015,,1700.79,ASC - Residential Care Permanent,321000 - Social Community Care Supplies & Services - Adult
Solihull MBC,Adult Social Care,Adult Social Care,Accord Housing Asssociation,09/02/2015,,1700.79,ASC - Residential Care Permanent,321000 - Social Community Care Supplies & Services - Adult
Solihull MBC,Adult Social Care,Adult Social Care,Accord Housing Asssociation,09/02/2015,,1740.65,ASC - Residential Care Permanent,321000 - Social Community Care Supplies & Services - Adult
Solihull MBC,Adult Social Care,Adult Social Care,Accord Housing Asssociation,09/02/2015,,1395.22,ASC - Residential Care Permanent,321000 - Social Community Care Supplies & Services - Adult
Solihull MBC,Adult Social Care,Adult Social Care,Accord Housing Asssociation,09/02/2015,,1377.02,ASC - Residential Care Permanent,321000 - Social Community Care Supplies & Services - Adult
Solihull MBC,Adult Social Care,Adult Social Care,Accord Housing Asssociation,09/02/2015,,1709.92,ASC - Residential Care Permanent,321000 - Social Community Care Supplies & Services - Adult
Solihull MBC,Adult Social Care,Adult Social Care,Accord Housing Asssociation,09/02/2015,,1340.31,ASC - Residential Care Permanent,321000 - Social Community Care Supplies & Services - Adult
Solihull MBC,Adult Social Care,Adult Social Care,Accord Housing Asssociation,09/02/2015,,1369.05,ASC - Residential Care Permanent,321000 - Social Community Care Supplies & Services - Adult
Solihull MBC,Adult Social Care,Adult Social Care,Accord Housing Asssociation,09/02/2015,,711.04,ASC - Residential Care Permanent,321000 - Social Community Care Supplies & Services - Adult
Solihull MBC,Adult Social Care,Adult Social Care,Accord Housing Asssociation,09/02/2015,,1001.92,ASC - Residential Care Permanent,321000 - Social Community Care Supplies & Services - Adult
Solihull MBC,Adult Social Care,Adult Social Care,Accord Housing Asssociation,09/02/2015,,1700.79,ASC - Residential Care Permanent,321000 - Social Community Care Supplies & Services - Adult
Solihull MBC,Adult Social Care,Adult Social Care,Accord Housing Asssociation,09/02/2015,,1614.13,ASC - Residential Care Permanent,321000 - Social Community Care Supplies & Services - Adult
Solihull MBC,Adult Social Care,Adult Social Care,Accord Housing Asssociation,09/02/2015,,1339.73,ASC - Residential Care Permanent,321000 - Social Community Care Supplies & Services - Adult
Solihull MBC,Adult Social Care,Adult Social Care,Accord Housing Asssociation,09/02/2015,,1700.79,ASC - Residential Care Permanent,321000 - Social Community Care Supplies & Services - Adult
Solihull MBC,Adult Social Care,Adult Social Care,Accord Housing Asssociation,09/02/2015,,1524.67,ASC - Residential Care Permanent,321000 - Social Community Care Supplies & Services - Adult
Solihull MBC,Adult Social Care,Adult Social Care,Accord Housing Asssociation,09/02/2015,,1464.17,ASC - Residential Care Permanent,321000 - Social Community Care Supplies & Services - Adult
Solihull MBC,Adult Social Care,Adult Social Care,Accord Housing Asssociation,09/02/2015,,1700.79,ASC - Residential Care Permanent,321000 - Social Community Care Supplies & Services - Adult
Solihull MBC,Adult Social Care,Adult Social Care,Accord Housing Asssociation,09/02/2015,,1491.94,ASC - Residential Care Permanent,321000 - Social Community Care Supplies & Services - Adult
Solihull MBC,Adult Social Care,Adult Social Care,Accord Housing Asssociation,09/02/2015,,1609.79,ASC - Residential Care Permanent,321000 - Social Community Care Supplies & Services - Adult
Solihull MBC,Adult Social Care,Adult Social Care,Accord Housing Asssociation,09/02/2015,,1687.51,ASC - Residential Care Permanent,321000 - Social Community Care Supplies & Services - Adult
Solihull MBC,Adult Social Care,Adult Social Care,Accord Housing Asssociation,09/02/2015,,1584.63,ASC - Residential Care Permanent,321000 - Social Community Care Supplies & Services - Adult
Solihull MBC,Adult Social Care,Adult Social Care,Accord Housing Asssociation,09/02/2015,,1683.65,ASC - Residential Care Permanent,321000 - Social Community Care Supplies & Services - Adult
Solihull MBC,Adult Social Care,Adult Social Care,Accord Housing Asssociation,09/02/2015,,1813.77,ASC - Residential Care Permanent,321000 - Social Community Care Supplies & Services - Adult
Solihull MBC,Adult Social Care,Adult Social Care,Accord Housing Asssociation,09/02/2015,,1232.96,ASC - Residential Care Permanent,321000 - Social Community Care Supplies & Services - Adult
Solihull MBC,Adult Social Care,Adult Social Care,Accord Housing Asssociation,09/02/2015,,1395.22,ASC - Residential Care Permanent,321000 - Social Community Care Supplies & Services - Adult
Solihull MBC,Adult Social Care,Adult Social Care,Accord Housing Asssociation,09/02/2015,,1686.84,ASC - Residential Care Permanent,321000 - Social Community Care Supplies & Services - Adult
Solihull MBC,Children's Services - DSG Central.,Children & Education Services,Acorn The Catering Equipment Co,18/02/2015,,464.00,Furniture & Equipment,Not Yet Classified
Solihull MBC,Children's Services - DSG Schools - Non DMT,Children & Education Services,Act On Info CIC,12/02/2015,,300.00,Professional Fees,Not Yet Classified
Solihull MBC,Children's Services - DSG Schools - Non DMT,Children & Education Services,Action Centres UK Ltd,03/02/2015,,800.00,Visits & Pupil Activities,321100 - Social Community Care Supplies & Services - Children
Solihull MBC,Adult Social Care,Adult Social Care,Action For Blind People (RNIB Group) Regional Services,18/02/2015,,10384.00,Block Contracts,321000 - Social Community Care Supplies & Services - Adult
Solihull MBC,Adult Social Care,Adult Social Care,Action For Blind People (RNIB Group) Regional Services,18/02/2015,,10384.00,Block Contracts,321000 - Social Community Care Supplies & Services - Adult
Solihull MBC,Adult Social Care,Adult Social Care,Action For Blind People (RNIB Group) Regional Services,18/02/2015,,10384.00,Block Contracts,321000 - Social Community Care Supplies & Services - Adult
Solihull MBC,Children's Services,Children & Education Services,Action For Children,05/02/2015,,3427.71,External Fostering,321100 - Social Community Care Supplies & Services - Children
Solihull MBC,Children's Services,Children & Education Services,Action For Children,17/02/2015,,556.43,External Fostering,321100 - Social Community Care Supplies & Services - Children
Solihull MBC,Children's Services - DSG Central.,Children & Education Services,Active Angels,02/02/2015,,2887.50,Grant & Subscription (SCITT),321100 - Social Community Care Supplies & Services - Children
Solihull MBC,Children's Services - DSG Schools - Non DMT,Children & Education Services,Active Visual Supplies Ltd,26/02/2015,,113.00,IT Equipment & Software,171011 - Education - School Services
Solihull MBC,Children's Services - DSG Schools - Non DMT,Children & Education Services,Active Visual Supplies Ltd,02/02/2015,,629.00,IT Equipment & Software,171011 - Education - School Services
Solihull MBC,Children's Services - DSG Schools - Non DMT,Children & Education Services,Active Visual Supplies Ltd,03/02/2015,,295.00,IT Equipment & Software,171011 - Education - School Services
Solihull MBC,Children's Services - DSG Schools - Non DMT,Children & Education Services,Active Visual Supplies Ltd,26/02/2015,,574.00,IT Equipment & Software,171011 - Education - School Services
Solihull MBC,Children's Services - DSG Schools - Non DMT,Children & Education Services,Admin Support & IT Solutions,13/02/2015,,540.00,Visits & Pupil Activities,Not Yet Classified
Solihull MBC,Children's Services,Children & Education Services,Adoption UK,04/02/2015,,550.00,Advertising/Publicity/Promotion,202100 - Financial Services - Subscriptions
Solihull MBC,Children's Services - DSG Schools - Non DMT,Children & Education Services,Adrienne Cave,26/02/2015,,600.00,Professional Fees,Not Yet Classified
Solihull MBC,Children's Services - DSG Schools - Non DMT,Children & Education Services,Adrienne Cave,02/02/2015,,800.00,Professional Fees,Not Yet Classified
Solihull MBC,Resources,Central Services to the Public,ADT Fire & Security PLC,10/02/2015,,522.18,Other Premise Costs,192200 - Facilities & Management Services - Security
Solihull MBC,Resources,Central Services to the Public,ADT Fire & Security PLC,10/02/2015,,-439.20,Other Premise Costs,192200 - Facilities & Management Services - Security
Solihull MBC,Adult Social Care,Adult Social Care,Age Concern Solihull,24/02/2015,,6225.01,Block Contracts,321000 - Social Community Care Supplies & Services - Adult
Solihull MBC,Adult Social Care,Adult Social Care,Age UK Solihull,25/02/2015,,16916.66,Other Contracted Services,321000 - Social Community Care Supplies & Services - Adult
Solihull MBC,Adult Social Care,Adult Social Care,Age UK Solihull,18/02/2015,,20000.00,Other Contracted Services,321000 - Social Community Care Supplies & Services - Adult
Solihull MBC,Children's Services - DSG Schools - Non DMT,Children & Education Services,Agility UK Ltd,11/02/2015,,1425.58,Other Transport Costs,Not Yet Classified
Solihull MBC,Resources,Central Services to the Public,AGX Holdings Ltd,20/02/2015,,327.60,IT Equipment & Software,Not Yet Classified
Solihull MBC,Adult Social Care,Adult Social Care,Aidapt Bathrooms Ltd,13/02/2015,,287.28,Furniture & Equipment,321000 - Social Community Care Supplies & Services - Adult
Solihull MBC,Adult Social Care,Adult Social Care,Aidapt Bathrooms Ltd,09/02/2015,,384.00,Furniture & Equipment,321000 - Social Community Care Supplies & Services - Adult
Solihull MBC,Adult Social Care,Adult Social Care,Aidapt Bathrooms Ltd,09/02/2015,,429.60,Furniture & Equipment,321000 - Social Community Care Supplies & Services - Adult
Solihull MBC,Adult Social Care,Adult Social Care,Aidapt Bathrooms Ltd,16/02/2015,,287.28,Furniture & Equipment,321000 - Social Community Care Supplies & Services - Adult
Solihull MBC,Adult Social Care,Adult Social Care,Aidapt Bathrooms Ltd,16/02/2015,,491.28,Furniture & Equipment,321000 - Social Community Care Supplies & Services - Adult
Solihull MBC,Adult Social Care,Adult Social Care,Aidapt Bathrooms Ltd,23/02/2015,,269.64,Furniture & Equipment,321000 - Social Community Care Supplies & Services - Adult
Solihull MBC,Adult Social Care,Adult Social Care,Aidapt Bathrooms Ltd,23/02/2015,,309.60,Furniture & Equipment,321000 - Social Community Care Supplies & Services - Adult
Solihull MBC,Adult Social Care,Adult Social Care,Aidapt Bathrooms Ltd,13/02/2015,,960.00,Furniture & Equipment,321000 - Social Community Care Supplies & Services - Adult
Solihull MBC,Adult Social Care,Adult Social Care,Aidservice Ltd,05/02/2015,,721.50,Furniture & Equipment,Not Yet Classified
Solihull MBC,Places,Planning & Development Services,Air France  0572361777052,15/01/2015,Card Transaction,305.88,Materials,369999 - Public Transport - Not Elsewhere Classified
Solihull MBC,Places,Planning & Development Services,Air France  0572361929584,19/01/2015,Card Transaction,341.88,Materials,369999 - Public Transport - Not Elsewhere Classified
Solihull MBC,Resources,Central Services to the Public,Airey Consultancy Services Ltd,02/02/2015,,1100.00,Professional Fees,Not Yet Classified
Solihull MBC,Resources,Central Services to the Public,Airwatch UK Ltd,26/02/2015,,272.00,IT Equipment & Software,Not Yet Classified
Solihull MBC,Adult Social Care,Adult Social Care,Akari Care Ltd,09/02/2015,,1639.28,ASC - Nursing Care Permanent,Not Yet Classified
Solihull MBC,Adult Social Care,Adult Social Care,Akari Care Ltd - Ivybank,26/02/2015,,3594.74,ASC - Nursing Care Permanent,Not Yet Classified
Solihull MBC,Children's Services - DSG Schools - Non DMT,Children & Education Services,A-Kleen Cleaning Services,06/02/2015,,1015.31,Cleaning Contracts,171011 - Education - School Services
Solihull MBC,Children's Services - DSG Schools - Non DMT,Children & Education Services,Alarm & Vision,02/02/2015,,1150.00,Alarms,171100 - Education - Supplies
Solihull MBC,Children's Services - DSG Schools - Non DMT,Children & Education Services,Alarm & Vision,11/02/2015,,2200.00,Building Maint Day To Day,171100 - Education - Supplies
Solihull MBC,Children's Services - DSG Schools - Non DMT,Children & Education Services,Alarm & Vision,02/02/2015,,800.00,Alarms,171100 - Education - Supplies
Solihull MBC,Children's Services - DSG Central.,Children & Education Services,Alderbrook School,05/02/2015,,9891.00,Other Contracted Services,171011 - Education - School Services
Solihull MBC,Children's Services - DSG Central.,Children & Education Services,Alderbrook School,05/02/2015,,16702.00,Other Contracted Services,171011 - Education - School Services
Solihull MBC,Adult Social Care,Adult Social Care,Alexandra Centre For Physical Disability,09/02/2015,,3991.87,ASC - Residential Care Permanent,Not Yet Classified
Solihull MBC,Children's Services - DSG Schools - Non DMT,Children & Education Services,Alina Awdry,11/02/2015,,600.00,Capitation,Not Yet Classified
Solihull MBC,Children's Services,Children & Education Services,A-Line Coaches,11/02/2015,,3520.00,Transport-Contract Hire,360000 - Public Transport
Solihull MBC,Places,Planning & Development Services,Alison Saint,03/02/2015,,900.00,Other Contracted Services,Not Yet Classified
Solihull MBC,Children's Services - DSG Schools - Non DMT,Children & Education Services,Alison Vining,17/02/2015,,100.00,Other Fees,Not Yet Classified
Solihull MBC,Children's Services - DSG Schools - Non DMT,Children & Education Services,Alison Vining,17/02/2015,,100.00,Other Fees,Not Yet Classified
Solihull MBC,Children's Services - DSG Schools - Non DMT,Children & Education Services,Alison Vining,17/02/2015,,100.00,Other Fees,Not Yet Classified
Solihull MBC,Children's Services - DSG Schools - Non DMT,Children & Education Services,Alison Vining,17/02/2015,,153.75,Other Fees,Not Yet Classified
Solihull MBC,Children's Services - DSG Schools - Non DMT,Children & Education Services,All Seasons Garden Services,24/02/2015,,800.00,Maintenance Of Grounds,"391311 - Works - Construction, Repair & Maintenance - Open Spaces - Repair & Maintenance"
Solihull MBC,Children's Services - DSG Schools - Non DMT,Children & Education Services,All Seasons Garden Services,25/02/2015,,747.50,Maintenance Of Grounds,"391311 - Works - Construction, Repair & Maintenance - Open Spaces - Repair & Maintenance"
Solihull MBC,Children's Services - DSG Schools - Non DMT,Children & Education Services,All Seasons Garden Services,25/02/2015,,260.84,Maintenance Of Grounds,"391311 - Works - Construction, Repair & Maintenance - Open Spaces - Repair & Maintenance"
Solihull MBC,Children's Services - DSG Schools - Non DMT,Children & Education Services,All Seasons Garden Services,25/02/2015,,63.33,Maintenance Of Grounds,"391311 - Works - Construction, Repair & Maintenance - Open Spaces - Repair & Maintenance"
Solihull MBC,Children's Services - DSG Schools - Non DMT,Children & Education Services,All Seasons Garden Services,02/02/2015,,648.34,Maintenance Of Grounds,"391311 - Works - Construction, Repair & Maintenance - Open Spaces - Repair & Maintenance"
Solihull MBC,Children's Services - DSG Schools - Non DMT,Children & Education Services,All Seasons Garden Services,02/02/2015,,860.00,Maintenance Of Grounds,"391311 - Works - Construction, Repair & Maintenance - Open Spaces - Repair & Maintenance"
Solihull MBC,Children's Services - DSG Schools - Non DMT,Children & Education Services,All Seasons Garden Services,26/02/2015,,327.50,Maintenance Of Grounds,"391311 - Works - Construction, Repair & Maintenance - Open Spaces - Repair & Maintenance"
Solihull MBC,Adult Social Care,Adult Social Care,Allied Healthcare (UK) Ltd,16/02/2015,,330.48,Block Contracts,321000 - Social Community Care Supplies & Services - Adult
Solihull MBC,Adult Social Care,Adult Social Care,Allied Healthcare (UK) Ltd,16/02/2015,,311.04,Block Contracts,321000 - Social Community Care Supplies & Services - Adult
Solihull MBC,Adult Social Care,Adult Social Care,Alophonsus Services Ltd,09/02/2015,,8352.95,ASC - Residential Care Permanent,321000 - Social Community Care Supplies & Services - Adult
Solihull MBC,Adult Social Care,Adult Social Care,Alpha Health Care Ltd,09/02/2015,,1324.72,ASC - Nursing Care Permanent,321000 - Social Community Care Supplies & Services - Adult
Solihull MBC,Children's Services - DSG Schools - Non DMT,Children & Education Services,Alton Castle,09/02/2015,,500.00,Visits & Pupil Activities,321100 - Social Community Care Supplies & Services - Children
Solihull MBC,Adult Social Care,Adult Social Care,Alzheimers Society,18/02/2015,,12850.00,Block Contracts,321000 - Social Community Care Supplies & Services - Adult
Solihull MBC,Children's Services - DSG Schools - Non DMT,Children & Education Services,Amazon *Mktplce Eu-UK,16/01/2015,Card Transaction,249.90,Training,171114 - Education - Literature
Solihull MBC,Children's Services - DSG Schools - Non DMT,Children & Education Services,Amazon *Mktplce Eu-UK,13/01/2015,Card Transaction,289.00,IT Equipment & Software,171114 - Education - Literature
Solihull MBC,Children's Services - DSG Schools - Non DMT,Children & Education Services,Amazon *Mktplce Eu-UK,07/01/2015,Card Transaction,344.28,Capitation,171114 - Education - Literature
Solihull MBC,Children's Services - DSG Schools - Non DMT,Children & Education Services,Amazon Eu,19/01/2015,Card Transaction,239.84,IT Equipment & Software,131340 - Cleaning & Janitorial - Cleaning Service - Specialist
Solihull MBC,Children's Services - DSG Schools - Non DMT,Children & Education Services,Amazon Eu,19/01/2015,Card Transaction,359.76,IT Equipment & Software,161000 - Domestic Goods - Commercial
Solihull MBC,Children's Services - DSG Schools - Non DMT,Children & Education Services,"Amazon Svcs Europe,Sar",27/01/2015,Card Transaction,310.99,Capitation,171114 - Education - Literature
Solihull MBC,Children's Services - DSG Schools - Non DMT,Children & Education Services,Amazon UK Retail,31/01/2015,Card Transaction,223.48,Capitation,161000 - Domestic Goods - Commercial
Solihull MBC,Adult Social Care,Adult Social Care,Amberley Court Nursing Home,09/02/2015,,2764.31,ASC - Nursing Care Permanent,321000 - Social Community Care Supplies & Services - Adult
Solihull MBC,Adult Social Care,Adult Social Care,Amberley Court Nursing Home,09/02/2015,,5166.19,ASC - Nursing Care Permanent,321000 - Social Community Care Supplies & Services - Adult
Solihull MBC,Adult Social Care,Adult Social Care,Amberley Court Nursing Home,09/02/2015,,3192.87,ASC - Nursing Care Permanent,321000 - Social Community Care Supplies & Services - Adult
Solihull MBC,Places,Planning & Development Services,Amion Consulting,06/02/2015,,8497.00,Professional Fees,Not Yet Classified
Solihull MBC,Adult Social Care,Adult Social Care,Angels Healthcare Ltd,26/02/2015,,6589.80,ASC - Domiciliary Care,321000 - Social Community Care Supplies & Services - Adult
Solihull MBC,Places,Environmental and Regulatory Services,Animal Funeral Services - Hereford,09/02/2015,,280.00,Other Contracted Services,Not Yet Classified
Solihull MBC,Children's Services - DSG Schools - Non DMT,Children & Education Services,Animals In Hands,10/02/2015,,275.00,Visits & Pupil Activities,Not Yet Classified
Solihull MBC,Children's Services - DSG Central.,Children & Education Services,Ann Arbor Publishers Ltd,09/02/2015,,660.00,Materials,171100 - Education - Supplies
Solihull MBC,Adult Social Care,Adult Social Care,Apetito Ltd,20/02/2015,,284.82,Catering Provisions,321000 - Social Community Care Supplies & Services - Adult
Solihull MBC,Adult Social Care,Adult Social Care,Apetito Ltd,16/02/2015,,318.18,Catering Provisions,321000 - Social Community Care Supplies & Services - Adult
Solihull MBC,Adult Social Care,Adult Social Care,Apetito Ltd,20/02/2015,,22.43,Catering Provisions,321000 - Social Community Care Supplies & Services - Adult
Solihull MBC,Adult Social Care,Adult Social Care,Apetito Ltd,20/02/2015,,232.98,Catering Provisions,321000 - Social Community Care Supplies & Services - Adult
Solihull MBC,Adult Social Care,Adult Social Care,Apetito Ltd,16/02/2015,,22.43,Catering Provisions,321000 - Social Community Care Supplies & Services - Adult
Solihull MBC,Adult Social Care,Adult Social Care,Apna Ghar(1995) Ltd,26/02/2015,,280.00,ASC - Day Care,321000 - Social Community Care Supplies & Services - Adult
Solihull MBC,Adult Social Care,Adult Social Care,Apna Ghar(1995) Ltd,26/02/2015,,315.00,ASC - Day Care,321000 - Social Community Care Supplies & Services - Adult
Solihull MBC,Adult Social Care,Adult Social Care,Apna Ghar(1995) Ltd,26/02/2015,,385.00,ASC - Day Care,321000 - Social Community Care Supplies & Services - Adult
Solihull MBC,Business Transformation,Central Services to the Public,Apple Store R255,16/01/2015,Card Transaction,2269.35,Professional Fees,169999 - Domestic Goods - Not Elsewhere Classified
Solihull MBC,Children's Services - DSG Schools - Non DMT,Children & Education Services,Apps Central Ltd,04/02/2015,,400.00,IT Equipment & Software,Not Yet Classified
Solihull MBC,Children's Services - DSG Schools - Non DMT,Children & Education Services,Aquaaid (Midlands),04/02/2015,,471.15,Meetings & Other Expenses,171100 - Education - Supplies
Solihull MBC,Resources,Central Services to the Public,Aquablast Systems,10/02/2015,,212.77,Cleaning,Not Yet Classified
Solihull MBC,Children's Services - DSG Schools - Non DMT,Children & Education Services,Aquaid,25/02/2015,,256.80,Health & Safety,171100 - Education - Supplies
Solihull MBC,Adult Social Care,Adult Social Care,"Aquajoy Bathlifts Ltd.,",04/02/2015,,356.00,Furniture & Equipment,Not Yet Classified
Solihull MBC,Adult Social Care,Adult Social Care,"Aquajoy Bathlifts Ltd.,",04/02/2015,,60.00,Furniture & Equipment,Not Yet Classified
Solihull MBC,Adult Social Care,Adult Social Care,"Aquajoy Bathlifts Ltd.,",04/02/2015,,40.00,Furniture & Equipment,Not Yet Classified
Solihull MBC,Adult Social Care,Adult Social Care,"Aquajoy Bathlifts Ltd.,",16/02/2015,,1990.00,Furniture & Equipment,Not Yet Classified
Solihull MBC,Adult Social Care,Adult Social Care,"Aquajoy Bathlifts Ltd.,",04/02/2015,,156.00,Furniture & Equipment,Not Yet Classified
Solihull MBC,Children's Services - DSG Schools - Non DMT,Children & Education Services,Aquila,13/01/2015,Card Transaction,300.00,Capitation,171114 - Education - Literature
Solihull MBC,Children's Services - DSG Schools - Non DMT,Children & Education Services,Archway Community College,09/02/2015,,616.00,Professional Fees,Not Yet Classified
Solihull MBC,Children's Services - DSG Schools - Non DMT,Children & Education Services,Archway Community College,09/02/2015,,2200.00,Professional Fees,Not Yet Classified
Solihull MBC,Children's Services - DSG Central.,Children & Education Services,Archway Community College,25/02/2015,,12000.00,Other Contracted Services,Not Yet Classified
Solihull MBC,Children's Services - DSG Central.,Children & Education Services,Archway Community College,04/02/2015,,4800.00,Other Contracted Services,Not Yet Classified
Solihull MBC,Children's Services - DSG Central.,Children & Education Services,Arden Academy Trust,26/02/2015,,1639.00,Other Contracted Services,Not Yet Classified
Solihull MBC,Places,Highways & Transport Services,Arden Gates Ltd,25/02/2015,,790.00,Other Contracted Services,Not Yet Classified
Solihull MBC,Adult Social Care,Adult Social Care,Ardenfield Development Comp. Ltd,12/02/2015,,460.00,Rents For Premises,Not Yet Classified
Solihull MBC,Adult Social Care,Adult Social Care,Ardenlea Court,09/02/2015,,3031.27,ASC - Nursing Care Permanent,321000 - Social Community Care Supplies & Services - Adult
Solihull MBC,Adult Social Care,Adult Social Care,Ardenlea Court,09/02/2015,,1874.44,ASC - Nursing Care Permanent,321000 - Social Community Care Supplies & Services - Adult
Solihull MBC,Adult Social Care,Adult Social Care,Ardenlea Court,09/02/2015,,-61.44,ASC - Nursing Care Permanent,321000 - Social Community Care Supplies & Services - Adult
Solihull MBC,Adult Social Care,Adult Social Care,Ardenlea Court,09/02/2015,,-384.24,ASC - Nursing Care Permanent,321000 - Social Community Care Supplies & Services - Adult
Solihull MBC,Adult Social Care,Adult Social Care,Ardenlea Court,09/02/2015,,-2287.50,ASC - Nursing Care Permanent,321000 - Social Community Care Supplies & Services - Adult
Solihull MBC,Adult Social Care,Adult Social Care,Ardenlea Grove,09/02/2015,,3396.98,ASC - Nursing Care Permanent,Not Yet Classified
Solihull MBC,Adult Social Care,Adult Social Care,Ardenlea Grove,09/02/2015,,1604.25,ASC - Nursing Care Permanent,Not Yet Classified
Solihull MBC,Adult Social Care,Adult Social Care,Ardenlea Grove,09/02/2015,,2799.17,ASC - Nursing Care Permanent,Not Yet Classified
Solihull MBC,Children's Services,Children & Education Services,Argos Business Solutions,19/02/2015,,0.04,Client Leaving Care Grant,171100 - Education - Supplies
Solihull MBC,Children's Services,Children & Education Services,Argos Business Solutions,19/02/2015,,177.10,Client Leaving Care Grant,171100 - Education - Supplies
Solihull MBC,Children's Services,Children & Education Services,Argos Business Solutions,19/02/2015,,178.35,Client Leaving Care Grant,171100 - Education - Supplies
Solihull MBC,Children's Services,Children & Education Services,Argos Business Solutions,26/02/2015,,270.38,Client Leaving Care Grant,171100 - Education - Supplies
Solihull MBC,Children's Services,Children & Education Services,Argos Business Solutions,26/02/2015,,106.99,Client Leaving Care Grant,171100 - Education - Supplies
Solihull MBC,Children's Services,Children & Education Services,Argos Business Solutions,26/02/2015,,15.99,Client Leaving Care Grant,171100 - Education - Supplies
Solihull MBC,Children's Services - DSG Schools - Non DMT,Children & Education Services,Argos Ltd,06/01/2015,Card Transaction,269.98,Furniture & Equipment,169999 - Domestic Goods - Not Elsewhere Classified
Solihull MBC,Adult Social Care,Adult Social Care,Argos Retail Group,05/01/2015,Card Transaction,208.94,General Creditors,169999 - Domestic Goods - Not Elsewhere Classified
Solihull MBC,Children's Services,Children & Education Services,Argos Retail Group,30/01/2015,Card Transaction,393.93,Client Leaving Care Grant,169999 - Domestic Goods - Not Elsewhere Classified
Solihull MBC,Resources,Children & Education Services,Arjo Ltd,12/02/2015,,763.00,Repair & Maintn Of Buildings,321000 - Social Community Care Supplies & Services - Adult
Solihull MBC,Adult Social Care,Adult Social Care,Arjohuntleigh,09/02/2015,,319.95,Furniture & Equipment,321000 - Social Community Care Supplies & Services - Adult
Solihull MBC,Resources,Planning & Development Services,Armac Demolition Ltd,05/02/2015,,14483.00,Contractors,"390000 - Works - Construction, Repair & Maintenance"
Solihull MBC,Public Health ,Adult Social Care,Arran Medical Centre,03/02/2015,,950.00,Other Contracted Services,Not Yet Classified
Solihull MBC,Public Health ,Adult Social Care,Arran Medical Centre,03/02/2015,,546.13,Other Contracted Services,Not Yet Classified
Solihull MBC,Public Health ,Adult Social Care,Arran Medical Centre,03/02/2015,,237.29,Other Contracted Services,Not Yet Classified
Solihull MBC,Children's Services - DSG Central.,Children & Education Services,Arrow County Supplies,09/02/2015,,334.05,Cleaning,130000 - Cleaning & Janitorial
Solihull MBC,Children's Services - DSG Central.,Children & Education Services,Arrow County Supplies,16/02/2015,,44.10,Cleaning,130000 - Cleaning & Janitorial
Solihull MBC,Children's Services - DSG Central.,Children & Education Services,Arrow County Supplies,09/02/2015,,49.90,Cleaning,130000 - Cleaning & Janitorial
Solihull MBC,Children's Services - DSG Central.,Children & Education Services,Arrow County Supplies,16/02/2015,,172.00,Cleaning,130000 - Cleaning & Janitorial
Solihull MBC,Children's Services - DSG Central.,Children & Education Services,Arrow County Supplies,16/02/2015,,134.50,Cleaning,130000 - Cleaning & Janitorial
Solihull MBC,Children's Services - DSG Central.,Children & Education Services,Arrow County Supplies,16/02/2015,,361.20,Cleaning,130000 - Cleaning & Janitorial
Solihull MBC,Children's Services - DSG Central.,Children & Education Services,Arrow County Supplies,16/02/2015,,3.96,Cleaning,130000 - Cleaning & Janitorial
Solihull MBC,Children's Services - DSG Central.,Children & Education Services,Arrow County Supplies,16/02/2015,,7.92,Cleaning,130000 - Cleaning & Janitorial
Solihull MBC,Children's Services - DSG Central.,Children & Education Services,Arrow County Supplies,16/02/2015,,7.92,Cleaning,130000 - Cleaning & Janitorial
Solihull MBC,Children's Services - DSG Schools - Non DMT,Children & Education Services,Arval Limited,09/02/2015,,505.12,Other Transport Costs,171011 - Education - School Services
Solihull MBC,Children's Services - DSG Schools - Non DMT,Children & Education Services,ASCL Professional Development Ltd,06/02/2015,,280.00,Training,Not Yet Classified
Solihull MBC,Adult Social Care,Adult Social Care,Asda Home Shopping,05/01/2015,Card Transaction,211.81,Catering Provisions,111200 - Catering - Food & Beverages
Solihull MBC,Public Health ,Adult Social Care,Asda Pharmacy,25/02/2015,,184.05,Other Contracted Services,Not Yet Classified
Solihull MBC,Public Health ,Adult Social Care,Asda Pharmacy,25/02/2015,,82.34,Other Contracted Services,Not Yet Classified
Solihull MBC,Public Health ,Adult Social Care,Asda Pharmacy,25/02/2015,,109.92,Other Contracted Services,Not Yet Classified
Solihull MBC,Public Health ,Adult Social Care,Asda Pharmacy,25/02/2015,,271.50,Other Contracted Services,Not Yet Classified
Solihull MBC,Adult Social Care,Adult Social Care,Asda Superstore,15/01/2015,Card Transaction,229.95,Catering Provisions,111200 - Catering - Food & Beverages
Solihull MBC,Adult Social Care,Adult Social Care,Ashdale Residential,09/02/2015,,500.57,ASC - Residential Care Permanent,Not Yet Classified
Solihull MBC,Adult Social Care,Adult Social Care,Ashdale Residential,09/02/2015,,1727.32,ASC - Residential Care Permanent,Not Yet Classified
Solihull MBC,Adult Social Care,Adult Social Care,Ashdale Residential,09/02/2015,,646.57,ASC - Residential Care Permanent,Not Yet Classified
Solihull MBC,Adult Social Care,Adult Social Care,Ashram Housing Association Ltd,24/02/2015,,2723.48,Block Contracts,Not Yet Classified
Solihull MBC,Places,Cultural & Related Services,Askews Library Services Ltd,09/02/2015,,544.87,Materials,170000 - Education
Solihull MBC,Places,Cultural & Related Services,Askews Library Services Ltd,09/02/2015,,25.11,Materials,170000 - Education
Solihull MBC,Places,Cultural & Related Services,Askews Library Services Ltd,09/02/2015,,458.83,Materials,170000 - Education
Solihull MBC,Places,Cultural & Related Services,Askews Library Services Ltd,09/02/2015,,355.04,Materials,170000 - Education
Solihull MBC,Places,Cultural & Related Services,Askews Library Services Ltd,23/02/2015,,693.38,Materials,170000 - Education
Solihull MBC,Places,Cultural & Related Services,Askews Library Services Ltd,23/02/2015,,484.23,Materials,170000 - Education
Solihull MBC,Places,Cultural & Related Services,Askews Library Services Ltd,23/02/2015,,928.71,Materials,170000 - Education
Solihull MBC,Places,Cultural & Related Services,Askews Library Services Ltd,17/02/2015,,584.75,Materials,170000 - Education
Solihull MBC,Places,Cultural & Related Services,Askews Library Services Ltd,17/02/2015,,688.81,Materials,170000 - Education
Solihull MBC,Places,Cultural & Related Services,Askews Library Services Ltd,17/02/2015,,71.21,Materials,170000 - Education
Solihull MBC,Places,Cultural & Related Services,Askews Library Services Ltd,17/02/2015,,713.27,Materials,170000 - Education
Solihull MBC,Adult Social Care,Adult Social Care,Aspects Care Ltd,26/02/2015,,6844.18,ASC - Domiciliary Care,Not Yet Classified
Solihull MBC,Adult Social Care,Adult Social Care,Aspects Care Ltd,26/02/2015,,3724.65,ASC - Domiciliary Care,Not Yet Classified
Solihull MBC,Adult Social Care,Adult Social Care,Aspects Care Ltd,26/02/2015,,7047.23,ASC - Domiciliary Care,Not Yet Classified
Solihull MBC,Adult Social Care,Adult Social Care,Aspects Care Ltd,26/02/2015,,4419.67,ASC - Domiciliary Care,Not Yet Classified
Solihull MBC,Adult Social Care,Adult Social Care,Aspects Care Ltd,26/02/2015,,4570.64,ASC - Domiciliary Care,Not Yet Classified
Solihull MBC,Adult Social Care,Adult Social Care,Aspects Care Ltd,26/02/2015,,7047.23,ASC - Domiciliary Care,Not Yet Classified
Solihull MBC,Children's Services - DSG Schools - Non DMT,Children & Education Services,Aspire People Ltd,25/02/2015,,312.00,Professional Fees,171011 - Education - School Services
Solihull MBC,Children's Services - DSG Schools - Non DMT,Children & Education Services,Aspire People Ltd,25/02/2015,,224.00,Professional Fees,171011 - Education - School Services
Solihull MBC,Children's Services - DSG Schools - Non DMT,Children & Education Services,Aspire People Ltd,06/02/2015,,525.00,Agency Staff: Classroom Support,171011 - Education - School Services
Solihull MBC,Children's Services - DSG Schools - Non DMT,Children & Education Services,Aspire People Ltd,25/02/2015,,224.00,Professional Fees,171011 - Education - School Services
Solihull MBC,Children's Services - DSG Schools - Non DMT,Children & Education Services,Aspire People Ltd,05/02/2015,,336.00,Professional Fees,171011 - Education - School Services
Solihull MBC,Children's Services - DSG Schools - Non DMT,Children & Education Services,Aspire Sports Health & Fitness Ltd,26/02/2015,,1388.00,Professional Fees,Not Yet Classified
Solihull MBC,Children's Services - DSG Schools - Non DMT,Children & Education Services,Assessment & Qualifications Alliance,25/02/2015,,480.00,Examination Fees,Not Yet Classified
Solihull MBC,Children's Services - DSG Schools - Non DMT,Children & Education Services,Assessment & Qualifications Alliance,25/02/2015,,288.00,Examination Fees,Not Yet Classified
Solihull MBC,Children's Services - DSG Schools - Non DMT,Children & Education Services,Assessment & Qualifications Alliance,24/02/2015,,23746.50,Examination Fees,Not Yet Classified
Solihull MBC,Children's Services - DSG Schools - Non DMT,Children & Education Services,Assessment & Qualifications Alliance,03/02/2015,,356.40,Examination Fees,Not Yet Classified
Solihull MBC,Children's Services - DSG Schools - Non DMT,Children & Education Services,Assessment & Qualifications Alliance,06/02/2015,,250.00,Training,Not Yet Classified
Solihull MBC,Children's Services - DSG Schools - Non DMT,Children & Education Services,Assessment & Qualifications Alliance,03/02/2015,,19.80,Examination Fees,Not Yet Classified
Solihull MBC,Adult Social Care,Adult Social Care,Assisted Living Solutions - Inclusion Care,11/02/2015,,17539.80,ASC - Domiciliary Care,Not Yet Classified
Solihull MBC,Children's Services - DSG Schools - Non DMT,Children & Education Services,A-Stat Office Technology Ltd,05/02/2015,,614.34,Photocopying,171100 - Education - Supplies
Solihull MBC,Adult Social Care,Adult Social Care,Astor Bannerman (Medical) Ltd,04/02/2015,,19.95,Furniture & Equipment,Not Yet Classified
Solihull MBC,Adult Social Care,Adult Social Care,Astor Bannerman (Medical) Ltd,04/02/2015,,366.00,Furniture & Equipment,Not Yet Classified
Solihull MBC,Business Transformation,Planning & Development Services,Athena Care Limited,16/02/2015,,623.52,Agency Staff,321000 - Social Community Care Supplies & Services - Adult
Solihull MBC,Business Transformation,Planning & Development Services,Athena Care Limited,16/02/2015,,-623.52,Agency Staff,321000 - Social Community Care Supplies & Services - Adult
Solihull MBC,Business Transformation,Planning & Development Services,Athena Care Limited,16/02/2015,,623.53,Agency Staff,321000 - Social Community Care Supplies & Services - Adult
Solihull MBC,Business Transformation,Planning & Development Services,Athena Care Limited,16/02/2015,,623.52,Agency Staff,321000 - Social Community Care Supplies & Services - Adult
Solihull MBC,Business Transformation,Planning & Development Services,Athena Care Limited,16/02/2015,,623.52,Agency Staff,321000 - Social Community Care Supplies & Services - Adult
Solihull MBC,Business Transformation,Planning & Development Services,Athena Care Limited,16/02/2015,,376.70,Agency Staff,321000 - Social Community Care Supplies & Services - Adult
Solihull MBC,Business Transformation,Planning & Development Services,Athena Care Limited,16/02/2015,,623.52,Agency Staff,321000 - Social Community Care Supplies & Services - Adult
Solihull MBC,Places,Highways & Transport Services,Atkins,16/02/2015,,13112.59,Agency Staff,150000 - Consultancy
Solihull MBC,Places,Highways & Transport Services,Atkins,27/02/2015,,21721.93,Agency Staff,150000 - Consultancy
Solihull MBC,Places,Highways & Transport Services,Atkins,02/02/2015,,9695.81,Agency Staff,150000 - Consultancy
Solihull MBC,Places,Highways & Transport Services,Atkins,11/02/2015,,5600.57,Consultants,150000 - Consultancy
Solihull MBC,Places,Highways & Transport Services,Atkins,17/02/2015,,4431.28,Consultants,150000 - Consultancy
Solihull MBC,Places,Highways & Transport Services,Atkins Ltd,17/02/2015,,4285.08,Professional Fees,150000 - Consultancy
Solihull MBC,Resources,Central Services to the Public,Atkins Ltd,04/02/2015,,10878.45,Professional Fees,150000 - Consultancy
Solihull MBC,Children's Services - DSG Schools - Non DMT,Children & Education Services,Atlantic Europe Publishing Co Ltd,27/02/2015,,259.00,Software Licenses & Support,171011 - Education - School Services
Solihull MBC,Children's Services - DSG Schools - Non DMT,Children & Education Services,Attain Travel Ltd,11/02/2015,,350.00,Visits & Pupil Activities,321100 - Social Community Care Supplies & Services - Children
Solihull MBC,Children's Services - DSG Schools - Non DMT,Children & Education Services,Audible & Visual Security Ltd,25/02/2015,,218.00,Alarms,192200 - Facilities & Management Services - Security
Solihull MBC,Resources,Other Housing Services,Auriga Services Ltd,11/02/2015,,105.00,Clients Expenses,Not Yet Classified
Solihull MBC,Resources,Other Housing Services,Auriga Services Ltd,11/02/2015,,201.63,Clients Expenses,Not Yet Classified
Solihull MBC,Resources,Other Housing Services,Auriga Services Ltd,11/02/2015,,-306.63,Clients Expenses,Not Yet Classified
Solihull MBC,Resources,Other Housing Services,Auriga Services Ltd,11/02/2015,,306.63,Clients Expenses,Not Yet Classified
Solihull MBC,Adult Social Care,Adult Social Care,Autism West Midlands,09/02/2015,,4320.47,ASC - Residential Care Permanent,321000 - Social Community Care Supplies & Services - Adult
Solihull MBC,Adult Social Care,Adult Social Care,Autism West Midlands,09/02/2015,,10053.61,ASC - Residential Care Permanent,321000 - Social Community Care Supplies & Services - Adult
Solihull MBC,Adult Social Care,Adult Social Care,Autism West Midlands,09/02/2015,,6629.66,ASC - Residential Care Permanent,321000 - Social Community Care Supplies & Services - Adult
Solihull MBC,Adult Social Care,Adult Social Care,Autism West Midlands,09/02/2015,,4320.47,ASC - Residential Care Permanent,321000 - Social Community Care Supplies & Services - Adult
Solihull MBC,Adult Social Care,Adult Social Care,Autism West Midlands,09/02/2015,,10053.61,ASC - Residential Care Permanent,321000 - Social Community Care Supplies & Services - Adult
Solihull MBC,Adult Social Care,Adult Social Care,Autism West Midlands,09/02/2015,,6289.28,ASC - Residential Care Permanent,321000 - Social Community Care Supplies & Services - Adult
Solihull MBC,Adult Social Care,Adult Social Care,Autism West Midlands,09/02/2015,,6358.41,ASC - Residential Care Permanent,321000 - Social Community Care Supplies & Services - Adult
Solihull MBC,Adult Social Care,Adult Social Care,Autism West Midlands,09/02/2015,,6629.66,ASC - Residential Care Permanent,321000 - Social Community Care Supplies & Services - Adult
Solihull MBC,Adult Social Care,Adult Social Care,Autism West Midlands,09/02/2015,,6358.41,ASC - Residential Care Permanent,321000 - Social Community Care Supplies & Services - Adult
Solihull MBC,Adult Social Care,Adult Social Care,Autism West Midlands,09/02/2015,,6289.28,ASC - Residential Care Permanent,321000 - Social Community Care Supplies & Services - Adult
Solihull MBC,Places,Environmental and Regulatory Services,Automatic Flare Systems Ltd,20/02/2015,,340.00,Other Contracted Services,150000 - Consultancy
Solihull MBC,Places,Cultural & Related Services,Automotive Leasing (Orders),05/02/2015,,210.70,Transport-Contract Hire,360000 - Public Transport
Solihull MBC,Places,Planning & Development Services,Automotive Leasing (Orders),26/02/2015,,343.37,Transport-Contract Hire,360000 - Public Transport
Solihull MBC,Places,Cultural & Related Services,Automotive Leasing (Orders),25/02/2015,,318.57,Transport-Contract Hire,360000 - Public Transport
Solihull MBC,Places,Cultural & Related Services,Automotive Leasing (Orders),24/02/2015,,318.57,Transport-Contract Hire,360000 - Public Transport
Solihull MBC,Places,Highways & Transport Services,Automotive Leasing (Orders),24/02/2015,,211.54,Other Contracted Services,360000 - Public Transport
Solihull MBC,Adult Social Care,Adult Social Care,Automotive Leasing (Orders),27/02/2015,,324.26,Transport-Contract Hire,360000 - Public Transport
Solihull MBC,Adult Social Care,Adult Social Care,Automotive Leasing (Orders),27/02/2015,,445.24,Transport-Contract Hire,360000 - Public Transport
Solihull MBC,Adult Social Care,Adult Social Care,Automotive Leasing (Orders),27/02/2015,,341.28,Transport-Contract Hire,360000 - Public Transport
Solihull MBC,Adult Social Care,Adult Social Care,Automotive Leasing (Orders),27/02/2015,,324.26,Transport-Contract Hire,360000 - Public Transport
Solihull MBC,Places,Cultural & Related Services,Automotive Leasing (Orders),05/02/2015,,210.70,Transport-Contract Hire,360000 - Public Transport
Solihull MBC,Places,Planning & Development Services,Automotive Leasing (Orders),26/02/2015,,305.12,Transport-Contract Hire,360000 - Public Transport
Solihull MBC,Places,Planning & Development Services,Automotive Leasing (Orders),26/02/2015,,355.25,Transport-Contract Hire,360000 - Public Transport
Solihull MBC,Adult Social Care,Adult Social Care,Avalon Court Care Centre,09/02/2015,,1206.83,ASC - Nursing Care Permanent,Not Yet Classified
Solihull MBC,Adult Social Care,Adult Social Care,Avery Homes Wolverhampton,09/02/2015,,1577.90,ASC - Residential Care Permanent,Not Yet Classified
Solihull MBC,Resources,Central Services to the Public,Aviva,27/02/2015,,926.44,Fees & Charges,Not Yet Classified
Solihull MBC,Children's Services - DSG Schools - Non DMT,Children & Education Services,Axcis Education Recruitment,24/02/2015,,680.00,Agency Staff: Teachers,Not Yet Classified
Solihull MBC,Children's Services - DSG Schools - Non DMT,Children & Education Services,Axcis Education Recruitment,02/02/2015,,680.00,Agency Staff: Teachers,Not Yet Classified
Solihull MBC,Children's Services - DSG Schools - Non DMT,Children & Education Services,Axcis Education Recruitment,02/02/2015,,680.00,Agency Staff: Teachers,Not Yet Classified
Solihull MBC,Children's Services - DSG Schools - Non DMT,Children & Education Services,Axis,06/02/2015,,940.00,Building Maint Day To Day,Not Yet Classified
Solihull MBC,Places,Highways & Transport Services,Axis Surveys,17/02/2015,,3745.00,Contractors,Not Yet Classified
Solihull MBC,Resources,Central Services to the Public,B & K Building Services Ltd,17/02/2015,,20434.12,Contractors,Not Yet Classified
Solihull MBC,Resources,Central Services to the Public,B & K Building Services Ltd,17/02/2015,,6386.17,Contractors,Not Yet Classified
Solihull MBC,Resources,Central Services to the Public,B & K Building Services Ltd,17/02/2015,,13591.97,Contractors,Not Yet Classified
Solihull MBC,Resources,Central Services to the Public,B & K Building Services Ltd,17/02/2015,,116355.09,Contractors,Not Yet Classified
Solihull MBC,Places,Highways & Transport Services,B3 Creative Ltd,20/02/2015,,5450.00,Materials,Not Yet Classified
Solihull MBC,Places,Highways & Transport Services,B3 Creative Ltd,05/02/2015,,2530.00,Materials,Not Yet Classified
Solihull MBC,Places,Highways & Transport Services,B3 Creative Ltd,12/02/2015,,1170.78,Materials,Not Yet Classified
Solihull MBC,Places,Highways & Transport Services,Balfour Beatty Living Places Ltd,11/02/2015,,193312.35,Contractors,"391400 - Works - Construction, Repair & Maintenance"
Solihull MBC,Places,Highways & Transport Services,Balfour Beatty Living Places Ltd,11/02/2015,,140037.48,Contractors,"391400 - Works - Construction, Repair & Maintenance"
Solihull MBC,Places,Highways & Transport Services,Balfour Beatty Living Places Ltd,23/02/2015,,122.03,Other Contracted Services,"391400 - Works - Construction, Repair & Maintenance"
Solihull MBC,Places,Highways & Transport Services,Balfour Beatty Living Places Ltd,23/02/2015,,11199.99,Contractors,"391400 - Works - Construction, Repair & Maintenance"
Solihull MBC,Places,Highways & Transport Services,Balfour Beatty Living Places Ltd,23/02/2015,,105.20,Other Contracted Services,"391400 - Works - Construction, Repair & Maintenance"
Solihull MBC,Places,Highways & Transport Services,Balfour Beatty Living Places Ltd,23/02/2015,,105.20,Other Contracted Services,"391400 - Works - Construction, Repair & Maintenance"
Solihull MBC,Places,Highways & Transport Services,Balfour Beatty Living Places Ltd,23/02/2015,,94.71,Other Contracted Services,"391400 - Works - Construction, Repair & Maintenance"
Solihull MBC,Places,Highways & Transport Services,Balfour Beatty Living Places Ltd,23/02/2015,,-11094.16,Contractors,"391400 - Works - Construction, Repair & Maintenance"
Solihull MBC,Places,Highways & Transport Services,Balfour Beatty Living Places Ltd,23/02/2015,,105.20,Other Contracted Services,"391400 - Works - Construction, Repair & Maintenance"
Solihull MBC,Places,Highways & Transport Services,Balfour Beatty Living Places Ltd,23/02/2015,,105.20,Contractors,"391400 - Works - Construction, Repair & Maintenance"
Solihull MBC,Places,Highways & Transport Services,Balfour Beatty Living Places Ltd,23/02/2015,,102.67,Other Contracted Services,"391400 - Works - Construction, Repair & Maintenance"
Solihull MBC,Places,Highways & Transport Services,Balfour Beatty Living Places Ltd,23/02/2015,,97.71,Other Contracted Services,"391400 - Works - Construction, Repair & Maintenance"
Solihull MBC,Places,Highways & Transport Services,Balfour Beatty Living Places Ltd,23/02/2015,,92.81,Other Contracted Services,"391400 - Works - Construction, Repair & Maintenance"
Solihull MBC,Places,Highways & Transport Services,Balfour Beatty Living Places Ltd,23/02/2015,,85.14,Other Contracted Services,"391400 - Works - Construction, Repair & Maintenance"
Solihull MBC,Places,Highways & Transport Services,Balfour Beatty Living Places Ltd,23/02/2015,,70.13,Other Contracted Services,"391400 - Works - Construction, Repair & Maintenance"
Solihull MBC,Places,Highways & Transport Services,Balfour Beatty Living Places Ltd,23/02/2015,,70.13,Other Contracted Services,"391400 - Works - Construction, Repair & Maintenance"
Solihull MBC,Places,Highways & Transport Services,Balfour Beatty Living Places Ltd,23/02/2015,,70.13,Other Contracted Services,"391400 - Works - Construction, Repair & Maintenance"
Solihull MBC,Places,Highways & Transport Services,Balfour Beatty Living Places Ltd,23/02/2015,,70.13,Other Contracted Services,"391400 - Works - Construction, Repair & Maintenance"
Solihull MBC,Places,Highways & Transport Services,Balfour Beatty Living Places Ltd,23/02/2015,,70.13,Other Contracted Services,"391400 - Works - Construction, Repair & Maintenance"
Solihull MBC,Places,Highways & Transport Services,Balfour Beatty Living Places Ltd,23/02/2015,,70.13,Other Contracted Services,"391400 - Works - Construction, Repair & Maintenance"
Solihull MBC,Places,Highways & Transport Services,Balfour Beatty Living Places Ltd,23/02/2015,,70.13,Other Contracted Services,"391400 - Works - Construction, Repair & Maintenance"
Solihull MBC,Places,Highways & Transport Services,Balfour Beatty Living Places Ltd,23/02/2015,,56.16,Other Contracted Services,"391400 - Works - Construction, Repair & Maintenance"
Solihull MBC,Places,Highways & Transport Services,Balfour Beatty Living Places Ltd,23/02/2015,,35.07,Other Contracted Services,"391400 - Works - Construction, Repair & Maintenance"
Solihull MBC,Places,Highways & Transport Services,Balfour Beatty Living Places Ltd,23/02/2015,,56.16,Other Contracted Services,"391400 - Works - Construction, Repair & Maintenance"
Solihull MBC,Places,Highways & Transport Services,Balfour Beatty Living Places Ltd,23/02/2015,,52.60,Other Contracted Services,"391400 - Works - Construction, Repair & Maintenance"
Solihull MBC,Resources,Planning & Development Services,Balfour Beatty Living Places Ltd,23/02/2015,,38.30,Other Contracted Services,"391400 - Works - Construction, Repair & Maintenance"
Solihull MBC,Places,Highways & Transport Services,Balfour Beatty Living Places Ltd,23/02/2015,,35.07,Other Contracted Services,"391400 - Works - Construction, Repair & Maintenance"
Solihull MBC,Places,Highways & Transport Services,Balfour Beatty Living Places Ltd,23/02/2015,,35.07,Other Contracted Services,"391400 - Works - Construction, Repair & Maintenance"
Solihull MBC,Places,Highways & Transport Services,Balfour Beatty Living Places Ltd,23/02/2015,,35.07,Other Contracted Services,"391400 - Works - Construction, Repair & Maintenance"
Solihull MBC,Places,Highways & Transport Services,Balfour Beatty Living Places Ltd,23/02/2015,,35.07,Other Contracted Services,"391400 - Works - Construction, Repair & Maintenance"
Solihull MBC,Places,Highways & Transport Services,Balfour Beatty Living Places Ltd,23/02/2015,,35.07,Other Contracted Services,"391400 - Works - Construction, Repair & Maintenance"
Solihull MBC,Places,Highways & Transport Services,Balfour Beatty Living Places Ltd,23/02/2015,,35.07,Other Contracted Services,"391400 - Works - Construction, Repair & Maintenance"
Solihull MBC,Places,Highways & Transport Services,Balfour Beatty Living Places Ltd,23/02/2015,,35.07,Other Contracted Services,"391400 - Works - Construction, Repair & Maintenance"
Solihull MBC,Places,Highways & Transport Services,Balfour Beatty Living Places Ltd,23/02/2015,,35.07,Other Contracted Services,"391400 - Works - Construction, Repair & Maintenance"
Solihull MBC,Places,Highways & Transport Services,Balfour Beatty Living Places Ltd,23/02/2015,,35.07,Other Contracted Services,"391400 - Works - Construction, Repair & Maintenance"
Solihull MBC,Places,Highways & Transport Services,Balfour Beatty Living Places Ltd,23/02/2015,,35.07,Other Contracted Services,"391400 - Works - Construction, Repair & Maintenance"
Solihull MBC,Places,Highways & Transport Services,Balfour Beatty Living Places Ltd,23/02/2015,,35.07,Contractors,"391400 - Works - Construction, Repair & Maintenance"
Solihull MBC,Places,Highways & Transport Services,Balfour Beatty Living Places Ltd,23/02/2015,,59632.72,Other Contracted Services,"391400 - Works - Construction, Repair & Maintenance"
Solihull MBC,Places,Highways & Transport Services,Balfour Beatty Living Places Ltd,23/02/2015,,169773.79,Contractors,"391400 - Works - Construction, Repair & Maintenance"
Solihull MBC,Places,Highways & Transport Services,Balfour Beatty Living Places Ltd,23/02/2015,,81852.33,Contractors,"391400 - Works - Construction, Repair & Maintenance"
Solihull MBC,Places,Highways & Transport Services,Balfour Beatty Living Places Ltd,23/02/2015,,64723.03,Contractors,"391400 - Works - Construction, Repair & Maintenance"
Solihull MBC,Places,Highways & Transport Services,Balfour Beatty Living Places Ltd,23/02/2015,,56066.50,Contractors,"391400 - Works - Construction, Repair & Maintenance"
Solihull MBC,Places,Highways & Transport Services,Balfour Beatty Living Places Ltd,23/02/2015,,41924.35,Other Contracted Services,"391400 - Works - Construction, Repair & Maintenance"
Solihull MBC,Places,Highways & Transport Services,Balfour Beatty Living Places Ltd,23/02/2015,,34568.18,Other Contracted Services,"391400 - Works - Construction, Repair & Maintenance"
Solihull MBC,Places,Highways & Transport Services,Balfour Beatty Living Places Ltd,23/02/2015,,32073.00,Contractors,"391400 - Works - Construction, Repair & Maintenance"
Solihull MBC,Places,Highways & Transport Services,Balfour Beatty Living Places Ltd,23/02/2015,,27559.26,Other Contracted Services,"391400 - Works - Construction, Repair & Maintenance"
Solihull MBC,Places,Highways & Transport Services,Balfour Beatty Living Places Ltd,23/02/2015,,24449.01,Other Contracted Services,"391400 - Works - Construction, Repair & Maintenance"
Solihull MBC,Places,Highways & Transport Services,Balfour Beatty Living Places Ltd,23/02/2015,,17709.37,Contractors,"391400 - Works - Construction, Repair & Maintenance"
Solihull MBC,Places,Highways & Transport Services,Balfour Beatty Living Places Ltd,23/02/2015,,17179.00,Other Contracted Services,"391400 - Works - Construction, Repair & Maintenance"
Solihull MBC,Places,Highways & Transport Services,Balfour Beatty Living Places Ltd,23/02/2015,,16205.79,Contractors,"391400 - Works - Construction, Repair & Maintenance"
Solihull MBC,Places,Highways & Transport Services,Balfour Beatty Living Places Ltd,23/02/2015,,11762.56,Other Contracted Services,"391400 - Works - Construction, Repair & Maintenance"
Solihull MBC,Places,Highways & Transport Services,Balfour Beatty Living Places Ltd,23/02/2015,,7407.65,Other Contracted Services,"391400 - Works - Construction, Repair & Maintenance"
Solihull MBC,Places,Highways & Transport Services,Balfour Beatty Living Places Ltd,23/02/2015,,5429.17,Other Contracted Services,"391400 - Works - Construction, Repair & Maintenance"
Solihull MBC,Places,Highways & Transport Services,Balfour Beatty Living Places Ltd,23/02/2015,,7176.50,Other Contracted Services,"391400 - Works - Construction, Repair & Maintenance"
Solihull MBC,Places,Highways & Transport Services,Balfour Beatty Living Places Ltd,23/02/2015,,6424.22,Other Contracted Services,"391400 - Works - Construction, Repair & Maintenance"
Solihull MBC,Places,Highways & Transport Services,Balfour Beatty Living Places Ltd,23/02/2015,,6185.11,Other Contracted Services,"391400 - Works - Construction, Repair & Maintenance"
Solihull MBC,Places,Highways & Transport Services,Balfour Beatty Living Places Ltd,23/02/2015,,4591.40,Other Contracted Services,"391400 - Works - Construction, Repair & Maintenance"
Solihull MBC,Places,Highways & Transport Services,Balfour Beatty Living Places Ltd,23/02/2015,,2332.49,Other Contracted Services,"391400 - Works - Construction, Repair & Maintenance"
Solihull MBC,Places,Highways & Transport Services,Balfour Beatty Living Places Ltd,23/02/2015,,1772.70,Other Contracted Services,"391400 - Works - Construction, Repair & Maintenance"
Solihull MBC,Places,Highways & Transport Services,Balfour Beatty Living Places Ltd,23/02/2015,,1743.46,Other Contracted Services,"391400 - Works - Construction, Repair & Maintenance"
Solihull MBC,Places,Highways & Transport Services,Balfour Beatty Living Places Ltd,23/02/2015,,1327.87,Other Contracted Services,"391400 - Works - Construction, Repair & Maintenance"
Solihull MBC,Places,Highways & Transport Services,Balfour Beatty Living Places Ltd,23/02/2015,,1327.04,Other Contracted Services,"391400 - Works - Construction, Repair & Maintenance"
Solihull MBC,Places,Highways & Transport Services,Balfour Beatty Living Places Ltd,23/02/2015,,1103.52,Other Contracted Services,"391400 - Works - Construction, Repair & Maintenance"
Solihull MBC,Places,Highways & Transport Services,Balfour Beatty Living Places Ltd,23/02/2015,,792.18,Other Contracted Services,"391400 - Works - Construction, Repair & Maintenance"
Solihull MBC,Places,Highways & Transport Services,Balfour Beatty Living Places Ltd,23/02/2015,,17.54,Other Contracted Services,"391400 - Works - Construction, Repair & Maintenance"
Solihull MBC,Places,Highways & Transport Services,Balfour Beatty Living Places Ltd,23/02/2015,,17.54,Other Contracted Services,"391400 - Works - Construction, Repair & Maintenance"
Solihull MBC,Places,Highways & Transport Services,Balfour Beatty Living Places Ltd,23/02/2015,,17.54,Other Contracted Services,"391400 - Works - Construction, Repair & Maintenance"
Solihull MBC,Places,Highways & Transport Services,Balfour Beatty Living Places Ltd,23/02/2015,,17.54,Other Contracted Services,"391400 - Works - Construction, Repair & Maintenance"
Solihull MBC,Places,Highways & Transport Services,Balfour Beatty Living Places Ltd,23/02/2015,,17.54,Other Contracted Services,"391400 - Works - Construction, Repair & Maintenance"
Solihull MBC,Places,Highways & Transport Services,Balfour Beatty Living Places Ltd,23/02/2015,,17.54,Other Contracted Services,"391400 - Works - Construction, Repair & Maintenance"
Solihull MBC,Places,Highways & Transport Services,Balfour Beatty Living Places Ltd,23/02/2015,,17.54,Other Contracted Services,"391400 - Works - Construction, Repair & Maintenance"
Solihull MBC,Places,Highways & Transport Services,Balfour Beatty Living Places Ltd,23/02/2015,,17.54,Other Contracted Services,"391400 - Works - Construction, Repair & Maintenance"
Solihull MBC,Places,Highways & Transport Services,Balfour Beatty Living Places Ltd,23/02/2015,,17.54,Other Contracted Services,"391400 - Works - Construction, Repair & Maintenance"
Solihull MBC,Places,Highways & Transport Services,Balfour Beatty Living Places Ltd,23/02/2015,,17.54,Other Contracted Services,"391400 - Works - Construction, Repair & Maintenance"
Solihull MBC,Places,Highways & Transport Services,Balfour Beatty Living Places Ltd,23/02/2015,,17.54,Other Contracted Services,"391400 - Works - Construction, Repair & Maintenance"
Solihull MBC,Places,Highways & Transport Services,Balfour Beatty Living Places Ltd,23/02/2015,,17.54,Other Contracted Services,"391400 - Works - Construction, Repair & Maintenance"
Solihull MBC,Places,Highways & Transport Services,Balfour Beatty Living Places Ltd,23/02/2015,,17.54,Other Contracted Services,"391400 - Works - Construction, Repair & Maintenance"
Solihull MBC,Places,Highways & Transport Services,Balfour Beatty Living Places Ltd,23/02/2015,,17.54,Other Contracted Services,"391400 - Works - Construction, Repair & Maintenance"
Solihull MBC,Places,Highways & Transport Services,Balfour Beatty Living Places Ltd,23/02/2015,,17.54,Other Contracted Services,"391400 - Works - Construction, Repair & Maintenance"
Solihull MBC,Places,Highways & Transport Services,Balfour Beatty Living Places Ltd,23/02/2015,,17.54,Other Contracted Services,"391400 - Works - Construction, Repair & Maintenance"
Solihull MBC,Places,Highways & Transport Services,Balfour Beatty Living Places Ltd,23/02/2015,,17.54,Other Contracted Services,"391400 - Works - Construction, Repair & Maintenance"
Solihull MBC,Places,Highways & Transport Services,Balfour Beatty Living Places Ltd,23/02/2015,,17.54,Other Contracted Services,"391400 - Works - Construction, Repair & Maintenance"
Solihull MBC,Places,Highways & Transport Services,Balfour Beatty Living Places Ltd,23/02/2015,,17.54,Contractors,"391400 - Works - Construction, Repair & Maintenance"
Solihull MBC,Places,Highways & Transport Services,Balfour Beatty Living Places Ltd,23/02/2015,,17.54,Contractors,"391400 - Works - Construction, Repair & Maintenance"
Solihull MBC,Places,Highways & Transport Services,Balfour Beatty Living Places Ltd,23/02/2015,,17.54,Contractors,"391400 - Works - Construction, Repair & Maintenance"
Solihull MBC,Places,Highways & Transport Services,Balfour Beatty Living Places Ltd,23/02/2015,,17.54,Contractors,"391400 - Works - Construction, Repair & Maintenance"
Solihull MBC,Places,Highways & Transport Services,Balfour Beatty Living Places Ltd,23/02/2015,,17.54,Contractors,"391400 - Works - Construction, Repair & Maintenance"
Solihull MBC,Places,Highways & Transport Services,Balfour Beatty Living Places Ltd,23/02/2015,,17.54,Contractors,"391400 - Works - Construction, Repair & Maintenance"
Solihull MBC,Places,Highways & Transport Services,Balfour Beatty Living Places Ltd,23/02/2015,,17.54,Contractors,"391400 - Works - Construction, Repair & Maintenance"
Solihull MBC,Places,Highways & Transport Services,Balfour Beatty Living Places Ltd,23/02/2015,,17.54,Other Contracted Services,"391400 - Works - Construction, Repair & Maintenance"
Solihull MBC,Places,Highways & Transport Services,Balfour Beatty Living Places Ltd,23/02/2015,,17.54,Contractors,"391400 - Works - Construction, Repair & Maintenance"
Solihull MBC,Places,Highways & Transport Services,Balfour Beatty Living Places Ltd,23/02/2015,,17.54,Contractors,"391400 - Works - Construction, Repair & Maintenance"
Solihull MBC,Places,Highways & Transport Services,Balfour Beatty Living Places Ltd,23/02/2015,,17.54,Contractors,"391400 - Works - Construction, Repair & Maintenance"
Solihull MBC,Places,Highways & Transport Services,Balfour Beatty Living Places Ltd,23/02/2015,,17.54,Contractors,"391400 - Works - Construction, Repair & Maintenance"
Solihull MBC,Places,Highways & Transport Services,Balfour Beatty Living Places Ltd,23/02/2015,,17.54,Other Contracted Services,"391400 - Works - Construction, Repair & Maintenance"
Solihull MBC,Places,Highways & Transport Services,Balfour Beatty Living Places Ltd,23/02/2015,,17.54,Contractors,"391400 - Works - Construction, Repair & Maintenance"
Solihull MBC,Places,Highways & Transport Services,Balfour Beatty Living Places Ltd,23/02/2015,,17.54,Contractors,"391400 - Works - Construction, Repair & Maintenance"
Solihull MBC,Places,Highways & Transport Services,Balfour Beatty Living Places Ltd,23/02/2015,,17.54,Contractors,"391400 - Works - Construction, Repair & Maintenance"
Solihull MBC,Places,Highways & Transport Services,Balfour Beatty Living Places Ltd,23/02/2015,,17.54,Contractors,"391400 - Works - Construction, Repair & Maintenance"
Solihull MBC,Places,Highways & Transport Services,Balfour Beatty Living Places Ltd,23/02/2015,,785.24,Other Contracted Services,"391400 - Works - Construction, Repair & Maintenance"
Solihull MBC,Places,Highways & Transport Services,Balfour Beatty Living Places Ltd,23/02/2015,,756.92,Other Contracted Services,"391400 - Works - Construction, Repair & Maintenance"
Solihull MBC,Places,Highways & Transport Services,Balfour Beatty Living Places Ltd,23/02/2015,,756.21,Other Contracted Services,"391400 - Works - Construction, Repair & Maintenance"
Solihull MBC,Places,Highways & Transport Services,Balfour Beatty Living Places Ltd,23/02/2015,,754.24,Other Contracted Services,"391400 - Works - Construction, Repair & Maintenance"
Solihull MBC,Places,Highways & Transport Services,Balfour Beatty Living Places Ltd,23/02/2015,,647.36,Other Contracted Services,"391400 - Works - Construction, Repair & Maintenance"
Solihull MBC,Places,Highways & Transport Services,Balfour Beatty Living Places Ltd,23/02/2015,,692.31,Other Contracted Services,"391400 - Works - Construction, Repair & Maintenance"
Solihull MBC,Places,Highways & Transport Services,Balfour Beatty Living Places Ltd,23/02/2015,,650.35,Other Contracted Services,"391400 - Works - Construction, Repair & Maintenance"
Solihull MBC,Places,Highways & Transport Services,Balfour Beatty Living Places Ltd,23/02/2015,,649.89,Other Contracted Services,"391400 - Works - Construction, Repair & Maintenance"
Solihull MBC,Places,Highways & Transport Services,Balfour Beatty Living Places Ltd,23/02/2015,,644.69,Other Contracted Services,"391400 - Works - Construction, Repair & Maintenance"
Solihull MBC,Places,Highways & Transport Services,Balfour Beatty Living Places Ltd,23/02/2015,,641.52,Other Contracted Services,"391400 - Works - Construction, Repair & Maintenance"
Solihull MBC,Places,Planning & Development Services,Balfour Beatty Living Places Ltd,23/02/2015,,626.18,Other Contracted Services,"391400 - Works - Construction, Repair & Maintenance"
Solihull MBC,Places,Highways & Transport Services,Balfour Beatty Living Places Ltd,23/02/2015,,534.04,Other Contracted Services,"391400 - Works - Construction, Repair & Maintenance"
Solihull MBC,Places,Highways & Transport Services,Balfour Beatty Living Places Ltd,23/02/2015,,532.21,Other Contracted Services,"391400 - Works - Construction, Repair & Maintenance"
Solihull MBC,Places,Highways & Transport Services,Balfour Beatty Living Places Ltd,23/02/2015,,422.27,Other Contracted Services,"391400 - Works - Construction, Repair & Maintenance"
Solihull MBC,Places,Highways & Transport Services,Balfour Beatty Living Places Ltd,23/02/2015,,366.30,Other Contracted Services,"391400 - Works - Construction, Repair & Maintenance"
Solihull MBC,Places,Highways & Transport Services,Balfour Beatty Living Places Ltd,23/02/2015,,361.64,Other Contracted Services,"391400 - Works - Construction, Repair & Maintenance"
Solihull MBC,Places,Planning & Development Services,Balfour Beatty Living Places Ltd,23/02/2015,,313.17,Other Contracted Services,"391400 - Works - Construction, Repair & Maintenance"
Solihull MBC,Places,Highways & Transport Services,Balfour Beatty Living Places Ltd,23/02/2015,,258.79,Other Contracted Services,"391400 - Works - Construction, Repair & Maintenance"
Solihull MBC,Places,Highways & Transport Services,Balfour Beatty Living Places Ltd,23/02/2015,,247.84,Other Contracted Services,"391400 - Works - Construction, Repair & Maintenance"
Solihull MBC,Places,Highways & Transport Services,Balfour Beatty Living Places Ltd,23/02/2015,,140.27,Other Contracted Services,"391400 - Works - Construction, Repair & Maintenance"
Solihull MBC,Places,Highways & Transport Services,Balfour Beatty Living Places Ltd,23/02/2015,,172.81,Other Contracted Services,"391400 - Works - Construction, Repair & Maintenance"
Solihull MBC,Places,Highways & Transport Services,Balfour Beatty Living Places Ltd,23/02/2015,,167.90,Other Contracted Services,"391400 - Works - Construction, Repair & Maintenance"
Solihull MBC,Places,Highways & Transport Services,Balfour Beatty Living Places Ltd,23/02/2015,,140.27,Other Contracted Services,"391400 - Works - Construction, Repair & Maintenance"
Solihull MBC,Places,Highways & Transport Services,Balfour Beatty Living Places Ltd,23/02/2015,,137.73,Contractors,"391400 - Works - Construction, Repair & Maintenance"
Solihull MBC,Places,Highways & Transport Services,Balfour Beatty Living Places Ltd,23/02/2015,,133.96,Other Contracted Services,"391400 - Works - Construction, Repair & Maintenance"
Solihull MBC,Places,Highways & Transport Services,Balfour Beatty Living Places Ltd,23/02/2015,,133.96,Other Contracted Services,"391400 - Works - Construction, Repair & Maintenance"
Solihull MBC,Places,Highways & Transport Services,Balfour Beatty Living Places Ltd,23/02/2015,,130.54,Other Contracted Services,"391400 - Works - Construction, Repair & Maintenance"
Solihull MBC,Places,Highways & Transport Services,Balfour Beatty Living Places Ltd,23/02/2015,,125.76,Contractors,"391400 - Works - Construction, Repair & Maintenance"
Solihull MBC,Places,Highways & Transport Services,Balfour Beatty Living Places Ltd,23/02/2015,,125.01,Other Contracted Services,"391400 - Works - Construction, Repair & Maintenance"
Solihull MBC,Places,Highways & Transport Services,Balfour Beatty Living Places Ltd,23/02/2015,,9.57,Other Contracted Services,"391400 - Works - Construction, Repair & Maintenance"
Solihull MBC,Places,Highways & Transport Services,Balfour Beatty Living Places Ltd,23/02/2015,,8.82,Contractors,"391400 - Works - Construction, Repair & Maintenance"
Solihull MBC,Places,Highways & Transport Services,Balfour Beatty Living Places Ltd,23/02/2015,,8.82,Contractors,"391400 - Works - Construction, Repair & Maintenance"
Solihull MBC,Places,Highways & Transport Services,Balfour Beatty Living Places Ltd,23/02/2015,,8.82,Other Contracted Services,"391400 - Works - Construction, Repair & Maintenance"
Solihull MBC,Places,Highways & Transport Services,Balfour Beatty Living Places Ltd,23/02/2015,,7.98,Other Contracted Services,"391400 - Works - Construction, Repair & Maintenance"
Solihull MBC,Places,Highways & Transport Services,Balfour Beatty Living Places Ltd,23/02/2015,,5.84,Other Contracted Services,"391400 - Works - Construction, Repair & Maintenance"
Solihull MBC,Places,Highways & Transport Services,Balfour Beatty Living Places Ltd,23/02/2015,,5.84,Other Contracted Services,"391400 - Works - Construction, Repair & Maintenance"
Solihull MBC,Places,Highways & Transport Services,Balfour Beatty Living Places Ltd,23/02/2015,,5.84,Other Contracted Services,"391400 - Works - Construction, Repair & Maintenance"
Solihull MBC,Places,Highways & Transport Services,Balfour Beatty Living Places Ltd,23/02/2015,,5.84,Other Contracted Services,"391400 - Works - Construction, Repair & Maintenance"
Solihull MBC,Places,Highways & Transport Services,Balfour Beatty Living Places Ltd,23/02/2015,,5.84,Other Contracted Services,"391400 - Works - Construction, Repair & Maintenance"
Solihull MBC,Places,Highways & Transport Services,Balfour Beatty Living Places Ltd,23/02/2015,,5.84,Other Contracted Services,"391400 - Works - Construction, Repair & Maintenance"
Solihull MBC,Places,Highways & Transport Services,Balfour Beatty Living Places Ltd,23/02/2015,,5.84,Contractors,"391400 - Works - Construction, Repair & Maintenance"
Solihull MBC,Places,Highways & Transport Services,Balfour Beatty Living Places Ltd,23/02/2015,,5.84,Contractors,"391400 - Works - Construction, Repair & Maintenance"
Solihull MBC,Places,Highways & Transport Services,Balfour Beatty Living Places Ltd,23/02/2015,,5.84,Contractors,"391400 - Works - Construction, Repair & Maintenance"
Solihull MBC,Places,Highways & Transport Services,Balfour Beatty Living Places Ltd,23/02/2015,,5.84,Contractors,"391400 - Works - Construction, Repair & Maintenance"
Solihull MBC,Places,Highways & Transport Services,Balfour Beatty Living Places Ltd,23/02/2015,,5.84,Other Contracted Services,"391400 - Works - Construction, Repair & Maintenance"
Solihull MBC,Places,Highways & Transport Services,Balfour Beatty Living Places Ltd,23/02/2015,,5.84,Contractors,"391400 - Works - Construction, Repair & Maintenance"
Solihull MBC,Places,Highways & Transport Services,Balfour Beatty Living Places Ltd,23/02/2015,,5.84,Contractors,"391400 - Works - Construction, Repair & Maintenance"
Solihull MBC,Places,Highways & Transport Services,Balfour Beatty Living Places Ltd,23/02/2015,,5.84,Contractors,"391400 - Works - Construction, Repair & Maintenance"
Solihull MBC,Places,Highways & Transport Services,Balfour Beatty Living Places Ltd,23/02/2015,,5.84,Contractors,"391400 - Works - Construction, Repair & Maintenance"
Solihull MBC,Places,Highways & Transport Services,Balfour Beatty Living Places Ltd,23/02/2015,,5.84,Contractors,"391400 - Works - Construction, Repair & Maintenance"
Solihull MBC,Places,Highways & Transport Services,Balfour Beatty Living Places Ltd,23/02/2015,,5.84,Contractors,"391400 - Works - Construction, Repair & Maintenance"
Solihull MBC,Places,Highways & Transport Services,Balfour Beatty Living Places Ltd,23/02/2015,,5.84,Contractors,"391400 - Works - Construction, Repair & Maintenance"
Solihull MBC,Places,Highways & Transport Services,Balfour Beatty Living Places Ltd,23/02/2015,,5.84,Contractors,"391400 - Works - Construction, Repair & Maintenance"
Solihull MBC,Places,Highways & Transport Services,Balfour Beatty Living Places Ltd,23/02/2015,,5.84,Contractors,"391400 - Works - Construction, Repair & Maintenance"
Solihull MBC,Places,Highways & Transport Services,Balfour Beatty Living Places Ltd,23/02/2015,,5.84,Contractors,"391400 - Works - Construction, Repair & Maintenance"
Solihull MBC,Places,Highways & Transport Services,Balfour Beatty Living Places Ltd,23/02/2015,,5.84,Contractors,"391400 - Works - Construction, Repair & Maintenance"
Solihull MBC,Places,Highways & Transport Services,Balfour Beatty Living Places Ltd,23/02/2015,,5.84,Contractors,"391400 - Works - Construction, Repair & Maintenance"
Solihull MBC,Places,Highways & Transport Services,Balfour Beatty Living Places Ltd,23/02/2015,,5.84,Contractors,"391400 - Works - Construction, Repair & Maintenance"
Solihull MBC,Places,Highways & Transport Services,Balfour Beatty Living Places Ltd,23/02/2015,,5.84,Other Contracted Services,"391400 - Works - Construction, Repair & Maintenance"
Solihull MBC,Places,Highways & Transport Services,Balfour Beatty Living Places Ltd,23/02/2015,,5.84,Other Contracted Services,"391400 - Works - Construction, Repair & Maintenance"
Solihull MBC,Places,Highways & Transport Services,Balfour Beatty Living Places Ltd,23/02/2015,,5.84,Other Contracted Services,"391400 - Works - Construction, Repair & Maintenance"
Solihull MBC,Places,Highways & Transport Services,Balfour Beatty Living Places Ltd,23/02/2015,,5.84,Other Contracted Services,"391400 - Works - Construction, Repair & Maintenance"
Solihull MBC,Places,Highways & Transport Services,Balfour Beatty Living Places Ltd,23/02/2015,,5.84,Contractors,"391400 - Works - Construction, Repair & Maintenance"
Solihull MBC,Places,Highways & Transport Services,Balfour Beatty Living Places Ltd,23/02/2015,,5.84,Contractors,"391400 - Works - Construction, Repair & Maintenance"
Solihull MBC,Places,Highways & Transport Services,Balfour Beatty Living Places Ltd,23/02/2015,,35.07,Other Contracted Services,"391400 - Works - Construction, Repair & Maintenance"
Solihull MBC,Places,Highways & Transport Services,Balfour Beatty Living Places Ltd,23/02/2015,,35.07,Other Contracted Services,"391400 - Works - Construction, Repair & Maintenance"
Solihull MBC,Places,Highways & Transport Services,Balfour Beatty Living Places Ltd,23/02/2015,,35.07,Other Contracted Services,"391400 - Works - Construction, Repair & Maintenance"
Solihull MBC,Places,Highways & Transport Services,Balfour Beatty Living Places Ltd,23/02/2015,,35.07,Other Contracted Services,"391400 - Works - Construction, Repair & Maintenance"
Solihull MBC,Places,Highways & Transport Services,Balfour Beatty Living Places Ltd,23/02/2015,,35.07,Other Contracted Services,"391400 - Works - Construction, Repair & Maintenance"
Solihull MBC,Places,Highways & Transport Services,Balfour Beatty Living Places Ltd,23/02/2015,,35.07,Other Contracted Services,"391400 - Works - Construction, Repair & Maintenance"
Solihull MBC,Places,Highways & Transport Services,Balfour Beatty Living Places Ltd,23/02/2015,,35.07,Contractors,"391400 - Works - Construction, Repair & Maintenance"
Solihull MBC,Places,Highways & Transport Services,Balfour Beatty Living Places Ltd,23/02/2015,,35.07,Other Contracted Services,"391400 - Works - Construction, Repair & Maintenance"
Solihull MBC,Places,Highways & Transport Services,Balfour Beatty Living Places Ltd,23/02/2015,,32.54,Other Contracted Services,"391400 - Works - Construction, Repair & Maintenance"
Solihull MBC,Places,Highways & Transport Services,Balfour Beatty Living Places Ltd,23/02/2015,,32.54,Other Contracted Services,"391400 - Works - Construction, Repair & Maintenance"
Solihull MBC,Places,Highways & Transport Services,Balfour Beatty Living Places Ltd,23/02/2015,,32.54,Other Contracted Services,"391400 - Works - Construction, Repair & Maintenance"
Solihull MBC,Places,Highways & Transport Services,Balfour Beatty Living Places Ltd,23/02/2015,,29.34,Contractors,"391400 - Works - Construction, Repair & Maintenance"
Solihull MBC,Places,Highways & Transport Services,Balfour Beatty Living Places Ltd,23/02/2015,,29.19,Other Contracted Services,"391400 - Works - Construction, Repair & Maintenance"
Solihull MBC,Places,Highways & Transport Services,Balfour Beatty Living Places Ltd,23/02/2015,,18.72,Contractors,"391400 - Works - Construction, Repair & Maintenance"
Solihull MBC,Places,Highways & Transport Services,Balfour Beatty Living Places Ltd,23/02/2015,,22.11,Other Contracted Services,"391400 - Works - Construction, Repair & Maintenance"
Solihull MBC,Places,Highways & Transport Services,Balfour Beatty Living Places Ltd,23/02/2015,,19.15,Other Contracted Services,"391400 - Works - Construction, Repair & Maintenance"
Solihull MBC,Places,Highways & Transport Services,Balfour Beatty Living Places Ltd,23/02/2015,,19.14,Contractors,"391400 - Works - Construction, Repair & Maintenance"
Solihull MBC,Places,Highways & Transport Services,Balfour Beatty Living Places Ltd,23/02/2015,,18.72,Other Contracted Services,"391400 - Works - Construction, Repair & Maintenance"
Solihull MBC,Places,Highways & Transport Services,Balfour Beatty Living Places Ltd,23/02/2015,,17.54,Other Contracted Services,"391400 - Works - Construction, Repair & Maintenance"
Solihull MBC,Places,Highways & Transport Services,Balfour Beatty Living Places Ltd,23/02/2015,,17.54,Other Contracted Services,"391400 - Works - Construction, Repair & Maintenance"
Solihull MBC,Places,Highways & Transport Services,Balfour Beatty Living Places Ltd,23/02/2015,,17.54,Other Contracted Services,"391400 - Works - Construction, Repair & Maintenance"
Solihull MBC,Places,Highways & Transport Services,Balfour Beatty Living Places Ltd,23/02/2015,,17.54,Other Contracted Services,"391400 - Works - Construction, Repair & Maintenance"
Solihull MBC,Places,Highways & Transport Services,Balfour Beatty Living Places Ltd,23/02/2015,,17.54,Other Contracted Services,"391400 - Works - Construction, Repair & Maintenance"
Solihull MBC,Places,Highways & Transport Services,Balfour Beatty Living Places Ltd,23/02/2015,,17.54,Other Contracted Services,"391400 - Works - Construction, Repair & Maintenance"
Solihull MBC,Places,Highways & Transport Services,Balfour Beatty Living Places Ltd,23/02/2015,,17.54,Other Contracted Services,"391400 - Works - Construction, Repair & Maintenance"
Solihull MBC,Places,Highways & Transport Services,Balfour Beatty Living Places Ltd,23/02/2015,,17.54,Other Contracted Services,"391400 - Works - Construction, Repair & Maintenance"
Solihull MBC,Places,Highways & Transport Services,Balfour Beatty Living Places Ltd,23/02/2015,,17.54,Other Contracted Services,"391400 - Works - Construction, Repair & Maintenance"
Solihull MBC,Places,Highways & Transport Services,Balfour Beatty Living Places Ltd,23/02/2015,,17.54,Other Contracted Services,"391400 - Works - Construction, Repair & Maintenance"
Solihull MBC,Places,Highways & Transport Services,Balfour Beatty Living Places Ltd,23/02/2015,,17.54,Other Contracted Services,"391400 - Works - Construction, Repair & Maintenance"
Solihull MBC,Places,Highways & Transport Services,Balfour Beatty Living Places Ltd,23/02/2015,,5.84,Other Contracted Services,"391400 - Works - Construction, Repair & Maintenance"
Solihull MBC,Places,Highways & Transport Services,Balfour Beatty Living Places Ltd,23/02/2015,,5.84,Other Contracted Services,"391400 - Works - Construction, Repair & Maintenance"
Solihull MBC,Places,Highways & Transport Services,Balfour Beatty Living Places Ltd,23/02/2015,,5.84,Other Contracted Services,"391400 - Works - Construction, Repair & Maintenance"
Solihull MBC,Places,Highways & Transport Services,Balfour Beatty Living Places Ltd,23/02/2015,,3.67,Other Contracted Services,"391400 - Works - Construction, Repair & Maintenance"
Solihull MBC,Places,Highways & Transport Services,Balfour Beatty Living Places Ltd,23/02/2015,,2.19,Other Contracted Services,"391400 - Works - Construction, Repair & Maintenance"
Solihull MBC,Places,Highways & Transport Services,Balfour Beatty Living Places Ltd,23/02/2015,,3.00,Contractors,"391400 - Works - Construction, Repair & Maintenance"
Solihull MBC,Places,Highways & Transport Services,Balfour Beatty Living Places Ltd,23/02/2015,,2.19,Other Contracted Services,"391400 - Works - Construction, Repair & Maintenance"
Solihull MBC,Places,Highways & Transport Services,Balfour Beatty Living Places Ltd,23/02/2015,,2.19,Other Contracted Services,"391400 - Works - Construction, Repair & Maintenance"
Solihull MBC,Places,Highways & Transport Services,Balfour Beatty Living Places Ltd,23/02/2015,,2.19,Other Contracted Services,"391400 - Works - Construction, Repair & Maintenance"
Solihull MBC,Places,Highways & Transport Services,Balfour Beatty Living Places Ltd,23/02/2015,,1.00,Other Contracted Services,"391400 - Works - Construction, Repair & Maintenance"
Solihull MBC,Places,Highways & Transport Services,Balfour Beatty Living Places Ltd,23/02/2015,,1.00,Other Contracted Services,"391400 - Works - Construction, Repair & Maintenance"
Solihull MBC,Places,Highways & Transport Services,Balfour Beatty Living Places Ltd,23/02/2015,,1.00,Other Contracted Services,"391400 - Works - Construction, Repair & Maintenance"
Solihull MBC,Places,Highways & Transport Services,Balfour Beatty Living Places Ltd,23/02/2015,,1.00,Contractors,"391400 - Works - Construction, Repair & Maintenance"
Solihull MBC,Places,Highways & Transport Services,Balfour Beatty Living Places Ltd,23/02/2015,,1.00,Contractors,"391400 - Works - Construction, Repair & Maintenance"
Solihull MBC,Places,Highways & Transport Services,Balfour Beatty Living Places Ltd,23/02/2015,,1.00,Contractors,"391400 - Works - Construction, Repair & Maintenance"
Solihull MBC,Places,Highways & Transport Services,Balfour Beatty Living Places Ltd,23/02/2015,,1.00,Contractors,"391400 - Works - Construction, Repair & Maintenance"
Solihull MBC,Places,Highways & Transport Services,Balfour Beatty Living Places Ltd,23/02/2015,,1.00,Contractors,"391400 - Works - Construction, Repair & Maintenance"
Solihull MBC,Places,Highways & Transport Services,Balfour Beatty Living Places Ltd,23/02/2015,,1.00,Contractors,"391400 - Works - Construction, Repair & Maintenance"
Solihull MBC,Places,Highways & Transport Services,Balfour Beatty Living Places Ltd,23/02/2015,,1.00,Other Contracted Services,"391400 - Works - Construction, Repair & Maintenance"
Solihull MBC,Places,Highways & Transport Services,Balfour Beatty Living Places Ltd,23/02/2015,,1.00,Other Contracted Services,"391400 - Works - Construction, Repair & Maintenance"
Solihull MBC,Places,Highways & Transport Services,Balfour Beatty Living Places Ltd,23/02/2015,,1.00,Other Contracted Services,"391400 - Works - Construction, Repair & Maintenance"
Solihull MBC,Places,Highways & Transport Services,Balfour Beatty Living Places Ltd,23/02/2015,,1.00,Other Contracted Services,"391400 - Works - Construction, Repair & Maintenance"
Solihull MBC,Places,Highways & Transport Services,Balfour Beatty Living Places Ltd,23/02/2015,,1.00,Other Contracted Services,"391400 - Works - Construction, Repair & Maintenance"
Solihull MBC,Places,Highways & Transport Services,Balfour Beatty Living Places Ltd,23/02/2015,,1.00,Other Contracted Services,"391400 - Works - Construction, Repair & Maintenance"
Solihull MBC,Places,Highways & Transport Services,Balfour Beatty Living Places Ltd,23/02/2015,,1.00,Other Contracted Services,"391400 - Works - Construction, Repair & Maintenance"
Solihull MBC,Places,Highways & Transport Services,Balfour Beatty Living Places Ltd,23/02/2015,,1.00,Contractors,"391400 - Works - Construction, Repair & Maintenance"
Solihull MBC,Places,Highways & Transport Services,Balfour Beatty Living Places Ltd,23/02/2015,,1.00,Other Contracted Services,"391400 - Works - Construction, Repair & Maintenance"
Solihull MBC,Places,Highways & Transport Services,Balfour Beatty Living Places Ltd,23/02/2015,,0.86,Other Contracted Services,"391400 - Works - Construction, Repair & Maintenance"
Solihull MBC,Places,Highways & Transport Services,Balfour Beatty Living Places Ltd,23/02/2015,,17.54,Contractors,"391400 - Works - Construction, Repair & Maintenance"
Solihull MBC,Places,Highways & Transport Services,Balfour Beatty Living Places Ltd,23/02/2015,,17.54,Contractors,"391400 - Works - Construction, Repair & Maintenance"
Solihull MBC,Places,Highways & Transport Services,Balfour Beatty Living Places Ltd,23/02/2015,,17.54,Other Contracted Services,"391400 - Works - Construction, Repair & Maintenance"
Solihull MBC,Places,Highways & Transport Services,Balfour Beatty Living Places Ltd,23/02/2015,,17.54,Contractors,"391400 - Works - Construction, Repair & Maintenance"
Solihull MBC,Places,Highways & Transport Services,Balfour Beatty Living Places Ltd,23/02/2015,,17.54,Other Contracted Services,"391400 - Works - Construction, Repair & Maintenance"
Solihull MBC,Places,Highways & Transport Services,Balfour Beatty Living Places Ltd,23/02/2015,,17.54,Contractors,"391400 - Works - Construction, Repair & Maintenance"
Solihull MBC,Places,Highways & Transport Services,Balfour Beatty Living Places Ltd,23/02/2015,,17.54,Contractors,"391400 - Works - Construction, Repair & Maintenance"
Solihull MBC,Places,Highways & Transport Services,Balfour Beatty Living Places Ltd,23/02/2015,,17.54,Contractors,"391400 - Works - Construction, Repair & Maintenance"
Solihull MBC,Places,Highways & Transport Services,Balfour Beatty Living Places Ltd,23/02/2015,,16.27,Other Contracted Services,"391400 - Works - Construction, Repair & Maintenance"
Solihull MBC,Places,Highways & Transport Services,Balfour Beatty Living Places Ltd,23/02/2015,,16.27,Other Contracted Services,"391400 - Works - Construction, Repair & Maintenance"
Solihull MBC,Places,Highways & Transport Services,Balfour Beatty Living Places Ltd,23/02/2015,,16.27,Other Contracted Services,"391400 - Works - Construction, Repair & Maintenance"
Solihull MBC,Places,Highways & Transport Services,Balfour Beatty Living Places Ltd,23/02/2015,,16.27,Other Contracted Services,"391400 - Works - Construction, Repair & Maintenance"
Solihull MBC,Places,Highways & Transport Services,Balfour Beatty Living Places Ltd,23/02/2015,,16.27,Other Contracted Services,"391400 - Works - Construction, Repair & Maintenance"
Solihull MBC,Places,Highways & Transport Services,Balfour Beatty Living Places Ltd,23/02/2015,,16.24,Other Contracted Services,"391400 - Works - Construction, Repair & Maintenance"
Solihull MBC,Places,Highways & Transport Services,Balfour Beatty Living Places Ltd,23/02/2015,,15.41,Other Contracted Services,"391400 - Works - Construction, Repair & Maintenance"
Solihull MBC,Places,Highways & Transport Services,Balfour Beatty Living Places Ltd,23/02/2015,,15.41,Other Contracted Services,"391400 - Works - Construction, Repair & Maintenance"
Solihull MBC,Places,Highways & Transport Services,Balfour Beatty Living Places Ltd,23/02/2015,,15.41,Contractors,"391400 - Works - Construction, Repair & Maintenance"
Solihull MBC,Places,Highways & Transport Services,Balfour Beatty Living Places Ltd,23/02/2015,,15.41,Other Contracted Services,"391400 - Works - Construction, Repair & Maintenance"
Solihull MBC,Places,Highways & Transport Services,Balfour Beatty Living Places Ltd,23/02/2015,,15.41,Other Contracted Services,"391400 - Works - Construction, Repair & Maintenance"
Solihull MBC,Places,Highways & Transport Services,Balfour Beatty Living Places Ltd,23/02/2015,,15.03,Contractors,"391400 - Works - Construction, Repair & Maintenance"
Solihull MBC,Places,Highways & Transport Services,Balfour Beatty Living Places Ltd,23/02/2015,,14.15,Other Contracted Services,"391400 - Works - Construction, Repair & Maintenance"
Solihull MBC,Places,Highways & Transport Services,Balfour Beatty Living Places Ltd,23/02/2015,,11.68,Other Contracted Services,"391400 - Works - Construction, Repair & Maintenance"
Solihull MBC,Places,Highways & Transport Services,Balfour Beatty Living Places Ltd,23/02/2015,,11.68,Other Contracted Services,"391400 - Works - Construction, Repair & Maintenance"
Solihull MBC,Places,Highways & Transport Services,Balfour Beatty Living Places Ltd,23/02/2015,,9.57,Contractors,"391400 - Works - Construction, Repair & Maintenance"
Solihull MBC,Places,Highways & Transport Services,Balfour Beatty Living Places Ltd,23/02/2015,,11.68,Other Contracted Services,"391400 - Works - Construction, Repair & Maintenance"
Solihull MBC,Places,Highways & Transport Services,Balfour Beatty Living Places Ltd,23/02/2015,,9.57,Other Contracted Services,"391400 - Works - Construction, Repair & Maintenance"
Solihull MBC,Places,Highways & Transport Services,Balfour Beatty Living Places Ltd,23/02/2015,,9.57,Other Contracted Services,"391400 - Works - Construction, Repair & Maintenance"
Solihull MBC,Places,Highways & Transport Services,Balfour Beatty Living Places Ltd,23/02/2015,,9.57,Other Contracted Services,"391400 - Works - Construction, Repair & Maintenance"
Solihull MBC,Places,Highways & Transport Services,Balfour Beatty Living Places Ltd,23/02/2015,,9.57,Other Contracted Services,"391400 - Works - Construction, Repair & Maintenance"
Solihull MBC,Places,Highways & Transport Services,Balfour Beatty Living Places Ltd,23/02/2015,,-1505.45,Other Contracted Services,"391400 - Works - Construction, Repair & Maintenance"
Solihull MBC,Places,Highways & Transport Services,Balfour Beatty Living Places Ltd,23/02/2015,,-1811.97,Contractors,"391400 - Works - Construction, Repair & Maintenance"
Solihull MBC,Public Health ,Adult Social Care,Balsall Common & Meridan Group P,03/02/2015,,714.17,Other Contracted Services,Not Yet Classified
Solihull MBC,Public Health ,Adult Social Care,Balsall Common & Meridan Group P,03/02/2015,,2372.92,Other Contracted Services,Not Yet Classified
Solihull MBC,Public Health ,Adult Social Care,Balsall Common & Meridan Group P,03/02/2015,,3400.00,Other Contracted Services,Not Yet Classified
Solihull MBC,Children's Services - DSG Central.,Children & Education Services,Balsall Common Primary School,26/02/2015,,1570.00,Other Contracted Services,Not Yet Classified
Solihull MBC,Children's Services - DSG Central.,Children & Education Services,Balsall Common Primary School,26/02/2015,,47327.00,Other Contracted Services,Not Yet Classified
Solihull MBC,Children's Services - DSG Central.,Children & Education Services,BAM FM Ltd,23/02/2015,,225.00,BSF Unitary Charge,261600 - Human Resources - Travel & Subsistence
Solihull MBC,Places,Highways & Transport Services,Bam Nuttall Ltd,26/02/2015,,271.20,Furniture & Equipment,Not Yet Classified
Solihull MBC,Places,Highways & Transport Services,Bam Nuttall Ltd,26/02/2015,,253.70,Furniture & Equipment,Not Yet Classified
Solihull MBC,Children's Services - DSG Schools - Non DMT,Children & Education Services,Bancroft Cruises,17/02/2015,,280.00,Visits & Pupil Activities,Not Yet Classified
Solihull MBC,Adult Social Care,Adult Social Care,Barchester Healthcare Homes Ltd,09/02/2015,,1370.16,ASC - Residential Care Permanent,321000 - Social Community Care Supplies & Services - Adult
Solihull MBC,Adult Social Care,Adult Social Care,Barchester Healthcare Homes Ltd,09/02/2015,,1706.15,ASC - Nursing Care Permanent,321000 - Social Community Care Supplies & Services - Adult
Solihull MBC,Adult Social Care,Adult Social Care,Barchester Healthcare Homes Ltd,09/02/2015,,5556.97,ASC - Residential Care Permanent,321000 - Social Community Care Supplies & Services - Adult
Solihull MBC,Adult Social Care,Adult Social Care,Barchester Healthcare Homes Ltd,11/02/2015,,1507.94,ASC - Nursing Care Permanent,321000 - Social Community Care Supplies & Services - Adult
Solihull MBC,Places,Environmental and Regulatory Services,Barclays,10/02/2015,,161.69,Other Fees,Not Yet Classified
Solihull MBC,Places,Environmental and Regulatory Services,Barclays,10/02/2015,,0.15,Other Fees,Not Yet Classified
Solihull MBC,Places,Environmental and Regulatory Services,Barclays,10/02/2015,,50.00,Other Fees,Not Yet Classified
Solihull MBC,Places,Cultural & Related Services,Barclays,10/02/2015,,57.41,Other Fees,Not Yet Classified
Solihull MBC,Places,Cultural & Related Services,Barclays,10/02/2015,,25.00,Other Fees,Not Yet Classified
Solihull MBC,Resources,Central Services to the Public,Barclays,10/02/2015,,3857.72,Other Fees,Not Yet Classified
Solihull MBC,Resources,Central Services to the Public,Barclays,10/02/2015,,7.69,Other Fees,Not Yet Classified
Solihull MBC,Places,Cultural & Related Services,Barclays,10/02/2015,,393.87,Other Fees,Not Yet Classified
Solihull MBC,Places,Cultural & Related Services,Barclays,10/02/2015,,143.08,Other Fees,Not Yet Classified
Solihull MBC,Places,Cultural & Related Services,Barclays,10/02/2015,,314.87,Other Fees,Not Yet Classified
Solihull MBC,Places,Cultural & Related Services,Barclays,10/02/2015,,30.00,Other Fees,Not Yet Classified
Solihull MBC,Places,Cultural & Related Services,Barclays,10/02/2015,,84.27,Other Fees,Not Yet Classified
Solihull MBC,Places,Cultural & Related Services,Barclays,10/02/2015,,25.00,Other Fees,Not Yet Classified
Solihull MBC,Children's Services,Children & Education Services,Barford Care,05/02/2015,,13706.43,Other Contracted Services,321100 - Social Community Care Supplies & Services - Children
Solihull MBC,Children's Services,Children & Education Services,Barnardo Services Ltd,27/02/2015,,1450.00,Training,321100 - Social Community Care Supplies & Services - Children
Solihull MBC,Children's Services,Children & Education Services,Barnardos Midlands,27/02/2015,,38832.07,Other Contracted Services,321100 - Social Community Care Supplies & Services - Children
Solihull MBC,Children's Services,Children & Education Services,Barnardos Midlands,09/02/2015,,34809.80,Other Contracted Services,321100 - Social Community Care Supplies & Services - Children
Solihull MBC,Children's Services,Children & Education Services,Barnardos Midlands,05/02/2015,,3963.57,External Fostering,321100 - Social Community Care Supplies & Services - Children
Solihull MBC,Children's Services,Children & Education Services,Barnardos Midlands,05/02/2015,,2803.73,External Fostering,321100 - Social Community Care Supplies & Services - Children
Solihull MBC,Children's Services,Children & Education Services,Barnardos Midlands,05/02/2015,,2803.73,External Fostering,321100 - Social Community Care Supplies & Services - Children
Solihull MBC,Children's Services,Children & Education Services,Barnardos Midlands,05/02/2015,,3754.42,External Fostering,321100 - Social Community Care Supplies & Services - Children
Solihull MBC,Children's Services - DSG Central.,Children & Education Services,Barnhouse Nursey T/A Daycare At St Martins,02/02/2015,,2805.00,Grant & Subscription (SCITT),321100 - Social Community Care Supplies & Services - Children
Solihull MBC,Public Health ,Adult Social Care,Barts &  London NHS Trust,25/02/2015,,574.60,Other Contracted Services,Not Yet Classified
Solihull MBC,Adult Social Care,Adult Social Care,BCOP,26/02/2015,,2856.78,ASC - Residential Care Permanent,Not Yet Classified
Solihull MBC,Adult Social Care,Adult Social Care,BCOP,09/02/2015,,924.02,ASC - Residential Care Permanent,Not Yet Classified
Solihull MBC,Adult Social Care,Adult Social Care,BCOP,09/02/2015,,1700.66,ASC - Residential Care Permanent,Not Yet Classified
Solihull MBC,Adult Social Care,Adult Social Care,BCOP,09/02/2015,,1636.78,ASC - Residential Care Permanent,Not Yet Classified
Solihull MBC,Adult Social Care,Adult Social Care,BCOP,09/02/2015,,1090.58,ASC - Residential Care Permanent,Not Yet Classified
Solihull MBC,Adult Social Care,Adult Social Care,BCOP,09/02/2015,,1660.67,ASC - Residential Care Permanent,Not Yet Classified
Solihull MBC,Adult Social Care,Adult Social Care,BCOP,09/02/2015,,1722.67,ASC - Residential Care Permanent,Not Yet Classified
Solihull MBC,Adult Social Care,Adult Social Care,BCOP,09/02/2015,,1641.75,ASC - Residential Care Permanent,Not Yet Classified
Solihull MBC,Adult Social Care,Adult Social Care,BCOP,09/02/2015,,1643.62,ASC - Residential Care Permanent,Not Yet Classified
Solihull MBC,Adult Social Care,Adult Social Care,BCOP,09/02/2015,,1656.95,ASC - Residential Care Permanent,Not Yet Classified
Solihull MBC,Adult Social Care,Adult Social Care,BCOP,09/02/2015,,1657.57,ASC - Residential Care Permanent,Not Yet Classified
Solihull MBC,Adult Social Care,Adult Social Care,BCOP,09/02/2015,,2249.67,ASC - Residential Care Permanent,Not Yet Classified
Solihull MBC,Adult Social Care,Adult Social Care,BCOP,09/02/2015,,1700.97,ASC - Residential Care Permanent,Not Yet Classified
Solihull MBC,Adult Social Care,Adult Social Care,BCOP,09/02/2015,,1610.76,ASC - Residential Care Permanent,Not Yet Classified
Solihull MBC,Adult Social Care,Adult Social Care,BCOP,09/02/2015,,1700.66,ASC - Residential Care Permanent,Not Yet Classified
Solihull MBC,Adult Social Care,Adult Social Care,BCOP,09/02/2015,,1628.43,ASC - Residential Care Permanent,Not Yet Classified
Solihull MBC,Adult Social Care,Adult Social Care,BCOP,09/02/2015,,1749.63,ASC - Residential Care Permanent,Not Yet Classified
Solihull MBC,Adult Social Care,Adult Social Care,BCOP,09/02/2015,,1516.52,ASC - Residential Care Permanent,Not Yet Classified
Solihull MBC,Adult Social Care,Adult Social Care,BCOP,09/02/2015,,1454.79,ASC - Residential Care Permanent,Not Yet Classified
Solihull MBC,Adult Social Care,Adult Social Care,BCOP,09/02/2015,,1845.43,ASC - Residential Care Permanent,Not Yet Classified
Solihull MBC,Adult Social Care,Adult Social Care,BCOP,09/02/2015,,1700.97,ASC - Residential Care Permanent,Not Yet Classified
Solihull MBC,Children's Services - DSG Schools - Non DMT,Children & Education Services,BDR Voice & Data Solutions Ltd,26/02/2015,,510.00,Telephones,Not Yet Classified
Solihull MBC,Children's Services,Children & Education Services,Bear Creek Adventure,06/02/2015,,600.00,Other Fees,321100 - Social Community Care Supplies & Services - Children
Solihull MBC,Children's Services,Children & Education Services,Bear Creek Adventure,06/02/2015,,150.00,Other Fees,321100 - Social Community Care Supplies & Services - Children
Solihull MBC,Children's Services - DSG Schools - Non DMT,Children & Education Services,Becky Jacobs,13/02/2015,,680.00,Professional Fees,330000 - Sports & Playground Equipment & Maintenance
Solihull MBC,Adult Social Care,Adult Social Care,Beechcroft Residential Home,09/02/2015,,992.31,ASC - Residential Care Permanent,321000 - Social Community Care Supplies & Services - Adult
Solihull MBC,Children's Services - DSG Schools - Non DMT,Children & Education Services,Belgrade Theatre,17/02/2015,,414.00,Visits & Pupil Activities,Not Yet Classified
Solihull MBC,Children's Services - DSG Schools - Non DMT,Children & Education Services,Belgrade Theatre,17/02/2015,,-74.00,Visits & Pupil Activities,Not Yet Classified
Solihull MBC,Adult Social Care,Adult Social Care,Bensons For Beds,28/01/2015,Card Transaction,319.99,Catering Provisions,211100 - Furniture & Soft Furnishings - Domestic Furniture
Solihull MBC,Children's Services - DSG Central.,Children & Education Services,Bentley Heath Primary School Ac,26/02/2015,,10946.00,Other Contracted Services,Not Yet Classified
Solihull MBC,Children's Services - DSG Central.,Children & Education Services,Bentley Heath Primary School Ac,26/02/2015,,17265.00,Other Contracted Services,Not Yet Classified
Solihull MBC,Children's Services - DSG Schools - Non DMT,Children & Education Services,Berben Installations Ltd,11/02/2015,,1480.00,Building Maint Day To Day,"391111 - Works - Construction, Repair & Maintenance - Buildings - Repair & Maintenance"
Solihull MBC,Children's Services - DSG Schools - Non DMT,Children & Education Services,Berben Installations Ltd,10/02/2015,,481.84,Building Maint Day To Day,"391111 - Works - Construction, Repair & Maintenance - Buildings - Repair & Maintenance"
Solihull MBC,Children's Services - DSG Schools - Non DMT,Children & Education Services,Berben Installations Ltd,11/02/2015,,318.00,Building Maint Day To Day,"391111 - Works - Construction, Repair & Maintenance - Buildings - Repair & Maintenance"
Solihull MBC,Children's Services - DSG Central.,Children & Education Services,Berkswell Pre School Group,02/02/2015,,412.50,Grant & Subscription (SCITT),Not Yet Classified
Solihull MBC,Public Health ,Adult Social Care,Bernays And Whitehouse,03/02/2015,,3150.00,Other Contracted Services,Not Yet Classified
Solihull MBC,Public Health ,Adult Social Care,Bernays And Whitehouse,03/02/2015,,966.23,Other Contracted Services,Not Yet Classified
Solihull MBC,Public Health ,Adult Social Care,Bernays And Whitehouse,03/02/2015,,975.49,Other Contracted Services,Not Yet Classified
Solihull MBC,Adult Social Care,Adult Social Care,Berrow Cottage Homes,24/02/2015,,469.92,Other Contracted Services,321000 - Social Community Care Supplies & Services - Adult
Solihull MBC,Places,Highways & Transport Services,BEW Electrical Distributors Ltd,10/02/2015,,535.00,Furniture & Equipment,"391111 - Works - Construction, Repair & Maintenance - Buildings - Repair & Maintenance"
Solihull MBC,Places,Highways & Transport Services,BEW Electrical Distributors Ltd,06/02/2015,,212.50,Furniture & Equipment,"391111 - Works - Construction, Repair & Maintenance - Buildings - Repair & Maintenance"
Solihull MBC,Places,Cultural & Related Services,Bibliotheca,16/02/2015,,3200.00,Software,Not Yet Classified
Solihull MBC,Children's Services - DSG Central.,Children & Education Services,Billy Bears Nursery,02/02/2015,,3300.00,Grant & Subscription (SCITT),321100 - Social Community Care Supplies & Services - Children
Solihull MBC,Children's Services - DSG Schools - Non DMT,Children & Education Services,Birmingham,05/01/2015,Card Transaction,225.00,Visits & Pupil Activities,291100 - Arts & Leisure Services - Museums & Arts
Solihull MBC,Children's Services - DSG Schools - Non DMT,Children & Education Services,Birmingham,07/01/2015,Card Transaction,225.00,Visits & Pupil Activities,291100 - Arts & Leisure Services - Museums & Arts
Solihull MBC,Children's Services - DSG Schools - Non DMT,Children & Education Services,Birmingham,05/01/2015,Card Transaction,276.00,Capitation,291100 - Arts & Leisure Services - Museums & Arts
Solihull MBC,Children's Services - DSG Schools - Non DMT,Children & Education Services,Birmingham,22/01/2015,Card Transaction,390.00,Visits & Pupil Activities,291100 - Arts & Leisure Services - Museums & Arts
Solihull MBC,Adult Social Care,Adult Social Care,Birmingham And Solihull Women's Aid,24/02/2015,,14693.31,Block Contracts,321000 - Social Community Care Supplies & Services - Adult
Solihull MBC,Adult Social Care,Adult Social Care,Birmingham And Solihull Women's Aid,24/02/2015,,7978.46,Block Contracts,321000 - Social Community Care Supplies & Services - Adult
Solihull MBC,Children's Services,Children & Education Services,Birmingham And Solihull Women's Aid,12/02/2015,,14564.25,Other Contracted Services,321000 - Social Community Care Supplies & Services - Adult
Solihull MBC,Children's Services,Children & Education Services,Birmingham And Solihull Women's Aid,12/02/2015,,2500.00,Other Contracted Services,321000 - Social Community Care Supplies & Services - Adult
Solihull MBC,Children's Services,Children & Education Services,Birmingham And Solihull Women's Aid,12/02/2015,,6250.00,Other Contracted Services,321000 - Social Community Care Supplies & Services - Adult
Solihull MBC,Adult Social Care,Adult Social Care,Birmingham Carpet Flooring Gallery Ltd,03/02/2015,,990.00,Contractors,Not Yet Classified
Solihull MBC,Adult Social Care,Adult Social Care,Birmingham Carpet Flooring Gallery Ltd,03/02/2015,,524.90,Contractors,Not Yet Classified
Solihull MBC,Resources,Court Services,Birmingham City Council,09/02/2015,,73071.00,Other Contracted Services,Not Yet Classified
Solihull MBC,Places,Highways & Transport Services,Birmingham City Council,09/02/2015,,11712.75,Professional Fees,Not Yet Classified
Solihull MBC,Resources,Central Services to the Public,Birmingham City Council,09/02/2015,,66739.00,General Creditors,Not Yet Classified
Solihull MBC,Resources,Central Services to the Public,Birmingham City Council,09/02/2015,,18284.77,General Creditors,Not Yet Classified
Solihull MBC,Children's Services,Children & Education Services,Birmingham City Council,16/02/2015,,1160.58,Clients Transport Costs,Not Yet Classified
Solihull MBC,Children's Services,Children & Education Services,Birmingham City Council,09/02/2015,,715.00,Other Fees,Not Yet Classified
Solihull MBC,Children's Services - DSG Central.,Children & Education Services,Birmingham City Council,05/02/2015,,8350.00,Professional Fees,Not Yet Classified
Solihull MBC,Resources,Planning & Development Services,Birmingham City Council,26/02/2015,,11366.78,General Creditors,Not Yet Classified
Solihull MBC,Children's Services,Children & Education Services,Birmingham City Council Shared Services,18/02/2015,,1927.85,Clients Transport Costs,Not Yet Classified
Solihull MBC,Children's Services,Children & Education Services,Birmingham City Council Shared Services,18/02/2015,,2563.70,Clients Transport Costs,Not Yet Classified
Solihull MBC,Children's Services,Children & Education Services,Birmingham City Council Shared Services,18/02/2015,,1820.34,Clients Transport Costs,Not Yet Classified
Solihull MBC,Children's Services,Children & Education Services,Birmingham City Council Shared Services,18/02/2015,,615.38,Clients Transport Costs,Not Yet Classified
Solihull MBC,Children's Services,Children & Education Services,Birmingham City Council Shared Services,18/02/2015,,3763.84,Clients Transport Costs,Not Yet Classified
Solihull MBC,Children's Services,Children & Education Services,Birmingham City Council Shared Services,18/02/2015,,3893.80,Clients Transport Costs,Not Yet Classified
Solihull MBC,Resources,Central Services to the Public,Birmingham City Council Shared Services,06/02/2015,,5681.91,Postage & Courier Services,Not Yet Classified
Solihull MBC,Children's Services,Children & Education Services,Birmingham City Council Shared Services,18/02/2015,,1774.19,Clients Transport Costs,Not Yet Classified
Solihull MBC,Children's Services - DSG Schools - Non DMT,Children & Education Services,Birmingham Diocesan Church Schools Fund,17/02/2015,,1461.77,Building Maint Planned,Not Yet Classified
Solihull MBC,Places,Planning & Development Services,Birmingham Dogs Home,09/02/2015,,-50.00,Other Fees,Not Yet Classified
Solihull MBC,Places,Planning & Development Services,Birmingham Dogs Home,09/02/2015,,850.00,Other Fees,Not Yet Classified
Solihull MBC,Adult Social Care,Adult Social Care,Birmingham Focus,09/02/2015,,986.42,ASC - Day Care,321000 - Social Community Care Supplies & Services - Adult
Solihull MBC,Adult Social Care,Adult Social Care,Birmingham Focus,09/02/2015,,2429.16,ASC - Day Care,321000 - Social Community Care Supplies & Services - Adult
Solihull MBC,Children's Services - DSG Schools - Non DMT,Children & Education Services,Birmingham Hippodrome,29/01/2015,Card Transaction,341.00,Visits & Pupil Activities,291300 - Arts & Leisure Services - Performing Arts
Solihull MBC,Children's Services - DSG Schools - Non DMT,Children & Education Services,Birmingham International Coaches Ltd,03/02/2015,,390.00,Visits & Pupil Activities,171011 - Education - School Services
Solihull MBC,Children's Services - DSG Schools - Non DMT,Children & Education Services,Birmingham International Coaches Ltd,10/02/2015,,570.00,Visits & Pupil Activities,171011 - Education - School Services
Solihull MBC,Children's Services - DSG Schools - Non DMT,Children & Education Services,Birmingham International Coaches Ltd,26/02/2015,,625.00,Visits & Pupil Activities,171011 - Education - School Services
Solihull MBC,Children's Services - DSG Schools - Non DMT,Children & Education Services,Birmingham Museums Trust,06/02/2015,,330.00,Visits & Pupil Activities,Not Yet Classified
Solihull MBC,Children's Services - DSG Schools - Non DMT,Children & Education Services,Birmingham Museums Trust,06/02/2015,,602.00,Visits & Pupil Activities,Not Yet Classified
Solihull MBC,Children's Services - DSG Schools - Non DMT,Children & Education Services,Birmingham Royal Ballet,05/02/2015,,291.66,Visits & Pupil Activities,Not Yet Classified
Solihull MBC,Children's Services - DSG Schools - Non DMT,Children & Education Services,Bishop Sports & Leisure Ltd,24/02/2015,,341.74,Capitation,330000 - Sports & Playground Equipment & Maintenance
Solihull MBC,Adult Social Care,Adult Social Care,BJCC,26/02/2015,,980.23,ASC - Residential Care Permanent,Not Yet Classified
Solihull MBC,Adult Social Care,Adult Social Care,BJCC,26/02/2015,,1280.65,ASC - Residential Care Permanent,Not Yet Classified
Solihull MBC,Children's Services - DSG Schools - Non DMT,Children & Education Services,Blackwell Adventure,11/02/2015,,966.67,Visits & Pupil Activities,321100 - Social Community Care Supplies & Services - Children
Solihull MBC,Children's Services - DSG Schools - Non DMT,Children & Education Services,Blackwell Adventure,16/02/2015,,767.25,Visits & Pupil Activities,321100 - Social Community Care Supplies & Services - Children
Solihull MBC,Children's Services - DSG Schools - Non DMT,Children & Education Services,Blackwell Adventure,10/02/2015,,557.33,Visits & Pupil Activities,321100 - Social Community Care Supplies & Services - Children
Solihull MBC,Children's Services - DSG Schools - Non DMT,Children & Education Services,Blackwell Adventure,16/02/2015,,767.25,Visits & Pupil Activities,321100 - Social Community Care Supplies & Services - Children
Solihull MBC,Children's Services - DSG Schools - Non DMT,Children & Education Services,Blossomfield Infant School Fund,03/02/2015,,25.00,Capitation,Not Yet Classified
Solihull MBC,Children's Services - DSG Schools - Non DMT,Children & Education Services,Blossomfield Infant School Fund,03/02/2015,,34.99,Capitation,Not Yet Classified
Solihull MBC,Children's Services - DSG Schools - Non DMT,Children & Education Services,Blossomfield Infant School Fund,03/02/2015,,187.50,Capitation,Not Yet Classified
Solihull MBC,Children's Services - DSG Schools - Non DMT,Children & Education Services,Blossomfield Infant School Fund,03/02/2015,,39.95,Capitation,Not Yet Classified
Solihull MBC,Children's Services - DSG Schools - Non DMT,Children & Education Services,Blossomfield Infant School Fund,03/02/2015,,11.05,Capitation,Not Yet Classified
Solihull MBC,Children's Services - DSG Schools - Non DMT,Children & Education Services,Blossomfield Infant School Fund,03/02/2015,,22.78,Capitation,Not Yet Classified
Solihull MBC,Children's Services - DSG Schools - Non DMT,Children & Education Services,Blossomfield Infant School Fund,03/02/2015,,5.84,Capitation,Not Yet Classified
Solihull MBC,Children's Services - DSG Schools - Non DMT,Children & Education Services,Blossomfield Infant School Fund,03/02/2015,,85.00,Visits & Pupil Activities,Not Yet Classified
Solihull MBC,Children's Services - DSG Schools - Non DMT,Children & Education Services,Blossomfield Infant School Fund,03/02/2015,,200.00,Capitation,Not Yet Classified
Solihull MBC,Children's Services - DSG Schools - Non DMT,Children & Education Services,Blossomfield Infant School Fund,03/02/2015,,36.60,Capitation,Not Yet Classified
Solihull MBC,Children's Services - DSG Schools - Non DMT,Children & Education Services,Blossomfield Infant School Fund,03/02/2015,,4.40,Capitation,Not Yet Classified
Solihull MBC,Children's Services - DSG Schools - Non DMT,Children & Education Services,Blossomfield Infant School Fund,03/02/2015,,20.00,Visits & Pupil Activities,Not Yet Classified
Solihull MBC,Children's Services - DSG Schools - Non DMT,Children & Education Services,Blossomfield Infant School Fund,03/02/2015,,43.01,Capitation,Not Yet Classified
Solihull MBC,Children's Services - DSG Schools - Non DMT,Children & Education Services,Blossomfield Infant School Fund,03/02/2015,,27.60,Capitation,Not Yet Classified
Solihull MBC,Children's Services - DSG Schools - Non DMT,Children & Education Services,Blossomfield Infant School Fund,03/02/2015,,31.20,Capitation,Not Yet Classified
Solihull MBC,Children's Services - DSG Schools - Non DMT,Children & Education Services,Blossomfield Infant School Fund,03/02/2015,,88.33,Capitation,Not Yet Classified
Solihull MBC,Children's Services - DSG Schools - Non DMT,Children & Education Services,Blossomfield Infant School Fund,03/02/2015,,15.85,Capitation,Not Yet Classified
Solihull MBC,Children's Services - DSG Schools - Non DMT,Children & Education Services,Blossomfield Infant School Fund,03/02/2015,,8.00,Capitation,Not Yet Classified
Solihull MBC,Children's Services - DSG Schools - Non DMT,Children & Education Services,Blossomfield Infant School Fund,03/02/2015,,285.00,Capitation,Not Yet Classified
Solihull MBC,Places,Central Services to the Public,Blue Orchid,05/02/2015,,4450.00,Other Contracted Services,150000 - Consultancy
Solihull MBC,Places,Central Services to the Public,Blue Orchid,05/02/2015,,4175.00,Professional Fees,150000 - Consultancy
Solihull MBC,Children's Services,Children & Education Services,Bluebird Care,11/02/2015,,356.00,Clients Expenses,Not Yet Classified
Solihull MBC,Children's Services,Children & Education Services,Bluebird Care,11/02/2015,,554.00,Clients Expenses,Not Yet Classified
Solihull MBC,Children's Services - DSG Schools - Non DMT,Children & Education Services,Bluepoint Corporation Ltd,05/02/2015,,555.80,Capitation,171100 - Education - Supplies
Solihull MBC,Children's Services - DSG Schools - Non DMT,Children & Education Services,Bluepoint Corporation Ltd,10/02/2015,,666.80,IT Equipment & Software,171100 - Education - Supplies
Solihull MBC,Children's Services - DSG Schools - Non DMT,Children & Education Services,Bluepoint Corporation Ltd,10/02/2015,,10.00,IT Equipment & Software,171100 - Education - Supplies
Solihull MBC,Children's Services - DSG Schools - Non DMT,Children & Education Services,Bluepoint Corporation Ltd,10/02/2015,,162.00,Consumables,171100 - Education - Supplies
Solihull MBC,Children's Services - DSG Schools - Non DMT,Children & Education Services,Bluepoint Corporation Ltd,10/02/2015,,448.15,IT Equipment & Software,171100 - Education - Supplies
Solihull MBC,Children's Services - DSG Schools - Non DMT,Children & Education Services,Bluepoint Corporation Ltd,10/02/2015,,278.60,IT Equipment & Software,171100 - Education - Supplies
Solihull MBC,Children's Services - DSG Schools - Non DMT,Children & Education Services,Bluepoint Corporation Ltd,10/02/2015,,1685.00,IT Equipment & Software,171100 - Education - Supplies
Solihull MBC,Children's Services - DSG Schools - Non DMT,Children & Education Services,Bluepoint Corporation Ltd,24/02/2015,,1195.50,IT Equipment & Software,171100 - Education - Supplies
Solihull MBC,Children's Services - DSG Schools - Non DMT,Children & Education Services,Bluepoint Corporation Ltd,24/02/2015,,4792.50,Consumables,171100 - Education - Supplies
Solihull MBC,Children's Services - DSG Schools - Non DMT,Children & Education Services,Bluepoint Corporation Ltd,24/02/2015,,357.50,Consumables,171100 - Education - Supplies
Solihull MBC,Children's Services - DSG Schools - Non DMT,Children & Education Services,Bluepoint Corporation Ltd,10/02/2015,,-666.80,IT Equipment & Software,171100 - Education - Supplies
Solihull MBC,Places,Cultural & Related Services,Blunderbus Theatre Company,10/02/2015,,2250.00,General Receipts In Advance,Not Yet Classified
Solihull MBC,Children's Services - DSG Schools - Non DMT,Children & Education Services,Bob Ritchie Ltd,03/02/2015,,480.00,Health & Safety,171011 - Education - School Services
Solihull MBC,Adult Social Care,Adult Social Care,Bondcare St Andrews Ltd,09/02/2015,,1688.44,ASC - Nursing Care Permanent,Not Yet Classified
Solihull MBC,Adult Social Care,Adult Social Care,Bondcare St Andrews Ltd,09/02/2015,,1607.93,ASC - Nursing Care Permanent,Not Yet Classified
Solihull MBC,Adult Social Care,Adult Social Care,Bondcare St Andrews Ltd,09/02/2015,,636.37,ASC - Nursing Care Permanent,Not Yet Classified
Solihull MBC,Adult Social Care,Adult Social Care,Bondcare St Andrews Ltd,26/02/2015,,599.12,ASC - Nursing Care Permanent,Not Yet Classified
Solihull MBC,Adult Social Care,Adult Social Care,Bondcare St Andrews Ltd,09/02/2015,,-1607.93,ASC - Nursing Care Permanent,Not Yet Classified
Solihull MBC,Adult Social Care,Adult Social Care,Bondcare St Andrews Ltd,09/02/2015,,1607.93,ASC - Nursing Care Permanent,Not Yet Classified
Solihull MBC,Governance  ,Central Services to the Public,Bonds Worldwide Express Ltd,12/02/2015,,243.00,Postage & Courier Services,Not Yet Classified
Solihull MBC,Public Health ,Adult Social Care,Boots The Chemist,27/02/2015,,512.82,Other Contracted Services,Not Yet Classified
Solihull MBC,Public Health ,Adult Social Care,Boots The Chemist,27/02/2015,,-512.82,Other Contracted Services,Not Yet Classified
Solihull MBC,Public Health ,Adult Social Care,Boots The Chemist,27/02/2015,,76.48,Other Contracted Services,Not Yet Classified
Solihull MBC,Public Health ,Adult Social Care,Boots The Chemist,27/02/2015,,118.88,Other Contracted Services,Not Yet Classified
Solihull MBC,Public Health ,Adult Social Care,Boots The Chemist,27/02/2015,,288.25,Other Contracted Services,Not Yet Classified
Solihull MBC,Public Health ,Adult Social Care,Boots The Chemist,27/02/2015,,-76.48,Other Contracted Services,Not Yet Classified
Solihull MBC,Public Health ,Adult Social Care,Boots The Chemist,27/02/2015,,76.48,Other Contracted Services,Not Yet Classified
Solihull MBC,Public Health ,Adult Social Care,Boots The Chemist,27/02/2015,,393.94,Other Contracted Services,Not Yet Classified
Solihull MBC,Public Health ,Adult Social Care,Boots The Chemist,27/02/2015,,170.94,Other Contracted Services,Not Yet Classified
Solihull MBC,Public Health ,Adult Social Care,Boots The Chemist,27/02/2015,,122.80,Other Contracted Services,Not Yet Classified
Solihull MBC,Public Health ,Adult Social Care,Boots The Chemist,25/02/2015,,155.90,Other Contracted Services,Not Yet Classified
Solihull MBC,Public Health ,Adult Social Care,Boots The Chemist,25/02/2015,,268.62,Other Contracted Services,Not Yet Classified
Solihull MBC,Public Health ,Adult Social Care,Boots The Chemist,25/02/2015,,121.00,Other Contracted Services,Not Yet Classified
Solihull MBC,Resources,Other Housing Services,Borshch Electric,03/02/2015,,279.17,Clients Expenses,110000 - Catering
Solihull MBC,Resources,Other Housing Services,Borshch Electric,03/02/2015,,20.83,Clients Expenses,110000 - Catering
Solihull MBC,Resources,Other Housing Services,Borshch Electric,03/02/2015,,258.34,Clients Expenses,110000 - Catering
Solihull MBC,Resources,Other Housing Services,Borshch Electric,03/02/2015,,-279.17,Clients Expenses,110000 - Catering
Solihull MBC,Resources,Other Housing Services,Borshch Electric,03/02/2015,,279.17,Clients Expenses,110000 - Catering
Solihull MBC,Resources,Other Housing Services,Borshch Electric,03/02/2015,,475.00,Clients Expenses,110000 - Catering
Solihull MBC,Resources,Other Housing Services,Borshch Electric,05/02/2015,,475.00,Clients Expenses,110000 - Catering
Solihull MBC,Resources,Other Housing Services,Borshch Electric,03/02/2015,,320.83,Clients Expenses,110000 - Catering
Solihull MBC,Resources,Other Housing Services,Borshch Electric,17/02/2015,,475.00,Clients Expenses,110000 - Catering
Solihull MBC,Resources,Other Housing Services,Borshch Electric,17/02/2015,,433.34,Clients Expenses,110000 - Catering
Solihull MBC,Resources,Other Housing Services,Borshch Electric,03/02/2015,,-258.34,Clients Expenses,110000 - Catering
Solihull MBC,Public Health ,Adult Social Care,Bosworth Medical Centre,03/02/2015,,790.96,Other Contracted Services,Not Yet Classified
Solihull MBC,Public Health ,Adult Social Care,Bosworth Medical Centre,03/02/2015,,1764.42,Other Contracted Services,Not Yet Classified
Solihull MBC,Children's Services - DSG Central.,Children & Education Services,Bosworth Wood Neighbourhood Nursery-Lawnswood,09/02/2015,,412.50,Grant & Subscription (SCITT),321100 - Social Community Care Supplies & Services - Children
Solihull MBC,Children's Services - DSG Central.,Children & Education Services,Brake Bros Foodservice Ltd,20/02/2015,,117.30,Catering Provisions,110000 - Catering
Solihull MBC,Children's Services - DSG Central.,Children & Education Services,Brake Bros Foodservice Ltd,20/02/2015,,137.02,Catering Provisions,110000 - Catering
Solihull MBC,Resources,Children & Education Services,Brake Bros Foodservice Ltd,20/02/2015,,114.10,Catering Provisions,110000 - Catering
Solihull MBC,Children's Services - DSG Central.,Children & Education Services,Brake Bros Foodservice Ltd,20/02/2015,,136.21,Catering Provisions,110000 - Catering
Solihull MBC,Children's Services - DSG Central.,Children & Education Services,Brake Bros Foodservice Ltd,20/02/2015,,135.31,Catering Provisions,110000 - Catering
Solihull MBC,Children's Services - DSG Central.,Children & Education Services,Brake Bros Foodservice Ltd,20/02/2015,,134.29,Catering Provisions,110000 - Catering
Solihull MBC,Children's Services - DSG Central.,Children & Education Services,Brake Bros Foodservice Ltd,20/02/2015,,130.21,Catering Provisions,110000 - Catering
Solihull MBC,Children's Services - DSG Central.,Children & Education Services,Brake Bros Foodservice Ltd,20/02/2015,,102.45,Catering Provisions,110000 - Catering
Solihull MBC,Children's Services - DSG Central.,Children & Education Services,Brake Bros Foodservice Ltd,20/02/2015,,111.01,Catering Provisions,110000 - Catering
Solihull MBC,Children's Services - DSG Central.,Children & Education Services,Brake Bros Foodservice Ltd,20/02/2015,,71.80,Catering Provisions,110000 - Catering
Solihull MBC,Children's Services - DSG Central.,Children & Education Services,Brake Bros Foodservice Ltd,20/02/2015,,66.45,Catering Provisions,110000 - Catering
Solihull MBC,Children's Services - DSG Central.,Children & Education Services,Brake Bros Foodservice Ltd,20/02/2015,,63.20,Catering Provisions,110000 - Catering
Solihull MBC,Children's Services - DSG Central.,Children & Education Services,Brake Bros Foodservice Ltd,20/02/2015,,51.65,Catering Provisions,110000 - Catering
Solihull MBC,Children's Services - DSG Central.,Children & Education Services,Brake Bros Foodservice Ltd,20/02/2015,,35.65,Catering Provisions,110000 - Catering
Solihull MBC,Children's Services - DSG Central.,Children & Education Services,Brake Bros Foodservice Ltd,20/02/2015,,31.65,Catering Provisions,110000 - Catering
Solihull MBC,Children's Services - DSG Central.,Children & Education Services,Brake Bros Foodservice Ltd,20/02/2015,,31.40,Catering Provisions,110000 - Catering
Solihull MBC,Children's Services - DSG Central.,Children & Education Services,Brake Bros Foodservice Ltd,20/02/2015,,31.40,Catering Provisions,110000 - Catering
Solihull MBC,Children's Services - DSG Central.,Children & Education Services,Brake Bros Foodservice Ltd,20/02/2015,,29.15,Catering Provisions,110000 - Catering
Solihull MBC,Children's Services - DSG Central.,Children & Education Services,Brake Bros Foodservice Ltd,20/02/2015,,22.80,Catering Provisions,110000 - Catering
Solihull MBC,Children's Services - DSG Central.,Children & Education Services,Brake Bros Foodservice Ltd,20/02/2015,,25.40,Catering Provisions,110000 - Catering
Solihull MBC,Children's Services - DSG Central.,Children & Education Services,Brake Bros Foodservice Ltd,20/02/2015,,25.40,Catering Provisions,110000 - Catering
Solihull MBC,Children's Services - DSG Central.,Children & Education Services,Brake Bros Foodservice Ltd,20/02/2015,,22.80,Catering Provisions,110000 - Catering
Solihull MBC,Children's Services - DSG Central.,Children & Education Services,Brake Bros Foodservice Ltd,20/02/2015,,20.25,Catering Provisions,110000 - Catering
Solihull MBC,Children's Services - DSG Central.,Children & Education Services,Brake Bros Foodservice Ltd,20/02/2015,,22.08,Catering Provisions,110000 - Catering
Solihull MBC,Children's Services - DSG Central.,Children & Education Services,Brake Bros Foodservice Ltd,20/02/2015,,20.76,Catering Provisions,110000 - Catering
Solihull MBC,Children's Services - DSG Central.,Children & Education Services,Brake Bros Foodservice Ltd,20/02/2015,,16.45,Catering Provisions,110000 - Catering
Solihull MBC,Children's Services - DSG Central.,Children & Education Services,Brake Bros Foodservice Ltd,20/02/2015,,11.40,Catering Provisions,110000 - Catering
Solihull MBC,Children's Services - DSG Central.,Children & Education Services,Brake Bros Foodservice Ltd,20/02/2015,,11.40,Catering Provisions,110000 - Catering
Solihull MBC,Children's Services - DSG Central.,Children & Education Services,Brake Bros Foodservice Ltd,20/02/2015,,11.40,Catering Provisions,110000 - Catering
Solihull MBC,Children's Services - DSG Central.,Children & Education Services,Brake Bros Foodservice Ltd,20/02/2015,,11.40,Catering Provisions,110000 - Catering
Solihull MBC,Children's Services - DSG Central.,Children & Education Services,Brake Bros Foodservice Ltd,20/02/2015,,11.40,Catering Provisions,110000 - Catering
Solihull MBC,Children's Services - DSG Central.,Children & Education Services,Brake Bros Foodservice Ltd,20/02/2015,,11.05,Catering Provisions,110000 - Catering
Solihull MBC,Children's Services - DSG Central.,Children & Education Services,Brake Bros Foodservice Ltd,20/02/2015,,4.15,Catering Provisions,110000 - Catering
Solihull MBC,Children's Services - DSG Central.,Children & Education Services,Brake Bros Foodservice Ltd,20/02/2015,,0.05,Catering Provisions,110000 - Catering
Solihull MBC,Children's Services - DSG Central.,Children & Education Services,Brake Bros Foodservice Ltd,20/02/2015,,0.02,Catering Provisions,110000 - Catering
Solihull MBC,Children's Services - DSG Central.,Children & Education Services,Brake Bros Foodservice Ltd,19/02/2015,,248.96,Catering Provisions,110000 - Catering
Solihull MBC,Children's Services - DSG Central.,Children & Education Services,Brake Bros Foodservice Ltd,19/02/2015,,362.26,Catering Provisions,110000 - Catering
Solihull MBC,Children's Services - DSG Central.,Children & Education Services,Brake Bros Foodservice Ltd,19/02/2015,,25.00,Catering Provisions,110000 - Catering
Solihull MBC,Children's Services - DSG Central.,Children & Education Services,Brake Bros Foodservice Ltd,19/02/2015,,187.24,Catering Provisions,110000 - Catering
Solihull MBC,Children's Services - DSG Central.,Children & Education Services,Brake Bros Foodservice Ltd,19/02/2015,,140.39,Catering Provisions,110000 - Catering
Solihull MBC,Children's Services - DSG Central.,Children & Education Services,Brake Bros Foodservice Ltd,19/02/2015,,139.27,Catering Provisions,110000 - Catering
Solihull MBC,Children's Services - DSG Central.,Children & Education Services,Brake Bros Foodservice Ltd,19/02/2015,,176.30,Catering Provisions,110000 - Catering
Solihull MBC,Children's Services - DSG Central.,Children & Education Services,Brake Bros Foodservice Ltd,19/02/2015,,336.56,Catering Provisions,110000 - Catering
Solihull MBC,Children's Services - DSG Central.,Children & Education Services,Brake Bros Foodservice Ltd,19/02/2015,,161.72,Catering Provisions,110000 - Catering
Solihull MBC,Children's Services - DSG Central.,Children & Education Services,Brake Bros Foodservice Ltd,20/02/2015,,567.02,Catering Provisions,110000 - Catering
Solihull MBC,Children's Services - DSG Central.,Children & Education Services,Brake Bros Foodservice Ltd,20/02/2015,,620.50,Catering Provisions,110000 - Catering
Solihull MBC,Children's Services - DSG Central.,Children & Education Services,Brake Bros Foodservice Ltd,20/02/2015,,590.87,Catering Provisions,110000 - Catering
Solihull MBC,Children's Services - DSG Central.,Children & Education Services,Brake Bros Foodservice Ltd,20/02/2015,,576.63,Catering Provisions,110000 - Catering
Solihull MBC,Children's Services - DSG Central.,Children & Education Services,Brake Bros Foodservice Ltd,20/02/2015,,562.69,Catering Provisions,110000 - Catering
Solihull MBC,Children's Services - DSG Central.,Children & Education Services,Brake Bros Foodservice Ltd,20/02/2015,,557.97,Catering Provisions,110000 - Catering
Solihull MBC,Children's Services - DSG Central.,Children & Education Services,Brake Bros Foodservice Ltd,20/02/2015,,554.03,Catering Provisions,110000 - Catering
Solihull MBC,Children's Services - DSG Central.,Children & Education Services,Brake Bros Foodservice Ltd,20/02/2015,,542.61,Catering Provisions,110000 - Catering
Solihull MBC,Children's Services - DSG Central.,Children & Education Services,Brake Bros Foodservice Ltd,20/02/2015,,541.45,Catering Provisions,110000 - Catering
Solihull MBC,Children's Services - DSG Central.,Children & Education Services,Brake Bros Foodservice Ltd,20/02/2015,,517.37,Catering Provisions,110000 - Catering
Solihull MBC,Children's Services - DSG Central.,Children & Education Services,Brake Bros Foodservice Ltd,20/02/2015,,489.17,Catering Provisions,110000 - Catering
Solihull MBC,Children's Services - DSG Central.,Children & Education Services,Brake Bros Foodservice Ltd,20/02/2015,,473.95,Catering Provisions,110000 - Catering
Solihull MBC,Children's Services - DSG Central.,Children & Education Services,Brake Bros Foodservice Ltd,20/02/2015,,472.49,Catering Provisions,110000 - Catering
Solihull MBC,Children's Services - DSG Central.,Children & Education Services,Brake Bros Foodservice Ltd,20/02/2015,,467.57,Catering Provisions,110000 - Catering
Solihull MBC,Children's Services - DSG Central.,Children & Education Services,Brake Bros Foodservice Ltd,20/02/2015,,420.71,Catering Provisions,110000 - Catering
Solihull MBC,Children's Services - DSG Central.,Children & Education Services,Brake Bros Foodservice Ltd,20/02/2015,,411.41,Catering Provisions,110000 - Catering
Solihull MBC,Children's Services - DSG Central.,Children & Education Services,Brake Bros Foodservice Ltd,20/02/2015,,407.27,Catering Provisions,110000 - Catering
Solihull MBC,Children's Services - DSG Central.,Children & Education Services,Brake Bros Foodservice Ltd,20/02/2015,,240.55,Catering Provisions,110000 - Catering
Solihull MBC,Children's Services - DSG Central.,Children & Education Services,Brake Bros Foodservice Ltd,20/02/2015,,384.64,Catering Provisions,110000 - Catering
Solihull MBC,Children's Services - DSG Central.,Children & Education Services,Brake Bros Foodservice Ltd,20/02/2015,,363.86,Catering Provisions,110000 - Catering
Solihull MBC,Children's Services - DSG Central.,Children & Education Services,Brake Bros Foodservice Ltd,20/02/2015,,356.03,Catering Provisions,110000 - Catering
Solihull MBC,Children's Services - DSG Central.,Children & Education Services,Brake Bros Foodservice Ltd,20/02/2015,,285.79,Catering Provisions,110000 - Catering
Solihull MBC,Children's Services - DSG Central.,Children & Education Services,Brake Bros Foodservice Ltd,20/02/2015,,275.95,Catering Provisions,110000 - Catering
Solihull MBC,Children's Services - DSG Central.,Children & Education Services,Brake Bros Foodservice Ltd,20/02/2015,,272.25,Catering Provisions,110000 - Catering
Solihull MBC,Children's Services - DSG Central.,Children & Education Services,Brake Bros Foodservice Ltd,20/02/2015,,258.02,Catering Provisions,110000 - Catering
Solihull MBC,Children's Services - DSG Central.,Children & Education Services,Brake Bros Foodservice Ltd,20/02/2015,,257.11,Catering Provisions,110000 - Catering
Solihull MBC,Children's Services - DSG Central.,Children & Education Services,Brake Bros Foodservice Ltd,20/02/2015,,256.79,Catering Provisions,110000 - Catering
Solihull MBC,Children's Services - DSG Central.,Children & Education Services,Brake Bros Foodservice Ltd,20/02/2015,,252.13,Catering Provisions,110000 - Catering
Solihull MBC,Children's Services - DSG Central.,Children & Education Services,Brake Bros Foodservice Ltd,20/02/2015,,246.31,Catering Provisions,110000 - Catering
Solihull MBC,Children's Services - DSG Central.,Children & Education Services,Brake Bros Foodservice Ltd,20/02/2015,,246.29,Catering Provisions,110000 - Catering
Solihull MBC,Children's Services - DSG Central.,Children & Education Services,Brake Bros Foodservice Ltd,20/02/2015,,204.97,Catering Provisions,110000 - Catering
Solihull MBC,Children's Services - DSG Central.,Children & Education Services,Brake Bros Foodservice Ltd,20/02/2015,,236.91,Catering Provisions,110000 - Catering
Solihull MBC,Children's Services - DSG Central.,Children & Education Services,Brake Bros Foodservice Ltd,20/02/2015,,229.01,Catering Provisions,110000 - Catering
Solihull MBC,Children's Services - DSG Central.,Children & Education Services,Brake Bros Foodservice Ltd,20/02/2015,,206.15,Catering Provisions,110000 - Catering
Solihull MBC,Children's Services - DSG Central.,Children & Education Services,Brake Bros Foodservice Ltd,20/02/2015,,194.62,Catering Provisions,110000 - Catering
Solihull MBC,Resources,Children & Education Services,Brake Bros Foodservice Ltd,20/02/2015,,162.10,Catering Provisions,110000 - Catering
Solihull MBC,Resources,Children & Education Services,Brake Bros Foodservice Ltd,20/02/2015,,183.43,Catering Provisions,110000 - Catering
Solihull MBC,Children's Services - DSG Central.,Children & Education Services,Brake Bros Foodservice Ltd,20/02/2015,,172.76,Catering Provisions,110000 - Catering
Solihull MBC,Children's Services - DSG Central.,Children & Education Services,Brake Bros Foodservice Ltd,20/02/2015,,170.96,Catering Provisions,110000 - Catering
Solihull MBC,Children's Services - DSG Central.,Children & Education Services,Brake Bros Foodservice Ltd,20/02/2015,,167.32,Catering Provisions,110000 - Catering
Solihull MBC,Children's Services - DSG Central.,Children & Education Services,Brake Bros Foodservice Ltd,20/02/2015,,167.07,Catering Provisions,110000 - Catering
Solihull MBC,Children's Services - DSG Central.,Children & Education Services,Brake Bros Foodservice Ltd,20/02/2015,,164.15,Catering Provisions,110000 - Catering
Solihull MBC,Children's Services - DSG Central.,Children & Education Services,Brake Bros Foodservice Ltd,20/02/2015,,152.49,Catering Provisions,110000 - Catering
Solihull MBC,Children's Services - DSG Central.,Children & Education Services,Brake Bros Foodservice Ltd,20/02/2015,,144.52,Catering Provisions,110000 - Catering
Solihull MBC,Children's Services - DSG Central.,Children & Education Services,Brake Bros Foodservice Ltd,20/02/2015,,119.90,Catering Provisions,110000 - Catering
Solihull MBC,Resources,Children & Education Services,Brake Bros Foodservice Ltd,20/02/2015,,141.48,Catering Provisions,110000 - Catering
Solihull MBC,Children's Services - DSG Central.,Children & Education Services,Brake Bros Foodservice Ltd,16/02/2015,,24.56,Catering Provisions,110000 - Catering
Solihull MBC,Children's Services - DSG Central.,Children & Education Services,Brake Bros Foodservice Ltd,16/02/2015,,24.00,Catering Provisions,110000 - Catering
Solihull MBC,Children's Services - DSG Central.,Children & Education Services,Brake Bros Foodservice Ltd,16/02/2015,,24.00,Catering Provisions,110000 - Catering
Solihull MBC,Children's Services - DSG Central.,Children & Education Services,Brake Bros Foodservice Ltd,16/02/2015,,26.57,Catering Provisions,110000 - Catering
Solihull MBC,Children's Services - DSG Central.,Children & Education Services,Brake Bros Foodservice Ltd,16/02/2015,,24.00,Catering Provisions,110000 - Catering
Solihull MBC,Children's Services - DSG Central.,Children & Education Services,Brake Bros Foodservice Ltd,16/02/2015,,24.00,Catering Provisions,110000 - Catering
Solihull MBC,Children's Services - DSG Central.,Children & Education Services,Brake Bros Foodservice Ltd,16/02/2015,,22.96,Catering Provisions,110000 - Catering
Solihull MBC,Children's Services - DSG Central.,Children & Education Services,Brake Bros Foodservice Ltd,16/02/2015,,20.01,Catering Provisions,110000 - Catering
Solihull MBC,Children's Services - DSG Central.,Children & Education Services,Brake Bros Foodservice Ltd,16/02/2015,,19.62,Catering Provisions,110000 - Catering
Solihull MBC,Children's Services - DSG Central.,Children & Education Services,Brake Bros Foodservice Ltd,16/02/2015,,19.58,Catering Provisions,110000 - Catering
Solihull MBC,Children's Services - DSG Central.,Children & Education Services,Brake Bros Foodservice Ltd,16/02/2015,,19.41,Catering Provisions,110000 - Catering
Solihull MBC,Children's Services - DSG Central.,Children & Education Services,Brake Bros Foodservice Ltd,16/02/2015,,19.20,Catering Provisions,110000 - Catering
Solihull MBC,Children's Services - DSG Central.,Children & Education Services,Brake Bros Foodservice Ltd,16/02/2015,,19.20,Catering Provisions,110000 - Catering
Solihull MBC,Children's Services - DSG Central.,Children & Education Services,Brake Bros Foodservice Ltd,16/02/2015,,19.20,Catering Provisions,110000 - Catering
Solihull MBC,Children's Services - DSG Central.,Children & Education Services,Brake Bros Foodservice Ltd,16/02/2015,,19.20,Catering Provisions,110000 - Catering
Solihull MBC,Children's Services - DSG Central.,Children & Education Services,Brake Bros Foodservice Ltd,16/02/2015,,19.86,Catering Provisions,110000 - Catering
Solihull MBC,Children's Services - DSG Central.,Children & Education Services,Brake Bros Foodservice Ltd,16/02/2015,,15.03,Catering Provisions,110000 - Catering
Solihull MBC,Children's Services - DSG Central.,Children & Education Services,Brake Bros Foodservice Ltd,16/02/2015,,15.03,Catering Provisions,110000 - Catering
Solihull MBC,Children's Services - DSG Central.,Children & Education Services,Brake Bros Foodservice Ltd,16/02/2015,,15.03,Catering Provisions,110000 - Catering
Solihull MBC,Children's Services - DSG Central.,Children & Education Services,Brake Bros Foodservice Ltd,16/02/2015,,15.03,Catering Provisions,110000 - Catering
Solihull MBC,Children's Services - DSG Central.,Children & Education Services,Brake Bros Foodservice Ltd,16/02/2015,,14.82,Catering Provisions,110000 - Catering
Solihull MBC,Children's Services - DSG Central.,Children & Education Services,Brake Bros Foodservice Ltd,16/02/2015,,15.03,Catering Provisions,110000 - Catering
Solihull MBC,Children's Services - DSG Central.,Children & Education Services,Brake Bros Foodservice Ltd,16/02/2015,,15.03,Catering Provisions,110000 - Catering
Solihull MBC,Children's Services - DSG Central.,Children & Education Services,Brake Bros Foodservice Ltd,16/02/2015,,14.82,Catering Provisions,110000 - Catering
Solihull MBC,Children's Services - DSG Central.,Children & Education Services,Brake Bros Foodservice Ltd,16/02/2015,,14.82,Catering Provisions,110000 - Catering
Solihull MBC,Children's Services - DSG Central.,Children & Education Services,Brake Bros Foodservice Ltd,16/02/2015,,14.61,Catering Provisions,110000 - Catering
Solihull MBC,Children's Services - DSG Central.,Children & Education Services,Brake Bros Foodservice Ltd,16/02/2015,,14.40,Catering Provisions,110000 - Catering
Solihull MBC,Children's Services - DSG Central.,Children & Education Services,Brake Bros Foodservice Ltd,16/02/2015,,14.40,Catering Provisions,110000 - Catering
Solihull MBC,Children's Services - DSG Central.,Children & Education Services,Brake Bros Foodservice Ltd,16/02/2015,,14.40,Catering Provisions,110000 - Catering
Solihull MBC,Children's Services - DSG Central.,Children & Education Services,Brake Bros Foodservice Ltd,16/02/2015,,15.64,Catering Provisions,110000 - Catering
Solihull MBC,Children's Services - DSG Central.,Children & Education Services,Brake Bros Foodservice Ltd,16/02/2015,,12.92,Catering Provisions,110000 - Catering
Solihull MBC,Children's Services - DSG Central.,Children & Education Services,Brake Bros Foodservice Ltd,16/02/2015,,14.46,Catering Provisions,110000 - Catering
Solihull MBC,Children's Services - DSG Central.,Children & Education Services,Brake Bros Foodservice Ltd,16/02/2015,,10.20,Catering Provisions,110000 - Catering
Solihull MBC,Children's Services - DSG Central.,Children & Education Services,Brake Bros Foodservice Ltd,16/02/2015,,10.02,Catering Provisions,110000 - Catering
Solihull MBC,Children's Services - DSG Central.,Children & Education Services,Brake Bros Foodservice Ltd,16/02/2015,,10.02,Catering Provisions,110000 - Catering
Solihull MBC,Children's Services - DSG Central.,Children & Education Services,Brake Bros Foodservice Ltd,16/02/2015,,10.02,Catering Provisions,110000 - Catering
Solihull MBC,Children's Services - DSG Central.,Children & Education Services,Brake Bros Foodservice Ltd,16/02/2015,,10.02,Catering Provisions,110000 - Catering
Solihull MBC,Children's Services - DSG Central.,Children & Education Services,Brake Bros Foodservice Ltd,16/02/2015,,10.02,Catering Provisions,110000 - Catering
Solihull MBC,Children's Services - DSG Central.,Children & Education Services,Brake Bros Foodservice Ltd,16/02/2015,,9.81,Catering Provisions,110000 - Catering
Solihull MBC,Children's Services - DSG Central.,Children & Education Services,Brake Bros Foodservice Ltd,16/02/2015,,9.81,Catering Provisions,110000 - Catering
Solihull MBC,Children's Services - DSG Central.,Children & Education Services,Brake Bros Foodservice Ltd,16/02/2015,,9.60,Catering Provisions,110000 - Catering
Solihull MBC,Children's Services - DSG Central.,Children & Education Services,Brake Bros Foodservice Ltd,16/02/2015,,9.60,Catering Provisions,110000 - Catering
Solihull MBC,Children's Services - DSG Central.,Children & Education Services,Brake Bros Foodservice Ltd,16/02/2015,,9.60,Catering Provisions,110000 - Catering
Solihull MBC,Children's Services - DSG Central.,Children & Education Services,Brake Bros Foodservice Ltd,16/02/2015,,9.60,Catering Provisions,110000 - Catering
Solihull MBC,Children's Services - DSG Central.,Children & Education Services,Brake Bros Foodservice Ltd,16/02/2015,,9.60,Catering Provisions,110000 - Catering
Solihull MBC,Children's Services - DSG Central.,Children & Education Services,Brake Bros Foodservice Ltd,16/02/2015,,9.60,Catering Provisions,110000 - Catering
Solihull MBC,Children's Services - DSG Central.,Children & Education Services,Brake Bros Foodservice Ltd,16/02/2015,,8.87,Catering Provisions,110000 - Catering
Solihull MBC,Children's Services - DSG Central.,Children & Education Services,Brake Bros Foodservice Ltd,16/02/2015,,6.46,Catering Provisions,110000 - Catering
Solihull MBC,Children's Services - DSG Central.,Children & Education Services,Brake Bros Foodservice Ltd,16/02/2015,,4.80,Catering Provisions,110000 - Catering
Solihull MBC,Children's Services - DSG Central.,Children & Education Services,Brake Bros Foodservice Ltd,16/02/2015,,4.80,Catering Provisions,110000 - Catering
Solihull MBC,Children's Services - DSG Central.,Children & Education Services,Brake Bros Foodservice Ltd,16/02/2015,,5.01,Catering Provisions,110000 - Catering
Solihull MBC,Children's Services - DSG Central.,Children & Education Services,Brake Bros Foodservice Ltd,16/02/2015,,5.01,Catering Provisions,110000 - Catering
Solihull MBC,Children's Services - DSG Central.,Children & Education Services,Brake Bros Foodservice Ltd,16/02/2015,,220.50,Catering Provisions,110000 - Catering
Solihull MBC,Children's Services - DSG Central.,Children & Education Services,Brake Bros Foodservice Ltd,16/02/2015,,216.14,Catering Provisions,110000 - Catering
Solihull MBC,Children's Services - DSG Central.,Children & Education Services,Brake Bros Foodservice Ltd,16/02/2015,,215.20,Catering Provisions,110000 - Catering
Solihull MBC,Children's Services - DSG Central.,Children & Education Services,Brake Bros Foodservice Ltd,16/02/2015,,212.16,Catering Provisions,110000 - Catering
Solihull MBC,Children's Services - DSG Central.,Children & Education Services,Brake Bros Foodservice Ltd,16/02/2015,,209.80,Catering Provisions,110000 - Catering
Solihull MBC,Children's Services - DSG Central.,Children & Education Services,Brake Bros Foodservice Ltd,16/02/2015,,207.99,Catering Provisions,110000 - Catering
Solihull MBC,Children's Services - DSG Central.,Children & Education Services,Brake Bros Foodservice Ltd,16/02/2015,,201.85,Catering Provisions,110000 - Catering
Solihull MBC,Children's Services - DSG Central.,Children & Education Services,Brake Bros Foodservice Ltd,16/02/2015,,194.82,Catering Provisions,110000 - Catering
Solihull MBC,Children's Services - DSG Central.,Children & Education Services,Brake Bros Foodservice Ltd,16/02/2015,,192.48,Catering Provisions,110000 - Catering
Solihull MBC,Children's Services - DSG Central.,Children & Education Services,Brake Bros Foodservice Ltd,16/02/2015,,188.34,Catering Provisions,110000 - Catering
Solihull MBC,Children's Services - DSG Central.,Children & Education Services,Brake Bros Foodservice Ltd,16/02/2015,,177.74,Catering Provisions,110000 - Catering
Solihull MBC,Children's Services - DSG Central.,Children & Education Services,Brake Bros Foodservice Ltd,16/02/2015,,175.31,Catering Provisions,110000 - Catering
Solihull MBC,Children's Services - DSG Central.,Children & Education Services,Brake Bros Foodservice Ltd,16/02/2015,,171.67,Catering Provisions,110000 - Catering
Solihull MBC,Children's Services - DSG Central.,Children & Education Services,Brake Bros Foodservice Ltd,16/02/2015,,165.03,Catering Provisions,110000 - Catering
Solihull MBC,Children's Services - DSG Central.,Children & Education Services,Brake Bros Foodservice Ltd,16/02/2015,,159.29,Catering Provisions,110000 - Catering
Solihull MBC,Children's Services - DSG Central.,Children & Education Services,Brake Bros Foodservice Ltd,16/02/2015,,156.44,Catering Provisions,110000 - Catering
Solihull MBC,Children's Services - DSG Central.,Children & Education Services,Brake Bros Foodservice Ltd,16/02/2015,,141.37,Catering Provisions,110000 - Catering
Solihull MBC,Children's Services - DSG Central.,Children & Education Services,Brake Bros Foodservice Ltd,16/02/2015,,149.90,Catering Provisions,110000 - Catering
Solihull MBC,Children's Services - DSG Central.,Children & Education Services,Brake Bros Foodservice Ltd,16/02/2015,,142.49,Catering Provisions,110000 - Catering
Solihull MBC,Children's Services - DSG Central.,Children & Education Services,Brake Bros Foodservice Ltd,16/02/2015,,141.65,Catering Provisions,110000 - Catering
Solihull MBC,Children's Services - DSG Central.,Children & Education Services,Brake Bros Foodservice Ltd,16/02/2015,,140.51,Catering Provisions,110000 - Catering
Solihull MBC,Children's Services - DSG Central.,Children & Education Services,Brake Bros Foodservice Ltd,16/02/2015,,140.47,Catering Provisions,110000 - Catering
Solihull MBC,Children's Services - DSG Central.,Children & Education Services,Brake Bros Foodservice Ltd,16/02/2015,,135.41,Catering Provisions,110000 - Catering
Solihull MBC,Children's Services - DSG Central.,Children & Education Services,Brake Bros Foodservice Ltd,16/02/2015,,134.62,Catering Provisions,110000 - Catering
Solihull MBC,Children's Services - DSG Central.,Children & Education Services,Brake Bros Foodservice Ltd,16/02/2015,,132.02,Catering Provisions,110000 - Catering
Solihull MBC,Children's Services - DSG Central.,Children & Education Services,Brake Bros Foodservice Ltd,16/02/2015,,131.11,Catering Provisions,110000 - Catering
Solihull MBC,Children's Services - DSG Central.,Children & Education Services,Brake Bros Foodservice Ltd,16/02/2015,,130.98,Catering Provisions,110000 - Catering
Solihull MBC,Children's Services - DSG Central.,Children & Education Services,Brake Bros Foodservice Ltd,16/02/2015,,129.96,Catering Provisions,110000 - Catering
Solihull MBC,Children's Services - DSG Central.,Children & Education Services,Brake Bros Foodservice Ltd,16/02/2015,,129.48,Catering Provisions,110000 - Catering
Solihull MBC,Children's Services - DSG Central.,Children & Education Services,Brake Bros Foodservice Ltd,16/02/2015,,128.69,Catering Provisions,110000 - Catering
Solihull MBC,Children's Services - DSG Central.,Children & Education Services,Brake Bros Foodservice Ltd,16/02/2015,,124.13,Catering Provisions,110000 - Catering
Solihull MBC,Children's Services - DSG Central.,Children & Education Services,Brake Bros Foodservice Ltd,16/02/2015,,123.79,Catering Provisions,110000 - Catering
Solihull MBC,Children's Services - DSG Central.,Children & Education Services,Brake Bros Foodservice Ltd,16/02/2015,,123.00,Catering Provisions,110000 - Catering
Solihull MBC,Children's Services - DSG Central.,Children & Education Services,Brake Bros Foodservice Ltd,16/02/2015,,107.88,Catering Provisions,110000 - Catering
Solihull MBC,Children's Services - DSG Central.,Children & Education Services,Brake Bros Foodservice Ltd,16/02/2015,,122.23,Catering Provisions,110000 - Catering
Solihull MBC,Children's Services - DSG Central.,Children & Education Services,Brake Bros Foodservice Ltd,16/02/2015,,108.10,Catering Provisions,110000 - Catering
Solihull MBC,Children's Services - DSG Central.,Children & Education Services,Brake Bros Foodservice Ltd,16/02/2015,,107.99,Catering Provisions,110000 - Catering
Solihull MBC,Children's Services - DSG Central.,Children & Education Services,Brake Bros Foodservice Ltd,16/02/2015,,105.18,Catering Provisions,110000 - Catering
Solihull MBC,Children's Services - DSG Central.,Children & Education Services,Brake Bros Foodservice Ltd,16/02/2015,,91.77,Catering Provisions,110000 - Catering
Solihull MBC,Children's Services - DSG Central.,Children & Education Services,Brake Bros Foodservice Ltd,16/02/2015,,91.68,Catering Provisions,110000 - Catering
Solihull MBC,Children's Services - DSG Central.,Children & Education Services,Brake Bros Foodservice Ltd,16/02/2015,,91.63,Catering Provisions,110000 - Catering
Solihull MBC,Children's Services - DSG Central.,Children & Education Services,Brake Bros Foodservice Ltd,16/02/2015,,77.38,Catering Provisions,110000 - Catering
Solihull MBC,Children's Services - DSG Central.,Children & Education Services,Brake Bros Foodservice Ltd,16/02/2015,,74.78,Catering Provisions,110000 - Catering
Solihull MBC,Children's Services - DSG Central.,Children & Education Services,Brake Bros Foodservice Ltd,16/02/2015,,59.56,Catering Provisions,110000 - Catering
Solihull MBC,Children's Services - DSG Central.,Children & Education Services,Brake Bros Foodservice Ltd,16/02/2015,,39.24,Catering Provisions,110000 - Catering
Solihull MBC,Children's Services - DSG Central.,Children & Education Services,Brake Bros Foodservice Ltd,16/02/2015,,38.40,Catering Provisions,110000 - Catering
Solihull MBC,Children's Services - DSG Central.,Children & Education Services,Brake Bros Foodservice Ltd,16/02/2015,,45.72,Catering Provisions,110000 - Catering
Solihull MBC,Children's Services - DSG Central.,Children & Education Services,Brake Bros Foodservice Ltd,16/02/2015,,45.48,Catering Provisions,110000 - Catering
Solihull MBC,Children's Services - DSG Central.,Children & Education Services,Brake Bros Foodservice Ltd,16/02/2015,,33.60,Catering Provisions,110000 - Catering
Solihull MBC,Children's Services - DSG Central.,Children & Education Services,Brake Bros Foodservice Ltd,16/02/2015,,39.72,Catering Provisions,110000 - Catering
Solihull MBC,Children's Services - DSG Central.,Children & Education Services,Brake Bros Foodservice Ltd,16/02/2015,,30.06,Catering Provisions,110000 - Catering
Solihull MBC,Children's Services - DSG Central.,Children & Education Services,Brake Bros Foodservice Ltd,16/02/2015,,39.41,Catering Provisions,110000 - Catering
Solihull MBC,Children's Services - DSG Central.,Children & Education Services,Brake Bros Foodservice Ltd,16/02/2015,,38.10,Catering Provisions,110000 - Catering
Solihull MBC,Children's Services - DSG Central.,Children & Education Services,Brake Bros Foodservice Ltd,16/02/2015,,30.06,Catering Provisions,110000 - Catering
Solihull MBC,Children's Services - DSG Central.,Children & Education Services,Brake Bros Foodservice Ltd,16/02/2015,,29.43,Catering Provisions,110000 - Catering
Solihull MBC,Children's Services - DSG Central.,Children & Education Services,Brake Bros Foodservice Ltd,16/02/2015,,29.14,Catering Provisions,110000 - Catering
Solihull MBC,Children's Services - DSG Central.,Children & Education Services,Brake Bros Foodservice Ltd,16/02/2015,,34.85,Catering Provisions,110000 - Catering
Solihull MBC,Children's Services - DSG Central.,Children & Education Services,Brake Bros Foodservice Ltd,16/02/2015,,28.80,Catering Provisions,110000 - Catering
Solihull MBC,Children's Services - DSG Central.,Children & Education Services,Brake Bros Foodservice Ltd,16/02/2015,,27.32,Catering Provisions,110000 - Catering
Solihull MBC,Children's Services - DSG Central.,Children & Education Services,Brake Bros Foodservice Ltd,16/02/2015,,30.48,Catering Provisions,110000 - Catering
Solihull MBC,Children's Services - DSG Central.,Children & Education Services,Brake Bros Foodservice Ltd,16/02/2015,,25.05,Catering Provisions,110000 - Catering
Solihull MBC,Children's Services - DSG Central.,Children & Education Services,Brake Bros Foodservice Ltd,16/02/2015,,25.05,Catering Provisions,110000 - Catering
Solihull MBC,Children's Services - DSG Central.,Children & Education Services,Brake Bros Foodservice Ltd,16/02/2015,,24.63,Catering Provisions,110000 - Catering
Solihull MBC,Children's Services - DSG Central.,Children & Education Services,Brake Bros Foodservice Ltd,16/02/2015,,24.59,Catering Provisions,110000 - Catering
Solihull MBC,Children's Services - DSG Central.,Children & Education Services,Brake Bros Foodservice Ltd,16/02/2015,,548.72,Catering Provisions,110000 - Catering
Solihull MBC,Children's Services - DSG Central.,Children & Education Services,Brake Bros Foodservice Ltd,16/02/2015,,522.72,Catering Provisions,110000 - Catering
Solihull MBC,Children's Services - DSG Central.,Children & Education Services,Brake Bros Foodservice Ltd,16/02/2015,,507.19,Catering Provisions,110000 - Catering
Solihull MBC,Children's Services - DSG Central.,Children & Education Services,Brake Bros Foodservice Ltd,16/02/2015,,501.62,Catering Provisions,110000 - Catering
Solihull MBC,Children's Services - DSG Central.,Children & Education Services,Brake Bros Foodservice Ltd,16/02/2015,,490.82,Catering Provisions,110000 - Catering
Solihull MBC,Children's Services - DSG Central.,Children & Education Services,Brake Bros Foodservice Ltd,16/02/2015,,489.49,Catering Provisions,110000 - Catering
Solihull MBC,Children's Services - DSG Central.,Children & Education Services,Brake Bros Foodservice Ltd,16/02/2015,,481.80,Catering Provisions,110000 - Catering
Solihull MBC,Children's Services - DSG Central.,Children & Education Services,Brake Bros Foodservice Ltd,16/02/2015,,461.81,Catering Provisions,110000 - Catering
Solihull MBC,Children's Services - DSG Central.,Children & Education Services,Brake Bros Foodservice Ltd,16/02/2015,,458.51,Catering Provisions,110000 - Catering
Solihull MBC,Children's Services - DSG Central.,Children & Education Services,Brake Bros Foodservice Ltd,16/02/2015,,435.45,Catering Provisions,110000 - Catering
Solihull MBC,Children's Services - DSG Central.,Children & Education Services,Brake Bros Foodservice Ltd,16/02/2015,,392.87,Catering Provisions,110000 - Catering
Solihull MBC,Children's Services - DSG Central.,Children & Education Services,Brake Bros Foodservice Ltd,16/02/2015,,421.14,Catering Provisions,110000 - Catering
Solihull MBC,Children's Services - DSG Central.,Children & Education Services,Brake Bros Foodservice Ltd,16/02/2015,,409.90,Catering Provisions,110000 - Catering
Solihull MBC,Children's Services - DSG Central.,Children & Education Services,Brake Bros Foodservice Ltd,16/02/2015,,397.52,Catering Provisions,110000 - Catering
Solihull MBC,Children's Services - DSG Central.,Children & Education Services,Brake Bros Foodservice Ltd,16/02/2015,,387.89,Catering Provisions,110000 - Catering
Solihull MBC,Children's Services - DSG Central.,Children & Education Services,Brake Bros Foodservice Ltd,16/02/2015,,374.59,Catering Provisions,110000 - Catering
Solihull MBC,Children's Services - DSG Central.,Children & Education Services,Brake Bros Foodservice Ltd,16/02/2015,,372.90,Catering Provisions,110000 - Catering
Solihull MBC,Children's Services - DSG Central.,Children & Education Services,Brake Bros Foodservice Ltd,16/02/2015,,372.36,Catering Provisions,110000 - Catering
Solihull MBC,Children's Services - DSG Central.,Children & Education Services,Brake Bros Foodservice Ltd,16/02/2015,,368.26,Catering Provisions,110000 - Catering
Solihull MBC,Children's Services - DSG Central.,Children & Education Services,Brake Bros Foodservice Ltd,16/02/2015,,365.11,Catering Provisions,110000 - Catering
Solihull MBC,Children's Services - DSG Central.,Children & Education Services,Brake Bros Foodservice Ltd,16/02/2015,,360.43,Catering Provisions,110000 - Catering
Solihull MBC,Children's Services - DSG Central.,Children & Education Services,Brake Bros Foodservice Ltd,16/02/2015,,343.78,Catering Provisions,110000 - Catering
Solihull MBC,Children's Services - DSG Central.,Children & Education Services,Brake Bros Foodservice Ltd,16/02/2015,,343.26,Catering Provisions,110000 - Catering
Solihull MBC,Children's Services - DSG Central.,Children & Education Services,Brake Bros Foodservice Ltd,16/02/2015,,339.54,Catering Provisions,110000 - Catering
Solihull MBC,Children's Services - DSG Central.,Children & Education Services,Brake Bros Foodservice Ltd,16/02/2015,,336.65,Catering Provisions,110000 - Catering
Solihull MBC,Children's Services - DSG Central.,Children & Education Services,Brake Bros Foodservice Ltd,16/02/2015,,336.60,Catering Provisions,110000 - Catering
Solihull MBC,Children's Services - DSG Central.,Children & Education Services,Brake Bros Foodservice Ltd,16/02/2015,,321.75,Catering Provisions,110000 - Catering
Solihull MBC,Children's Services - DSG Central.,Children & Education Services,Brake Bros Foodservice Ltd,16/02/2015,,305.04,Catering Provisions,110000 - Catering
Solihull MBC,Children's Services - DSG Central.,Children & Education Services,Brake Bros Foodservice Ltd,16/02/2015,,317.78,Catering Provisions,110000 - Catering
Solihull MBC,Children's Services - DSG Central.,Children & Education Services,Brake Bros Foodservice Ltd,16/02/2015,,317.26,Catering Provisions,110000 - Catering
Solihull MBC,Children's Services - DSG Central.,Children & Education Services,Brake Bros Foodservice Ltd,16/02/2015,,314.32,Catering Provisions,110000 - Catering
Solihull MBC,Children's Services - DSG Central.,Children & Education Services,Brake Bros Foodservice Ltd,16/02/2015,,304.48,Catering Provisions,110000 - Catering
Solihull MBC,Children's Services - DSG Central.,Children & Education Services,Brake Bros Foodservice Ltd,16/02/2015,,303.23,Catering Provisions,110000 - Catering
Solihull MBC,Children's Services - DSG Central.,Children & Education Services,Brake Bros Foodservice Ltd,16/02/2015,,303.08,Catering Provisions,110000 - Catering
Solihull MBC,Resources,Children & Education Services,Brake Bros Foodservice Ltd,16/02/2015,,302.35,Catering Provisions,110000 - Catering
Solihull MBC,Children's Services - DSG Central.,Children & Education Services,Brake Bros Foodservice Ltd,16/02/2015,,294.32,Catering Provisions,110000 - Catering
Solihull MBC,Children's Services - DSG Central.,Children & Education Services,Brake Bros Foodservice Ltd,16/02/2015,,291.33,Catering Provisions,110000 - Catering
Solihull MBC,Children's Services - DSG Central.,Children & Education Services,Brake Bros Foodservice Ltd,16/02/2015,,290.88,Catering Provisions,110000 - Catering
Solihull MBC,Children's Services - DSG Central.,Children & Education Services,Brake Bros Foodservice Ltd,16/02/2015,,290.03,Catering Provisions,110000 - Catering
Solihull MBC,Children's Services - DSG Central.,Children & Education Services,Brake Bros Foodservice Ltd,16/02/2015,,287.61,Catering Provisions,110000 - Catering
Solihull MBC,Children's Services - DSG Central.,Children & Education Services,Brake Bros Foodservice Ltd,16/02/2015,,284.87,Catering Provisions,110000 - Catering
Solihull MBC,Children's Services - DSG Central.,Children & Education Services,Brake Bros Foodservice Ltd,16/02/2015,,279.84,Catering Provisions,110000 - Catering
Solihull MBC,Children's Services - DSG Central.,Children & Education Services,Brake Bros Foodservice Ltd,16/02/2015,,278.43,Catering Provisions,110000 - Catering
Solihull MBC,Children's Services - DSG Central.,Children & Education Services,Brake Bros Foodservice Ltd,16/02/2015,,273.88,Catering Provisions,110000 - Catering
Solihull MBC,Children's Services - DSG Central.,Children & Education Services,Brake Bros Foodservice Ltd,16/02/2015,,262.28,Catering Provisions,110000 - Catering
Solihull MBC,Children's Services - DSG Central.,Children & Education Services,Brake Bros Foodservice Ltd,16/02/2015,,273.43,Catering Provisions,110000 - Catering
Solihull MBC,Children's Services - DSG Central.,Children & Education Services,Brake Bros Foodservice Ltd,16/02/2015,,269.22,Catering Provisions,110000 - Catering
Solihull MBC,Children's Services - DSG Central.,Children & Education Services,Brake Bros Foodservice Ltd,16/02/2015,,268.12,Catering Provisions,110000 - Catering
Solihull MBC,Children's Services - DSG Central.,Children & Education Services,Brake Bros Foodservice Ltd,16/02/2015,,258.13,Catering Provisions,110000 - Catering
Solihull MBC,Children's Services - DSG Central.,Children & Education Services,Brake Bros Foodservice Ltd,16/02/2015,,255.52,Catering Provisions,110000 - Catering
Solihull MBC,Children's Services - DSG Central.,Children & Education Services,Brake Bros Foodservice Ltd,16/02/2015,,254.54,Catering Provisions,110000 - Catering
Solihull MBC,Children's Services - DSG Central.,Children & Education Services,Brake Bros Foodservice Ltd,16/02/2015,,250.77,Catering Provisions,110000 - Catering
Solihull MBC,Children's Services - DSG Central.,Children & Education Services,Brake Bros Foodservice Ltd,16/02/2015,,250.47,Catering Provisions,110000 - Catering
Solihull MBC,Children's Services - DSG Central.,Children & Education Services,Brake Bros Foodservice Ltd,16/02/2015,,243.13,Catering Provisions,110000 - Catering
Solihull MBC,Children's Services - DSG Central.,Children & Education Services,Brake Bros Foodservice Ltd,16/02/2015,,237.70,Catering Provisions,110000 - Catering
Solihull MBC,Children's Services - DSG Central.,Children & Education Services,Brake Bros Foodservice Ltd,16/02/2015,,237.23,Catering Provisions,110000 - Catering
Solihull MBC,Children's Services - DSG Central.,Children & Education Services,Brake Bros Foodservice Ltd,16/02/2015,,237.11,Catering Provisions,110000 - Catering
Solihull MBC,Children's Services - DSG Central.,Children & Education Services,Brake Bros Foodservice Ltd,16/02/2015,,235.51,Catering Provisions,110000 - Catering
Solihull MBC,Children's Services - DSG Central.,Children & Education Services,Brake Bros Foodservice Ltd,16/02/2015,,233.34,Catering Provisions,110000 - Catering
Solihull MBC,Children's Services - DSG Central.,Children & Education Services,Brake Bros Foodservice Ltd,16/02/2015,,232.83,Catering Provisions,110000 - Catering
Solihull MBC,Children's Services - DSG Central.,Children & Education Services,Brake Bros Foodservice Ltd,16/02/2015,,229.60,Catering Provisions,110000 - Catering
Solihull MBC,Children's Services - DSG Central.,Children & Education Services,Brake Bros Foodservice Ltd,16/02/2015,,214.56,Catering Provisions,110000 - Catering
Solihull MBC,Children's Services - DSG Central.,Children & Education Services,Brake Bros Foodservice Ltd,16/02/2015,,223.27,Catering Provisions,110000 - Catering
Solihull MBC,Children's Services - DSG Central.,Children & Education Services,Brake Bros Foodservice Ltd,16/02/2015,,221.00,Catering Provisions,110000 - Catering
Solihull MBC,Children's Services - DSG Central.,Children & Education Services,Brake Bros Foodservice Ltd,16/02/2015,,123.10,Catering Provisions,110000 - Catering
Solihull MBC,Children's Services - DSG Central.,Children & Education Services,Brake Bros Foodservice Ltd,16/02/2015,,80.60,Catering Provisions,110000 - Catering
Solihull MBC,Resources,Children & Education Services,Brake Bros Foodservice Ltd,16/02/2015,,75.27,Catering Provisions,110000 - Catering
Solihull MBC,Children's Services - DSG Central.,Children & Education Services,Brake Bros Foodservice Ltd,16/02/2015,,75.00,Catering Provisions,110000 - Catering
Solihull MBC,Children's Services - DSG Central.,Children & Education Services,Brake Bros Foodservice Ltd,16/02/2015,,60.92,Catering Provisions,110000 - Catering
Solihull MBC,Children's Services - DSG Central.,Children & Education Services,Brake Bros Foodservice Ltd,16/02/2015,,60.92,Catering Provisions,110000 - Catering
Solihull MBC,Children's Services - DSG Central.,Children & Education Services,Brake Bros Foodservice Ltd,16/02/2015,,59.60,Catering Provisions,110000 - Catering
Solihull MBC,Children's Services - DSG Central.,Children & Education Services,Brake Bros Foodservice Ltd,16/02/2015,,51.18,Catering Provisions,110000 - Catering
Solihull MBC,Children's Services - DSG Central.,Children & Education Services,Brake Bros Foodservice Ltd,16/02/2015,,48.36,Catering Provisions,110000 - Catering
Solihull MBC,Children's Services - DSG Central.,Children & Education Services,Brake Bros Foodservice Ltd,16/02/2015,,40.66,Catering Provisions,110000 - Catering
Solihull MBC,Children's Services - DSG Central.,Children & Education Services,Brake Bros Foodservice Ltd,16/02/2015,,47.63,Catering Provisions,110000 - Catering
Solihull MBC,Children's Services - DSG Central.,Children & Education Services,Brake Bros Foodservice Ltd,16/02/2015,,30.46,Catering Provisions,110000 - Catering
Solihull MBC,Children's Services - DSG Central.,Children & Education Services,Brake Bros Foodservice Ltd,16/02/2015,,39.84,Catering Provisions,110000 - Catering
Solihull MBC,Children's Services - DSG Central.,Children & Education Services,Brake Bros Foodservice Ltd,16/02/2015,,30.46,Catering Provisions,110000 - Catering
Solihull MBC,Children's Services - DSG Central.,Children & Education Services,Brake Bros Foodservice Ltd,16/02/2015,,30.46,Catering Provisions,110000 - Catering
Solihull MBC,Children's Services - DSG Central.,Children & Education Services,Brake Bros Foodservice Ltd,16/02/2015,,30.46,Catering Provisions,110000 - Catering
Solihull MBC,Children's Services - DSG Central.,Children & Education Services,Brake Bros Foodservice Ltd,16/02/2015,,30.46,Catering Provisions,110000 - Catering
Solihull MBC,Children's Services - DSG Central.,Children & Education Services,Brake Bros Foodservice Ltd,16/02/2015,,30.46,Catering Provisions,110000 - Catering
Solihull MBC,Children's Services - DSG Central.,Children & Education Services,Brake Bros Foodservice Ltd,16/02/2015,,30.46,Catering Provisions,110000 - Catering
Solihull MBC,Children's Services - DSG Central.,Children & Education Services,Brake Bros Foodservice Ltd,16/02/2015,,30.46,Catering Provisions,110000 - Catering
Solihull MBC,Children's Services - DSG Central.,Children & Education Services,Brake Bros Foodservice Ltd,16/02/2015,,30.46,Catering Provisions,110000 - Catering
Solihull MBC,Children's Services - DSG Central.,Children & Education Services,Brake Bros Foodservice Ltd,16/02/2015,,30.46,Catering Provisions,110000 - Catering
Solihull MBC,Children's Services - DSG Central.,Children & Education Services,Brake Bros Foodservice Ltd,16/02/2015,,30.46,Catering Provisions,110000 - Catering
Solihull MBC,Children's Services - DSG Central.,Children & Education Services,Brake Bros Foodservice Ltd,16/02/2015,,30.46,Catering Provisions,110000 - Catering
Solihull MBC,Children's Services - DSG Central.,Children & Education Services,Brake Bros Foodservice Ltd,16/02/2015,,30.46,Catering Provisions,110000 - Catering
Solihull MBC,Children's Services - DSG Central.,Children & Education Services,Brake Bros Foodservice Ltd,16/02/2015,,30.46,Catering Provisions,110000 - Catering
Solihull MBC,Children's Services - DSG Central.,Children & Education Services,Brake Bros Foodservice Ltd,16/02/2015,,30.46,Catering Provisions,110000 - Catering
Solihull MBC,Children's Services - DSG Central.,Children & Education Services,Brake Bros Foodservice Ltd,16/02/2015,,30.46,Catering Provisions,110000 - Catering
Solihull MBC,Children's Services - DSG Central.,Children & Education Services,Brake Bros Foodservice Ltd,16/02/2015,,30.46,Catering Provisions,110000 - Catering
Solihull MBC,Children's Services - DSG Central.,Children & Education Services,Brake Bros Foodservice Ltd,16/02/2015,,30.46,Catering Provisions,110000 - Catering
Solihull MBC,Children's Services - DSG Central.,Children & Education Services,Brake Bros Foodservice Ltd,16/02/2015,,30.46,Catering Provisions,110000 - Catering
Solihull MBC,Children's Services - DSG Central.,Children & Education Services,Brake Bros Foodservice Ltd,16/02/2015,,30.46,Catering Provisions,110000 - Catering
Solihull MBC,Children's Services - DSG Central.,Children & Education Services,Brake Bros Foodservice Ltd,16/02/2015,,30.46,Catering Provisions,110000 - Catering
Solihull MBC,Children's Services - DSG Central.,Children & Education Services,Brake Bros Foodservice Ltd,16/02/2015,,30.46,Catering Provisions,110000 - Catering
Solihull MBC,Children's Services - DSG Central.,Children & Education Services,Brake Bros Foodservice Ltd,16/02/2015,,30.46,Catering Provisions,110000 - Catering
Solihull MBC,Children's Services - DSG Central.,Children & Education Services,Brake Bros Foodservice Ltd,16/02/2015,,30.46,Catering Provisions,110000 - Catering
Solihull MBC,Children's Services - DSG Central.,Children & Education Services,Brake Bros Foodservice Ltd,16/02/2015,,30.46,Catering Provisions,110000 - Catering
Solihull MBC,Children's Services - DSG Central.,Children & Education Services,Brake Bros Foodservice Ltd,16/02/2015,,30.46,Catering Provisions,110000 - Catering
Solihull MBC,Children's Services - DSG Central.,Children & Education Services,Brake Bros Foodservice Ltd,16/02/2015,,30.46,Catering Provisions,110000 - Catering
Solihull MBC,Children's Services - DSG Central.,Children & Education Services,Brake Bros Foodservice Ltd,16/02/2015,,32.59,Catering Provisions,110000 - Catering
Solihull MBC,Children's Services - DSG Central.,Children & Education Services,Brake Bros Foodservice Ltd,16/02/2015,,26.69,Catering Provisions,110000 - Catering
Solihull MBC,Children's Services - DSG Central.,Children & Education Services,Brake Bros Foodservice Ltd,16/02/2015,,20.38,Catering Provisions,110000 - Catering
Solihull MBC,Children's Services - DSG Central.,Children & Education Services,Brake Bros Foodservice Ltd,16/02/2015,,16.12,Catering Provisions,110000 - Catering
Solihull MBC,Children's Services - DSG Central.,Children & Education Services,Brake Bros Foodservice Ltd,16/02/2015,,14.57,Catering Provisions,110000 - Catering
Solihull MBC,Children's Services - DSG Central.,Children & Education Services,Brake Bros Foodservice Ltd,16/02/2015,,15.60,Catering Provisions,110000 - Catering
Solihull MBC,Children's Services - DSG Central.,Children & Education Services,Brake Bros Foodservice Ltd,16/02/2015,,15.24,Catering Provisions,110000 - Catering
Solihull MBC,Children's Services - DSG Central.,Children & Education Services,Brake Bros Foodservice Ltd,16/02/2015,,11.48,Catering Provisions,110000 - Catering
Solihull MBC,Children's Services - DSG Central.,Children & Education Services,Brake Bros Foodservice Ltd,16/02/2015,,10.20,Catering Provisions,110000 - Catering
Solihull MBC,Children's Services - DSG Central.,Children & Education Services,Brake Bros Foodservice Ltd,16/02/2015,,10.20,Catering Provisions,110000 - Catering
Solihull MBC,Children's Services - DSG Central.,Children & Education Services,Brake Bros Foodservice Ltd,16/02/2015,,10.20,Catering Provisions,110000 - Catering
Solihull MBC,Children's Services - DSG Central.,Children & Education Services,Brake Bros Foodservice Ltd,16/02/2015,,10.02,Catering Provisions,110000 - Catering
Solihull MBC,Children's Services - DSG Central.,Children & Education Services,Brake Bros Foodservice Ltd,16/02/2015,,10.24,Catering Provisions,110000 - Catering
Solihull MBC,Resources,Children & Education Services,Brake Bros Foodservice Ltd,16/02/2015,,6.38,Catering Provisions,110000 - Catering
Solihull MBC,Children's Services - DSG Central.,Children & Education Services,Brake Bros Foodservice Ltd,16/02/2015,,5.01,Catering Provisions,110000 - Catering
Solihull MBC,Children's Services - DSG Central.,Children & Education Services,Brake Bros Foodservice Ltd,16/02/2015,,723.03,Catering Provisions,110000 - Catering
Solihull MBC,Children's Services - DSG Central.,Children & Education Services,Brake Bros Foodservice Ltd,16/02/2015,,622.49,Catering Provisions,110000 - Catering
Solihull MBC,Children's Services - DSG Central.,Children & Education Services,Brake Bros Foodservice Ltd,16/02/2015,,583.72,Catering Provisions,110000 - Catering
Solihull MBC,Children's Services - DSG Central.,Children & Education Services,Brake Bros Foodservice Ltd,16/02/2015,,567.02,Catering Provisions,110000 - Catering
Solihull MBC,Children's Services - DSG Central.,Children & Education Services,Brake Bros Foodservice Ltd,16/02/2015,,270.74,Catering Provisions,110000 - Catering
Solihull MBC,Children's Services - DSG Central.,Children & Education Services,Brake Bros Foodservice Ltd,16/02/2015,,270.06,Catering Provisions,110000 - Catering
Solihull MBC,Children's Services - DSG Central.,Children & Education Services,Brake Bros Foodservice Ltd,16/02/2015,,269.43,Catering Provisions,110000 - Catering
Solihull MBC,Children's Services - DSG Central.,Children & Education Services,Brake Bros Foodservice Ltd,16/02/2015,,267.19,Catering Provisions,110000 - Catering
Solihull MBC,Children's Services - DSG Central.,Children & Education Services,Brake Bros Foodservice Ltd,16/02/2015,,262.88,Catering Provisions,110000 - Catering
Solihull MBC,Children's Services - DSG Central.,Children & Education Services,Brake Bros Foodservice Ltd,16/02/2015,,261.97,Catering Provisions,110000 - Catering
Solihull MBC,Children's Services - DSG Central.,Children & Education Services,Brake Bros Foodservice Ltd,16/02/2015,,261.40,Catering Provisions,110000 - Catering
Solihull MBC,Children's Services - DSG Central.,Children & Education Services,Brake Bros Foodservice Ltd,16/02/2015,,253.54,Catering Provisions,110000 - Catering
Solihull MBC,Resources,Children & Education Services,Brake Bros Foodservice Ltd,16/02/2015,,260.36,Catering Provisions,110000 - Catering
Solihull MBC,Children's Services - DSG Central.,Children & Education Services,Brake Bros Foodservice Ltd,16/02/2015,,259.97,Catering Provisions,110000 - Catering
Solihull MBC,Children's Services - DSG Central.,Children & Education Services,Brake Bros Foodservice Ltd,16/02/2015,,253.84,Catering Provisions,110000 - Catering
Solihull MBC,Children's Services - DSG Central.,Children & Education Services,Brake Bros Foodservice Ltd,16/02/2015,,250.39,Catering Provisions,110000 - Catering
Solihull MBC,Children's Services - DSG Central.,Children & Education Services,Brake Bros Foodservice Ltd,16/02/2015,,247.37,Catering Provisions,110000 - Catering
Solihull MBC,Children's Services - DSG Central.,Children & Education Services,Brake Bros Foodservice Ltd,16/02/2015,,245.70,Catering Provisions,110000 - Catering
Solihull MBC,Children's Services - DSG Central.,Children & Education Services,Brake Bros Foodservice Ltd,16/02/2015,,244.14,Catering Provisions,110000 - Catering
Solihull MBC,Children's Services - DSG Central.,Children & Education Services,Brake Bros Foodservice Ltd,16/02/2015,,242.96,Catering Provisions,110000 - Catering
Solihull MBC,Children's Services - DSG Central.,Children & Education Services,Brake Bros Foodservice Ltd,16/02/2015,,238.30,Catering Provisions,110000 - Catering
Solihull MBC,Children's Services - DSG Central.,Children & Education Services,Brake Bros Foodservice Ltd,16/02/2015,,233.53,Catering Provisions,110000 - Catering
Solihull MBC,Children's Services - DSG Central.,Children & Education Services,Brake Bros Foodservice Ltd,16/02/2015,,231.87,Catering Provisions,110000 - Catering
Solihull MBC,Children's Services - DSG Central.,Children & Education Services,Brake Bros Foodservice Ltd,16/02/2015,,231.79,Catering Provisions,110000 - Catering
Solihull MBC,Children's Services - DSG Central.,Children & Education Services,Brake Bros Foodservice Ltd,16/02/2015,,230.99,Catering Provisions,110000 - Catering
Solihull MBC,Children's Services - DSG Central.,Children & Education Services,Brake Bros Foodservice Ltd,16/02/2015,,226.68,Catering Provisions,110000 - Catering
Solihull MBC,Children's Services - DSG Central.,Children & Education Services,Brake Bros Foodservice Ltd,16/02/2015,,226.34,Catering Provisions,110000 - Catering
Solihull MBC,Children's Services - DSG Central.,Children & Education Services,Brake Bros Foodservice Ltd,16/02/2015,,225.26,Catering Provisions,110000 - Catering
Solihull MBC,Children's Services - DSG Central.,Children & Education Services,Brake Bros Foodservice Ltd,16/02/2015,,218.83,Catering Provisions,110000 - Catering
Solihull MBC,Children's Services - DSG Central.,Children & Education Services,Brake Bros Foodservice Ltd,16/02/2015,,224.92,Catering Provisions,110000 - Catering
Solihull MBC,Children's Services - DSG Central.,Children & Education Services,Brake Bros Foodservice Ltd,16/02/2015,,222.12,Catering Provisions,110000 - Catering
Solihull MBC,Children's Services - DSG Central.,Children & Education Services,Brake Bros Foodservice Ltd,16/02/2015,,221.78,Catering Provisions,110000 - Catering
Solihull MBC,Children's Services - DSG Central.,Children & Education Services,Brake Bros Foodservice Ltd,16/02/2015,,215.85,Catering Provisions,110000 - Catering
Solihull MBC,Children's Services - DSG Central.,Children & Education Services,Brake Bros Foodservice Ltd,16/02/2015,,213.81,Catering Provisions,110000 - Catering
Solihull MBC,Children's Services - DSG Central.,Children & Education Services,Brake Bros Foodservice Ltd,16/02/2015,,212.07,Catering Provisions,110000 - Catering
Solihull MBC,Children's Services - DSG Central.,Children & Education Services,Brake Bros Foodservice Ltd,16/02/2015,,206.74,Catering Provisions,110000 - Catering
Solihull MBC,Children's Services - DSG Central.,Children & Education Services,Brake Bros Foodservice Ltd,16/02/2015,,201.40,Catering Provisions,110000 - Catering
Solihull MBC,Children's Services - DSG Central.,Children & Education Services,Brake Bros Foodservice Ltd,16/02/2015,,194.27,Catering Provisions,110000 - Catering
Solihull MBC,Children's Services - DSG Central.,Children & Education Services,Brake Bros Foodservice Ltd,16/02/2015,,190.74,Catering Provisions,110000 - Catering
Solihull MBC,Children's Services - DSG Central.,Children & Education Services,Brake Bros Foodservice Ltd,16/02/2015,,190.01,Catering Provisions,110000 - Catering
Solihull MBC,Children's Services - DSG Central.,Children & Education Services,Brake Bros Foodservice Ltd,16/02/2015,,188.78,Catering Provisions,110000 - Catering
Solihull MBC,Children's Services - DSG Central.,Children & Education Services,Brake Bros Foodservice Ltd,16/02/2015,,188.38,Catering Provisions,110000 - Catering
Solihull MBC,Children's Services - DSG Central.,Children & Education Services,Brake Bros Foodservice Ltd,16/02/2015,,183.41,Catering Provisions,110000 - Catering
Solihull MBC,Children's Services - DSG Central.,Children & Education Services,Brake Bros Foodservice Ltd,16/02/2015,,181.08,Catering Provisions,110000 - Catering
Solihull MBC,Children's Services - DSG Central.,Children & Education Services,Brake Bros Foodservice Ltd,16/02/2015,,174.40,Catering Provisions,110000 - Catering
Solihull MBC,Children's Services - DSG Central.,Children & Education Services,Brake Bros Foodservice Ltd,16/02/2015,,169.35,Catering Provisions,110000 - Catering
Solihull MBC,Children's Services - DSG Central.,Children & Education Services,Brake Bros Foodservice Ltd,16/02/2015,,172.64,Catering Provisions,110000 - Catering
Solihull MBC,Children's Services - DSG Central.,Children & Education Services,Brake Bros Foodservice Ltd,16/02/2015,,172.63,Catering Provisions,110000 - Catering
Solihull MBC,Children's Services - DSG Central.,Children & Education Services,Brake Bros Foodservice Ltd,16/02/2015,,170.96,Catering Provisions,110000 - Catering
Solihull MBC,Children's Services - DSG Central.,Children & Education Services,Brake Bros Foodservice Ltd,16/02/2015,,169.25,Catering Provisions,110000 - Catering
Solihull MBC,Children's Services - DSG Central.,Children & Education Services,Brake Bros Foodservice Ltd,16/02/2015,,163.18,Catering Provisions,110000 - Catering
Solihull MBC,Children's Services - DSG Central.,Children & Education Services,Brake Bros Foodservice Ltd,16/02/2015,,154.94,Catering Provisions,110000 - Catering
Solihull MBC,Children's Services - DSG Central.,Children & Education Services,Brake Bros Foodservice Ltd,16/02/2015,,154.10,Catering Provisions,110000 - Catering
Solihull MBC,Children's Services - DSG Central.,Children & Education Services,Brake Bros Foodservice Ltd,16/02/2015,,154.07,Catering Provisions,110000 - Catering
Solihull MBC,Children's Services - DSG Central.,Children & Education Services,Brake Bros Foodservice Ltd,16/02/2015,,152.30,Catering Provisions,110000 - Catering
Solihull MBC,Children's Services - DSG Central.,Children & Education Services,Brake Bros Foodservice Ltd,16/02/2015,,151.00,Catering Provisions,110000 - Catering
Solihull MBC,Children's Services - DSG Central.,Children & Education Services,Brake Bros Foodservice Ltd,16/02/2015,,148.20,Catering Provisions,110000 - Catering
Solihull MBC,Resources,Children & Education Services,Brake Bros Foodservice Ltd,16/02/2015,,147.15,Catering Provisions,110000 - Catering
Solihull MBC,Children's Services - DSG Central.,Children & Education Services,Brake Bros Foodservice Ltd,16/02/2015,,139.49,Catering Provisions,110000 - Catering
Solihull MBC,Children's Services - DSG Central.,Children & Education Services,Brake Bros Foodservice Ltd,16/02/2015,,137.13,Catering Provisions,110000 - Catering
Solihull MBC,Children's Services - DSG Central.,Children & Education Services,Brake Bros Foodservice Ltd,16/02/2015,,134.78,Catering Provisions,110000 - Catering
Solihull MBC,Children's Services - DSG Central.,Children & Education Services,Brake Bros Foodservice Ltd,16/02/2015,,134.47,Catering Provisions,110000 - Catering
Solihull MBC,Children's Services - DSG Central.,Children & Education Services,Brake Bros Foodservice Ltd,16/02/2015,,131.97,Catering Provisions,110000 - Catering
Solihull MBC,Children's Services - DSG Central.,Children & Education Services,Brake Bros Foodservice Ltd,16/02/2015,,133.97,Catering Provisions,110000 - Catering
Solihull MBC,Children's Services - DSG Central.,Children & Education Services,Brake Bros Foodservice Ltd,16/02/2015,,133.79,Catering Provisions,110000 - Catering
Solihull MBC,Children's Services - DSG Central.,Children & Education Services,Brake Bros Foodservice Ltd,16/02/2015,,133.13,Catering Provisions,110000 - Catering
Solihull MBC,Children's Services - DSG Central.,Children & Education Services,Brake Bros Foodservice Ltd,16/02/2015,,131.48,Catering Provisions,110000 - Catering
Solihull MBC,Children's Services - DSG Central.,Children & Education Services,Brake Bros Foodservice Ltd,16/02/2015,,125.90,Catering Provisions,110000 - Catering
Solihull MBC,Children's Services - DSG Central.,Children & Education Services,Brake Bros Foodservice Ltd,13/02/2015,,11.40,Catering Provisions,110000 - Catering
Solihull MBC,Children's Services - DSG Central.,Children & Education Services,Brake Bros Foodservice Ltd,13/02/2015,,11.40,Catering Provisions,110000 - Catering
Solihull MBC,Children's Services - DSG Central.,Children & Education Services,Brake Bros Foodservice Ltd,13/02/2015,,11.40,Catering Provisions,110000 - Catering
Solihull MBC,Children's Services - DSG Central.,Children & Education Services,Brake Bros Foodservice Ltd,13/02/2015,,11.40,Catering Provisions,110000 - Catering
Solihull MBC,Children's Services - DSG Central.,Children & Education Services,Brake Bros Foodservice Ltd,13/02/2015,,11.40,Catering Provisions,110000 - Catering
Solihull MBC,Children's Services - DSG Central.,Children & Education Services,Brake Bros Foodservice Ltd,13/02/2015,,11.40,Catering Provisions,110000 - Catering
Solihull MBC,Children's Services - DSG Central.,Children & Education Services,Brake Bros Foodservice Ltd,13/02/2015,,11.40,Catering Provisions,110000 - Catering
Solihull MBC,Children's Services - DSG Central.,Children & Education Services,Brake Bros Foodservice Ltd,13/02/2015,,11.40,Catering Provisions,110000 - Catering
Solihull MBC,Children's Services - DSG Central.,Children & Education Services,Brake Bros Foodservice Ltd,13/02/2015,,8.25,Catering Provisions,110000 - Catering
Solihull MBC,Children's Services - DSG Central.,Children & Education Services,Brake Bros Foodservice Ltd,13/02/2015,,2.65,Catering Provisions,110000 - Catering
Solihull MBC,Children's Services - DSG Central.,Children & Education Services,Brake Bros Foodservice Ltd,13/02/2015,,7.00,Catering Provisions,110000 - Catering
Solihull MBC,Children's Services - DSG Central.,Children & Education Services,Brake Bros Foodservice Ltd,13/02/2015,,7.00,Catering Provisions,110000 - Catering
Solihull MBC,Children's Services - DSG Central.,Children & Education Services,Brake Bros Foodservice Ltd,13/02/2015,,2.65,Catering Provisions,110000 - Catering
Solihull MBC,Children's Services - DSG Central.,Children & Education Services,Brake Bros Foodservice Ltd,16/02/2015,,576.90,Catering Provisions,110000 - Catering
Solihull MBC,Children's Services - DSG Central.,Children & Education Services,Brake Bros Foodservice Ltd,16/02/2015,,705.09,Catering Provisions,110000 - Catering
Solihull MBC,Children's Services - DSG Central.,Children & Education Services,Brake Bros Foodservice Ltd,16/02/2015,,671.91,Catering Provisions,110000 - Catering
Solihull MBC,Children's Services - DSG Central.,Children & Education Services,Brake Bros Foodservice Ltd,16/02/2015,,623.07,Catering Provisions,110000 - Catering
Solihull MBC,Children's Services - DSG Central.,Children & Education Services,Brake Bros Foodservice Ltd,16/02/2015,,552.75,Catering Provisions,110000 - Catering
Solihull MBC,Children's Services - DSG Central.,Children & Education Services,Brake Bros Foodservice Ltd,16/02/2015,,508.97,Catering Provisions,110000 - Catering
